{"text_format":"1","workbook":"xlsx","n_sheets":12,"sheets":["Registro de cambios","configuracion","DIGITADOR","DATOS","REFERENTES","OTRAS REFERENCIAS","Resumen","AGD_MUESTREOS","AGD_PARAMETRO","AGD_MUESTRAS","AGD_MUESTRAS_VARIABLES","AGD_AUTORIAS"],"not_rendered":{"charts":0,"images":0,"macros":1,"external_links":1,"defined_names":30,"comments":2,"pivot_tables":1},"unopened":[],"bounds":{"document_bytes":16777216,"sheet_cells":100000,"rows_first":2000,"rows_last":500,"rows_between":2000,"halvings":0,"cell_chars":16384,"cell_head_chars":4096},"cells_cut":0,"cells_raw":0,"read":"whole","date_system":"1900"}

{"sheet":"Registro de cambios","index":0,"n_rows":9,"n_cols":7,"rows_kept":9,"cut":false,"hidden":true,"merged":[[1,3,1,6]]}
[]
[null,null,null,"REGISTRO DE CAMBIOS"]
[null,null,null,"VERSIÓN No.","CAMBIO REALIZADO","AUTOR","VIGENTE DESDE"]
[null,null,null,"20240926i","En la hoja \"configuracion\", se cambia la url de la api, se agrega la tabla \"Tipo Nodo\" y \"CONFIGURACION REFERENTES\".\n\nEn la hoja \"DATOS\" se modifican las formulas de las columnas \"CODMUESTREO\", \"ID_MUESTRA\" y \"ID_MUESTREO\", además de la revisión y ajustes del mapeo de columnas.\n\nEn la hoja \"DIGITADOR\", se agrega la tabla \"ATRIBUTOS ADICIONALES\" y se agrega un el boton \"Administrador\"\npara controlar la visibilidad de los botones \"Generar tablas\" y \"Cargar datos\".\n\nEn la hoja \"OTRAS REFERENCIAS\", se agrega la tabla \"CODIGOS LOV\".","Cristian Charris","26/09/2024"]
[null,null,null,"20210810m","Se retiran por tomar valroes definidos  en la BD las columnas:codigo SIBM, categoria de vida X Y AA AE AB AE",null,"2021-08-10"]
[null,null,null,"20200130i","Para trazabilididad la hoja se incluye el nombre del archivo fuente y la posibilidad de anotar el DOI principal del metadato\nPor usabilidad las pestañas que son de interes para el usuario son las verdes\nSi se define mas de un proyecto los referentes de estaciones e investigadores se descargan consecutivo en las mismas columnas\nSe controla la versión para la plantilla mediante comparación dato en AGLOV de la BD.",null,"2020-01-30"]
[null,null,null,"20180926m","Se modifica la ubicación del consecutivo del ID_MUESTRA y se bloquea para que no sea modificado por la macro",null,"2018-09-26"]
[null,null,null,"20180531m","Se cambia la columna del consecutivo que se le agrega al ID_MUESTRA.",null,"2018-05-31"]
[null,null,null,"20180413i","Se modifica la generación de los ID de muestreo y se agrega macro que genera número aleatorio en la hoja DIGITADOR.",null,"2018-04-13"]

{"sheet":"configuracion","index":1,"n_rows":71,"n_cols":9,"rows_kept":71,"cut":false,"hidden":true,"merged":[[61,0,61,2],[28,0,35,0],[37,0,42,0],[45,0,45,1],[0,0,2,0],[3,0,5,0],[7,0,8,0],[9,0,15,0],[17,0,21,0],[23,0,26,0]]}
["general","urlServicio","https://argos.invemar.org.co/api/"]
[null,"fila de inicio",5]
[null,"fila de fin",105]
["metodologias","Metodologias",{"$f":"'OTRAS REFERENCIAS'!$A$21","v":27}]
[null,"Referentes",150]
[null,"Cantidad maxima de referentes ",150]
["estaciones/investigadores","proyectos",{"$f":"DIGITADOR!B9","v":1480}]
["Lista especies","metodologias",{"$f":"$C$4","v":27}]
[null,"proyectos",{"$f":"DIGITADOR!B9","v":1480}]
["MUESTREOS","ID_MUESTREO","DATOS,D"]
[null,"ID_ESTACION","DATOS,S"]
[null,"ID_PROYECTO",{"$f":"$C$7","v":1480}]
[null,"ID_METODOLOGIA",{"$f":"$C$4","v":27}]
[null,"ID_TEMATICAS",207]
[null,"FECHA","DATOS,G"]
[null,"NOTAS","DIGITADOR,B,17"]
[null,"cantidad",105]
["parametro muestreo","ID_MUESTREO","DATOS,Q","DATOS,Q","DATOS,Q"]
[null,"ID_PARAMETRO",1055,1169,1170]
[null,"ID_METODOLOGIA",{"$f":"$C$4","v":27},{"$f":"$C$4","v":27},27]
[null,"ID_UNIDAD_MEDIDA",100,100,100]
[null,"VALOR","DIGITADOR,B,5","DIGITADOR,B,12","DIGITADOR,B,11"]
[null,"cantidad",105,105,105]
["muestra","ID_MUESTRA","DATOS,P"]
[null,"ID_MUESTREO","DATOS,Q"]
[null,"NOTAS","DATOS,N"]
[null,"ES_REPLICA",1]
[null,"cantidad",150]
["muestra variable","ID_PARAMETRO",827,585,823,828,849]
[null,"ID_METODOLOGIA",{"$f":"$C$4","v":27},{"$f":"$C$4","v":27},27,27,27]
[null,"ID_UNIDAD_MEDIDA",100,100,19,100,100]
[null,"ID_MUESTRA","DATOS,P","DATOS,P","DATOS,P","DATOS,P","DATOS,P"]
[null,"ID_METODO",732,732,732,null,732]
[null,"VALOR","DATOS,W","DATOS,AC","DATOS,AF","DATOS,Y","DATOS,Z"]
[null,"QUALITY_FLAG"]
[null,"PRECISION"]
[null,"cantidad",105,105,105,105,105]
["autoria","ID_FUNCIONARIO","DIGITADOR,B,2","DATOS,K"]
[null,"ID_TAREA",5,4]
[null,"ORDEN",1,2]
[null,"FECHA","DIGITADOR,B,7","DATOS,G"]
[null,"ID_MUESTREO","DATOS,Q","DATOS,Q"]
[null,"ENTIDAD","DIGITADOR,B,4","DATOS,M"]
[null,"cantidad",105,105]
[]
["REGISTROS GENERADOS",null,"REGISTROS CARGADOS",null,null,null,"Atributo","Descripción","Código"]
["MUESTREOS",null,null,null,null,null,585,100,"ESPECIE"]
["parametro muestreo",null,null,null,null,null,823,19,"VALOR"]
["muestra",null,null,null,null,null,827,100,"UBICACION_ESPECIFICA"]
["muestra variable",null,null,null,null,null,828,100,"ENTIDAD"]
["autoria",null,null,null,null,null,849,100,"CAT_VIDA"]
["registros correctos",null,null,null,null,null,1055,100,"VERSION_PLANTILLA"]
["Fecha de carga",null,null,null,null,null,1169,100,"URL_METADATO"]
["json error",null,null,null,null,null,1170,100,"ARCHIVO_FUENTE"]
["error"]
[]
[]
["Atributo","Descripción","Código"]
["Tipo Nodo","Estaciones",{"$f":"VLOOKUP(B59,'OTRAS REFERENCIAS'!$A$29:$C$39,2,FALSE)","v":40}]
[]
[]
["CONFIGURACION REFERENTES"]
["Ruta de la API","Endpoint","Descripción"]
["URL - AGM Campo",{"$f":"CONCATENATE(\"parametros/agmcampo/\",$C$4,\"\")","v":"parametros/agmcampo/27"},"Listado de referentes AGM_CAMPO."]
["URL - Especies",{"$f":"IF($C$8=\"\",\"\",CONCATENATE(\"especies/filt/\",$C$9,\",\",$C$8,\"/\"))","v":"especies/filt/1480,27/"},"Especies por proyecto\n(No todos los proyectos tienen asociados una lista de especies)"]
["URL - Estaciones",{"$f":"CONCATENATE(\"estaciones/\", $C$59, \"/\",$C$9,\"\")","v":"estaciones/40/1480"},"Estaciones/parcelas por proyecto, cambia dependiendo del Tipo de Nodo, cuyo estado sea VIGENTE."]
["URL - Usuarios",{"$f":"CONCATENATE(\"parametros/usersByProject/\",$C$7,\"\")","v":"parametros/usersByProject/1480"},"Usuarios por proyecto."]
["URL - Entidades","estaciones/get-entidades","Listado de entidades."]
["Atributos de la API","codigo_in","nombre_in"]
["Rango de atributos de la API","B70:C71","nombre_in"]
["URL - Plantillas","plantillas/","Endpoint para la carga de datos al sistema."]

{"sheet":"DIGITADOR","index":2,"n_rows":28,"n_cols":4,"rows_kept":28,"cut":false,"hidden":false,"merged":[[15,0,15,1],[11,3,13,9],[5,0,6,0],[0,0,0,1],[0,3,5,9],[6,3,8,9],[9,3,10,9]]}
["Recolección de Datos\nMonitoreo Invertebrados Vagiles Areas Coralinas",null,null,"Recomendaciones generales: \n¡Precaución! No inserte Filas o Columnas.\nEn los casos en que falte un valor a ingresar que provenga de la hoja de referencias, informe para que el administrador del sistema haga las adiciones necesarias.\nEsta es una plantilla programada. Las columnas de color oscuro se llenan automaticamente, principalmente a partir de los contenidos de la hoja de referencias. \nNO UTILICE PUNTO Y COMA (;) en ningun campo, por ser el separador de variables (columnas). Tampoco escriba las unidades de medida, no son necesarias.\nPara el correcto funcionamiento de la hoja debe estar activa la opcion de Excel de ejecutar macros (al abrir la hoja acepte la opcion habilitar macros, mensaje de Excel que aparece en la parte superior de la hoja en un recuadro amarillo). La extensión del archivo debe ser .xlsm\nSe recomienda renombrar el archivo de la siguiente manera: SIMAC_Invertebrados_NombreEstacion_FechaMonitoreo.xlsm"]
["Codigo Digitador",{"$f":"IF(B3=\"\",\"\",INDEX(REFERENTES!Y:Z,MATCH(B3,REFERENTES!Z:Z,0),1))","v":""}]
["Nombre del Digitador"]
["Entidad"]
["Version de la plantilla",{"$f":"'Registro de cambios'!$D$4","v":"20240926i"}]
["Fecha en la que ingresa los datos en esta hoja","DD/MM/AAAA"]
[null,"3000-12-12",null,"Previamente a iniciar el llenado de la plantilla, debe presionar el botón \"Descargar referentes\" para que los referentes de ésta plantilla sean actualizados. \nLuego de llenar completamente la plantilla, haga clic sobre el botón \"Generar tablas\" para que los datos sean organizados antes de cargarlos al Sistema de Información.\nAntes de presionar el botón \"Generar tablas\" verifique que:\na. No haya celdas con valores como \"#N/A\" o \"#¡REF!\"\nb. No se esten aplicando filtros en la hoja de datos \nPara finalizar, presione el botón \"Cargar datos\"."]
["Proyecto Convenio"]
["Código Proyecto",{"$f":"IF(B10=\"\",\"\",VLOOKUP(B10,'OTRAS REFERENCIAS'!A14:C16,2,FALSE))","v":1480}]
["Nombre Proyecto","SIMAC","  ","Si requiere ayuda contacte a:\nKevin S. Moreno (kevin.moreno@invemar.org.co)  - Apoyo técnico software"]
["Nombre del archivo",{"$f":"MID(CELL(\"FILENAME\",N51),FIND(\"[\",CELL(\"FILENAME\",N51))+1,   FIND(\"]\",CELL(\"FILENAME\",N51))-FIND(\"[\",CELL(\"FILENAME\",N51))-1)","v":"SIMAC_Invertebrados_20240918i.xlsm"}]
["DOI Metadato",null,null,"El custodio de los datos es el único autorizado para distribuir este conjunto de datos. El observador y el digitador se comprometen a tomar las medidas necesarias para salvaguardar este conjunto de datos de modo que copia de los mismos no sean obtenidas y/o usadas por terceros no relacionados con el propósito para la cual se recolectó."]
["Fuente Plantilla","http://cinto.invemar.org.co/download/Plantillas_ARGOS_Plus/"]
[]
[]
["ATRIBUTOS ADICIONALES"]
["Observaciones generales"]
[]
[]
[null,"REGISTROS GENERADOS","CARGADOS"]
["Muestreos",{"$f":"IF(configuracion!B47=\"\",\"\",configuracion!B47)","v":""},{"$f":"IF(configuracion!C47=\"\",\"\",configuracion!C47)","v":""}]
["Parámetros del muestreo",{"$f":"IF(configuracion!B48=\"\",\"\",configuracion!B48)","v":""},{"$f":"IF(configuracion!C48=\"\",\"\",configuracion!C48)","v":""}]
["Muestras",{"$f":"IF(configuracion!B49=\"\",\"\",configuracion!B49)","v":""},{"$f":"IF(configuracion!C49=\"\",\"\",configuracion!C49)","v":""}]
["Variables",{"$f":"IF(configuracion!B50=\"\",\"\",configuracion!B50)","v":""},{"$f":"IF(configuracion!C50=\"\",\"\",configuracion!C50)","v":""}]
["Autores",{"$f":"IF(configuracion!B51=\"\",\"\",configuracion!B51)","v":""},{"$f":"IF(configuracion!C51=\"\",\"\",configuracion!C51)","v":""}]
["Registros correctos",{"$f":"IF(configuracion!B52=\"\",\"\",configuracion!B52)","v":""},{"$f":"IF(configuracion!C52=\"\",\"\",configuracion!C52)","v":""}]
["json error",{"$f":"IF(configuracion!B53=\"\",\"\",configuracion!B53)","v":""},{"$f":"IF(configuracion!C53=\"\",\"\",configuracion!C53)","v":""}]
["error",{"$f":"IF(configuracion!B54=\"\",\"\",configuracion!B54)","v":""},{"$f":"IF(configuracion!C54=\"\",\"\",configuracion!C54)","v":""}]

{"sheet":"DATOS","index":3,"n_rows":104,"n_cols":32,"rows_kept":104,"cut":false,"hidden":false,"merged":[[1,24,1,30],[1,14,1,18],[1,2,3,2],[0,3,1,6],[1,9,1,10],[1,19,1,22]]}
[{"$f":"DIGITADOR!B7+F5","v":"3000-12-12"},null,null,"Fecha"]
[{"$f":"TEXT(A1,\"yyyymmddhhmmss\")","v":"30001212000000"},null,"CODIGO",null,null,null,null,null,null,null,null,null,null,null,null,null,null,null,null,null,null,null,null,null,null,null,null,null,null,null,null,"NUMERO DE INDIVIDUOS"]
[null,null,null,null,null,null,"DATE","MES","TEMPO",null,null,"UNIKE_KEY",null,null,null,null,null,null,null,null,null,null,null,null,null,null,null,null,null,null,null,"N"]
[null,null,null,"ID_MUESTREO\n(AGD_MUESTREOS)","FECHA","HORA","DATE",null,"TEMPORADA","DATOS TOMADOS POR","COD\nFUNCIONARIO","Control cambio muestreo","ENTIDAD","OBSERVACIONES","CONSECUTIVO","ID_MUESTRA","COD MUESTREO","ESTACION","ID\nESTACION","PROFUNDIDAD","COD\nPROFUNDIDAD","TRANSECTO","UBICACIÓN\nESPECIFICA","REPLICA","COD\nENTIDAD","CAT VIDA","COD\nCAT VIDA",null,"ESPECIE","COD\nESPECIE",null,"VALOR"]
[null,null,{"$f":"IF(L5=L4,C4,C4+1)","v":1},{"$f":"IF(Q5=\"\",\"\",IF(COUNTIF($Q$5:Q5, Q5)>1, \"\", Q5))","v":""},null,null,{"$f":"IF(E5=\"\",\"\",E5+F5)","v":""},{"$f":"IF(G5<>\"\",MONTH(G5),\"\")","v":""},{"$f":"IF(D5=\"\",\"\",1)","v":""},null,{"$f":"IF(J5=\"\",\"\",INDEX(REFERENTES!$Y:$Z,MATCH(J5,REFERENTES!Z:$Z,0),1))","v":""},{"$f":"IF(G5=\"\",\"\",CONCATENATE(G5,S5,K5,X5))","v":""},null,null,1,{"$f":"IF(Q5=\"\",\"\",CONCATENATE(Q5,ROW()-2))","v":""},{"$f":"IF(R5=\"\",\"\",IF(R5=\"\",\"\",CONCATENATE(DIGITADOR!$M$1,E5,S5)))","v":""},null,{"$f":"IF(R5=\"\",\"\",VLOOKUP(R5,'OTRAS REFERENCIAS'!$L$5:$M$155,2,FALSE))","v":""},null,{"$f":"IF(T5=\"\",\"\",VLOOKUP(T5,'OTRAS REFERENCIAS'!$A$7:$B$9,2,FALSE))","v":""},null,{"$f":"CONCATENATE(U5,V5)","v":""},null,{"$f":"IF(M5=\"\",\"\",VLOOKUP(M5,REFERENTES!$D$2:$E$9,2,FALSE))","v":""},null,{"$f":"IF(Z5=\"\",\"\",INDEX(REFERENTES!G:H,MATCH(Z5,REFERENTES!H:H,0),1))","v":""},null,null,{"$f":"IF(AC5=\"\",\"\",INDEX(REFERENTES!J:K,MATCH(AC5,REFERENTES!K:K,0),1))","v":""}]
[null,null,1,{"$f":"IF(Q6=\"\",\"\",IF(COUNTIF($Q$5:Q6, Q6)>1, \"\", Q6))","v":""},null,null,{"$f":"IF(E6=\"\",\"\",E6+F6)","v":""},"",{"$f":"IF(D6=\"\",\"\",1)","v":""},null,{"$f":"IF(J6=\"\",\"\",INDEX(REFERENTES!$Y:$Z,MATCH(J6,REFERENTES!Z:$Z,0),1))","v":""},{"$f":"IF(G6=\"\",\"\",CONCATENATE(G6,S6,K6,X6))","v":""},null,null,2,{"$f":"IF(Q6=\"\",\"\",CONCATENATE(Q6,ROW()-2))","v":""},{"$f":"IF(R6=\"\",\"\",IF(R6=\"\",\"\",CONCATENATE(DIGITADOR!$M$1,E6,S6)))","v":""},null,{"$f":"IF(R6=\"\",\"\",VLOOKUP(R6,'OTRAS REFERENCIAS'!$L$5:$M$155,2,FALSE))","v":""},null,{"$f":"IF(T6=\"\",\"\",VLOOKUP(T6,'OTRAS REFERENCIAS'!$A$7:$B$9,2,FALSE))","v":""},null,{"$f":"CONCATENATE(U6,V6)","v":""},null,{"$f":"IF(M6=\"\",\"\",VLOOKUP(M6,REFERENTES!$D$2:$E$9,2,FALSE))","v":""},null,{"$f":"IF(Z6=\"\",\"\",INDEX(REFERENTES!G:H,MATCH(Z6,REFERENTES!H:H,0),1))","v":""},null,null,{"$f":"IF(AC6=\"\",\"\",INDEX(REFERENTES!J:K,MATCH(AC6,REFERENTES!K:K,0),1))","v":""}]
[null,null,1,{"$f":"IF(Q7=\"\",\"\",IF(COUNTIF($Q$5:Q7, Q7)>1, \"\", Q7))","v":""},null,null,"","","",null,{"$f":"IF(J7=\"\",\"\",INDEX(REFERENTES!$Y:$Z,MATCH(J7,REFERENTES!Z:$Z,0),1))","v":""},"",null,null,3,"",{"$f":"IF(R7=\"\",\"\",IF(R7=\"\",\"\",CONCATENATE(DIGITADOR!$M$1,E7,S7)))","v":""},null,{"$f":"IF(R7=\"\",\"\",VLOOKUP(R7,'OTRAS REFERENCIAS'!$L$5:$M$155,2,FALSE))","v":""},null,{"$f":"IF(T7=\"\",\"\",VLOOKUP(T7,'OTRAS REFERENCIAS'!$A$7:$B$9,2,FALSE))","v":""},null,"",null,{"$f":"IF(M7=\"\",\"\",VLOOKUP(M7,REFERENTES!$D$2:$E$9,2,FALSE))","v":""},null,{"$f":"IF(Z7=\"\",\"\",INDEX(REFERENTES!G:H,MATCH(Z7,REFERENTES!H:H,0),1))","v":""},null,null,{"$f":"IF(AC7=\"\",\"\",INDEX(REFERENTES!J:K,MATCH(AC7,REFERENTES!K:K,0),1))","v":""}]
[null,null,1,{"$f":"IF(Q8=\"\",\"\",IF(COUNTIF($Q$5:Q8, Q8)>1, \"\", Q8))","v":""},null,null,"","","",null,{"$f":"IF(J8=\"\",\"\",INDEX(REFERENTES!$Y:$Z,MATCH(J8,REFERENTES!Z:$Z,0),1))","v":""},"",null,null,4,"",{"$f":"IF(R8=\"\",\"\",IF(R8=\"\",\"\",CONCATENATE(DIGITADOR!$M$1,E8,S8)))","v":""},null,{"$f":"IF(R8=\"\",\"\",VLOOKUP(R8,'OTRAS REFERENCIAS'!$L$5:$M$155,2,FALSE))","v":""},null,{"$f":"IF(T8=\"\",\"\",VLOOKUP(T8,'OTRAS REFERENCIAS'!$A$7:$B$9,2,FALSE))","v":""},null,"",null,{"$f":"IF(M8=\"\",\"\",VLOOKUP(M8,REFERENTES!$D$2:$E$9,2,FALSE))","v":""},null,{"$f":"IF(Z8=\"\",\"\",INDEX(REFERENTES!G:H,MATCH(Z8,REFERENTES!H:H,0),1))","v":""},null,null,{"$f":"IF(AC8=\"\",\"\",INDEX(REFERENTES!J:K,MATCH(AC8,REFERENTES!K:K,0),1))","v":""}]
[null,null,1,{"$f":"IF(Q9=\"\",\"\",IF(COUNTIF($Q$5:Q9, Q9)>1, \"\", Q9))","v":""},null,null,"","","",null,{"$f":"IF(J9=\"\",\"\",INDEX(REFERENTES!$Y:$Z,MATCH(J9,REFERENTES!Z:$Z,0),1))","v":""},"",null,null,5,"",{"$f":"IF(R9=\"\",\"\",IF(R9=\"\",\"\",CONCATENATE(DIGITADOR!$M$1,E9,S9)))","v":""},null,{"$f":"IF(R9=\"\",\"\",VLOOKUP(R9,'OTRAS REFERENCIAS'!$L$5:$M$155,2,FALSE))","v":""},null,{"$f":"IF(T9=\"\",\"\",VLOOKUP(T9,'OTRAS REFERENCIAS'!$A$7:$B$9,2,FALSE))","v":""},null,"",null,{"$f":"IF(M9=\"\",\"\",VLOOKUP(M9,REFERENTES!$D$2:$E$9,2,FALSE))","v":""},null,{"$f":"IF(Z9=\"\",\"\",INDEX(REFERENTES!G:H,MATCH(Z9,REFERENTES!H:H,0),1))","v":""},null,null,{"$f":"IF(AC9=\"\",\"\",INDEX(REFERENTES!J:K,MATCH(AC9,REFERENTES!K:K,0),1))","v":""}]
[null,null,1,{"$f":"IF(Q10=\"\",\"\",IF(COUNTIF($Q$5:Q10, Q10)>1, \"\", Q10))","v":""},null,null,"","","",null,{"$f":"IF(J10=\"\",\"\",INDEX(REFERENTES!$Y:$Z,MATCH(J10,REFERENTES!Z:$Z,0),1))","v":""},"",null,null,6,"",{"$f":"IF(R10=\"\",\"\",IF(R10=\"\",\"\",CONCATENATE(DIGITADOR!$M$1,E10,S10)))","v":""},null,{"$f":"IF(R10=\"\",\"\",VLOOKUP(R10,'OTRAS REFERENCIAS'!$L$5:$M$155,2,FALSE))","v":""},null,{"$f":"IF(T10=\"\",\"\",VLOOKUP(T10,'OTRAS REFERENCIAS'!$A$7:$B$9,2,FALSE))","v":""},null,"",null,{"$f":"IF(M10=\"\",\"\",VLOOKUP(M10,REFERENTES!$D$2:$E$9,2,FALSE))","v":""},null,{"$f":"IF(Z10=\"\",\"\",INDEX(REFERENTES!G:H,MATCH(Z10,REFERENTES!H:H,0),1))","v":""},null,null,{"$f":"IF(AC10=\"\",\"\",INDEX(REFERENTES!J:K,MATCH(AC10,REFERENTES!K:K,0),1))","v":""}]
[null,null,1,{"$f":"IF(Q11=\"\",\"\",IF(COUNTIF($Q$5:Q11, Q11)>1, \"\", Q11))","v":""},null,null,"","","",null,{"$f":"IF(J11=\"\",\"\",INDEX(REFERENTES!$Y:$Z,MATCH(J11,REFERENTES!Z:$Z,0),1))","v":""},"",null,null,7,"",{"$f":"IF(R11=\"\",\"\",IF(R11=\"\",\"\",CONCATENATE(DIGITADOR!$M$1,E11,S11)))","v":""},null,{"$f":"IF(R11=\"\",\"\",VLOOKUP(R11,'OTRAS REFERENCIAS'!$L$5:$M$155,2,FALSE))","v":""},null,{"$f":"IF(T11=\"\",\"\",VLOOKUP(T11,'OTRAS REFERENCIAS'!$A$7:$B$9,2,FALSE))","v":""},null,"",null,{"$f":"IF(M11=\"\",\"\",VLOOKUP(M11,REFERENTES!$D$2:$E$9,2,FALSE))","v":""},null,{"$f":"IF(Z11=\"\",\"\",INDEX(REFERENTES!G:H,MATCH(Z11,REFERENTES!H:H,0),1))","v":""},null,null,{"$f":"IF(AC11=\"\",\"\",INDEX(REFERENTES!J:K,MATCH(AC11,REFERENTES!K:K,0),1))","v":""}]
[null,null,1,{"$f":"IF(Q12=\"\",\"\",IF(COUNTIF($Q$5:Q12, Q12)>1, \"\", Q12))","v":""},null,null,"","","",null,{"$f":"IF(J12=\"\",\"\",INDEX(REFERENTES!$Y:$Z,MATCH(J12,REFERENTES!Z:$Z,0),1))","v":""},"",null,null,8,"",{"$f":"IF(R12=\"\",\"\",IF(R12=\"\",\"\",CONCATENATE(DIGITADOR!$M$1,E12,S12)))","v":""},null,{"$f":"IF(R12=\"\",\"\",VLOOKUP(R12,'OTRAS REFERENCIAS'!$L$5:$M$155,2,FALSE))","v":""},null,{"$f":"IF(T12=\"\",\"\",VLOOKUP(T12,'OTRAS REFERENCIAS'!$A$7:$B$9,2,FALSE))","v":""},null,"",null,{"$f":"IF(M12=\"\",\"\",VLOOKUP(M12,REFERENTES!$D$2:$E$9,2,FALSE))","v":""},null,{"$f":"IF(Z12=\"\",\"\",INDEX(REFERENTES!G:H,MATCH(Z12,REFERENTES!H:H,0),1))","v":""},null,null,{"$f":"IF(AC12=\"\",\"\",INDEX(REFERENTES!J:K,MATCH(AC12,REFERENTES!K:K,0),1))","v":""}]
[null,null,1,{"$f":"IF(Q13=\"\",\"\",IF(COUNTIF($Q$5:Q13, Q13)>1, \"\", Q13))","v":""},null,null,"","","",null,{"$f":"IF(J13=\"\",\"\",INDEX(REFERENTES!$Y:$Z,MATCH(J13,REFERENTES!Z:$Z,0),1))","v":""},"",null,null,9,"",{"$f":"IF(R13=\"\",\"\",IF(R13=\"\",\"\",CONCATENATE(DIGITADOR!$M$1,E13,S13)))","v":""},null,{"$f":"IF(R13=\"\",\"\",VLOOKUP(R13,'OTRAS REFERENCIAS'!$L$5:$M$155,2,FALSE))","v":""},null,{"$f":"IF(T13=\"\",\"\",VLOOKUP(T13,'OTRAS REFERENCIAS'!$A$7:$B$9,2,FALSE))","v":""},null,"",null,{"$f":"IF(M13=\"\",\"\",VLOOKUP(M13,REFERENTES!$D$2:$E$9,2,FALSE))","v":""},null,{"$f":"IF(Z13=\"\",\"\",INDEX(REFERENTES!G:H,MATCH(Z13,REFERENTES!H:H,0),1))","v":""},null,null,{"$f":"IF(AC13=\"\",\"\",INDEX(REFERENTES!J:K,MATCH(AC13,REFERENTES!K:K,0),1))","v":""}]
[null,null,1,{"$f":"IF(Q14=\"\",\"\",IF(COUNTIF($Q$5:Q14, Q14)>1, \"\", Q14))","v":""},null,null,"","","",null,{"$f":"IF(J14=\"\",\"\",INDEX(REFERENTES!$Y:$Z,MATCH(J14,REFERENTES!Z:$Z,0),1))","v":""},"",null,null,10,"",{"$f":"IF(R14=\"\",\"\",IF(R14=\"\",\"\",CONCATENATE(DIGITADOR!$M$1,E14,S14)))","v":""},null,{"$f":"IF(R14=\"\",\"\",VLOOKUP(R14,'OTRAS REFERENCIAS'!$L$5:$M$155,2,FALSE))","v":""},null,{"$f":"IF(T14=\"\",\"\",VLOOKUP(T14,'OTRAS REFERENCIAS'!$A$7:$B$9,2,FALSE))","v":""},null,"",null,{"$f":"IF(M14=\"\",\"\",VLOOKUP(M14,REFERENTES!$D$2:$E$9,2,FALSE))","v":""},null,{"$f":"IF(Z14=\"\",\"\",INDEX(REFERENTES!G:H,MATCH(Z14,REFERENTES!H:H,0),1))","v":""},null,null,{"$f":"IF(AC14=\"\",\"\",INDEX(REFERENTES!J:K,MATCH(AC14,REFERENTES!K:K,0),1))","v":""}]
[null,null,1,{"$f":"IF(Q15=\"\",\"\",IF(COUNTIF($Q$5:Q15, Q15)>1, \"\", Q15))","v":""},null,null,"","","",null,{"$f":"IF(J15=\"\",\"\",INDEX(REFERENTES!$Y:$Z,MATCH(J15,REFERENTES!Z:$Z,0),1))","v":""},"",null,null,11,"",{"$f":"IF(R15=\"\",\"\",IF(R15=\"\",\"\",CONCATENATE(DIGITADOR!$M$1,E15,S15)))","v":""},null,{"$f":"IF(R15=\"\",\"\",VLOOKUP(R15,'OTRAS REFERENCIAS'!$L$5:$M$155,2,FALSE))","v":""},null,{"$f":"IF(T15=\"\",\"\",VLOOKUP(T15,'OTRAS REFERENCIAS'!$A$7:$B$9,2,FALSE))","v":""},null,"",null,{"$f":"IF(M15=\"\",\"\",VLOOKUP(M15,REFERENTES!$D$2:$E$9,2,FALSE))","v":""},null,{"$f":"IF(Z15=\"\",\"\",INDEX(REFERENTES!G:H,MATCH(Z15,REFERENTES!H:H,0),1))","v":""},null,null,{"$f":"IF(AC15=\"\",\"\",INDEX(REFERENTES!J:K,MATCH(AC15,REFERENTES!K:K,0),1))","v":""}]
[null,null,1,{"$f":"IF(Q16=\"\",\"\",IF(COUNTIF($Q$5:Q16, Q16)>1, \"\", Q16))","v":""},null,null,"","","",null,{"$f":"IF(J16=\"\",\"\",INDEX(REFERENTES!$Y:$Z,MATCH(J16,REFERENTES!Z:$Z,0),1))","v":""},"",null,null,12,"",{"$f":"IF(R16=\"\",\"\",IF(R16=\"\",\"\",CONCATENATE(DIGITADOR!$M$1,E16,S16)))","v":""},null,{"$f":"IF(R16=\"\",\"\",VLOOKUP(R16,'OTRAS REFERENCIAS'!$L$5:$M$155,2,FALSE))","v":""},null,{"$f":"IF(T16=\"\",\"\",VLOOKUP(T16,'OTRAS REFERENCIAS'!$A$7:$B$9,2,FALSE))","v":""},null,"",null,{"$f":"IF(M16=\"\",\"\",VLOOKUP(M16,REFERENTES!$D$2:$E$9,2,FALSE))","v":""},null,{"$f":"IF(Z16=\"\",\"\",INDEX(REFERENTES!G:H,MATCH(Z16,REFERENTES!H:H,0),1))","v":""},null,null,{"$f":"IF(AC16=\"\",\"\",INDEX(REFERENTES!J:K,MATCH(AC16,REFERENTES!K:K,0),1))","v":""}]
[null,null,1,{"$f":"IF(Q17=\"\",\"\",IF(COUNTIF($Q$5:Q17, Q17)>1, \"\", Q17))","v":""},null,null,"","","",null,{"$f":"IF(J17=\"\",\"\",INDEX(REFERENTES!$Y:$Z,MATCH(J17,REFERENTES!Z:$Z,0),1))","v":""},"",null,null,13,"",{"$f":"IF(R17=\"\",\"\",IF(R17=\"\",\"\",CONCATENATE(DIGITADOR!$M$1,E17,S17)))","v":""},null,{"$f":"IF(R17=\"\",\"\",VLOOKUP(R17,'OTRAS REFERENCIAS'!$L$5:$M$155,2,FALSE))","v":""},null,{"$f":"IF(T17=\"\",\"\",VLOOKUP(T17,'OTRAS REFERENCIAS'!$A$7:$B$9,2,FALSE))","v":""},null,"",null,{"$f":"IF(M17=\"\",\"\",VLOOKUP(M17,REFERENTES!$D$2:$E$9,2,FALSE))","v":""},null,{"$f":"IF(Z17=\"\",\"\",INDEX(REFERENTES!G:H,MATCH(Z17,REFERENTES!H:H,0),1))","v":""},null,null,{"$f":"IF(AC17=\"\",\"\",INDEX(REFERENTES!J:K,MATCH(AC17,REFERENTES!K:K,0),1))","v":""}]
[null,null,1,{"$f":"IF(Q18=\"\",\"\",IF(COUNTIF($Q$5:Q18, Q18)>1, \"\", Q18))","v":""},null,null,"","","",null,{"$f":"IF(J18=\"\",\"\",INDEX(REFERENTES!$Y:$Z,MATCH(J18,REFERENTES!Z:$Z,0),1))","v":""},"",null,null,14,"",{"$f":"IF(R18=\"\",\"\",IF(R18=\"\",\"\",CONCATENATE(DIGITADOR!$M$1,E18,S18)))","v":""},null,{"$f":"IF(R18=\"\",\"\",VLOOKUP(R18,'OTRAS REFERENCIAS'!$L$5:$M$155,2,FALSE))","v":""},null,{"$f":"IF(T18=\"\",\"\",VLOOKUP(T18,'OTRAS REFERENCIAS'!$A$7:$B$9,2,FALSE))","v":""},null,"",null,{"$f":"IF(M18=\"\",\"\",VLOOKUP(M18,REFERENTES!$D$2:$E$9,2,FALSE))","v":""},null,{"$f":"IF(Z18=\"\",\"\",INDEX(REFERENTES!G:H,MATCH(Z18,REFERENTES!H:H,0),1))","v":""},null,null,{"$f":"IF(AC18=\"\",\"\",INDEX(REFERENTES!J:K,MATCH(AC18,REFERENTES!K:K,0),1))","v":""}]
[null,null,1,{"$f":"IF(Q19=\"\",\"\",IF(COUNTIF($Q$5:Q19, Q19)>1, \"\", Q19))","v":""},null,null,"","","",null,{"$f":"IF(J19=\"\",\"\",INDEX(REFERENTES!$Y:$Z,MATCH(J19,REFERENTES!Z:$Z,0),1))","v":""},"",null,null,15,"",{"$f":"IF(R19=\"\",\"\",IF(R19=\"\",\"\",CONCATENATE(DIGITADOR!$M$1,E19,S19)))","v":""},null,{"$f":"IF(R19=\"\",\"\",VLOOKUP(R19,'OTRAS REFERENCIAS'!$L$5:$M$155,2,FALSE))","v":""},null,{"$f":"IF(T19=\"\",\"\",VLOOKUP(T19,'OTRAS REFERENCIAS'!$A$7:$B$9,2,FALSE))","v":""},null,"",null,{"$f":"IF(M19=\"\",\"\",VLOOKUP(M19,REFERENTES!$D$2:$E$9,2,FALSE))","v":""},null,{"$f":"IF(Z19=\"\",\"\",INDEX(REFERENTES!G:H,MATCH(Z19,REFERENTES!H:H,0),1))","v":""},null,null,{"$f":"IF(AC19=\"\",\"\",INDEX(REFERENTES!J:K,MATCH(AC19,REFERENTES!K:K,0),1))","v":""}]
[null,null,1,{"$f":"IF(Q20=\"\",\"\",IF(COUNTIF($Q$5:Q20, Q20)>1, \"\", Q20))","v":""},null,null,"","","",null,{"$f":"IF(J20=\"\",\"\",INDEX(REFERENTES!$Y:$Z,MATCH(J20,REFERENTES!Z:$Z,0),1))","v":""},"",null,null,16,"",{"$f":"IF(R20=\"\",\"\",IF(R20=\"\",\"\",CONCATENATE(DIGITADOR!$M$1,E20,S20)))","v":""},null,{"$f":"IF(R20=\"\",\"\",VLOOKUP(R20,'OTRAS REFERENCIAS'!$L$5:$M$155,2,FALSE))","v":""},null,{"$f":"IF(T20=\"\",\"\",VLOOKUP(T20,'OTRAS REFERENCIAS'!$A$7:$B$9,2,FALSE))","v":""},null,"",null,{"$f":"IF(M20=\"\",\"\",VLOOKUP(M20,REFERENTES!$D$2:$E$9,2,FALSE))","v":""},null,{"$f":"IF(Z20=\"\",\"\",INDEX(REFERENTES!G:H,MATCH(Z20,REFERENTES!H:H,0),1))","v":""},null,null,{"$f":"IF(AC20=\"\",\"\",INDEX(REFERENTES!J:K,MATCH(AC20,REFERENTES!K:K,0),1))","v":""}]
[null,null,1,{"$f":"IF(Q21=\"\",\"\",IF(COUNTIF($Q$5:Q21, Q21)>1, \"\", Q21))","v":""},null,null,"","","",null,{"$f":"IF(J21=\"\",\"\",INDEX(REFERENTES!$Y:$Z,MATCH(J21,REFERENTES!Z:$Z,0),1))","v":""},"",null,null,17,"",{"$f":"IF(R21=\"\",\"\",IF(R21=\"\",\"\",CONCATENATE(DIGITADOR!$M$1,E21,S21)))","v":""},null,{"$f":"IF(R21=\"\",\"\",VLOOKUP(R21,'OTRAS REFERENCIAS'!$L$5:$M$155,2,FALSE))","v":""},null,{"$f":"IF(T21=\"\",\"\",VLOOKUP(T21,'OTRAS REFERENCIAS'!$A$7:$B$9,2,FALSE))","v":""},null,"",null,{"$f":"IF(M21=\"\",\"\",VLOOKUP(M21,REFERENTES!$D$2:$E$9,2,FALSE))","v":""},null,{"$f":"IF(Z21=\"\",\"\",INDEX(REFERENTES!G:H,MATCH(Z21,REFERENTES!H:H,0),1))","v":""},null,null,{"$f":"IF(AC21=\"\",\"\",INDEX(REFERENTES!J:K,MATCH(AC21,REFERENTES!K:K,0),1))","v":""}]
[null,null,1,{"$f":"IF(Q22=\"\",\"\",IF(COUNTIF($Q$5:Q22, Q22)>1, \"\", Q22))","v":""},null,null,"","","",null,{"$f":"IF(J22=\"\",\"\",INDEX(REFERENTES!$Y:$Z,MATCH(J22,REFERENTES!Z:$Z,0),1))","v":""},"",null,null,18,"",{"$f":"IF(R22=\"\",\"\",IF(R22=\"\",\"\",CONCATENATE(DIGITADOR!$M$1,E22,S22)))","v":""},null,{"$f":"IF(R22=\"\",\"\",VLOOKUP(R22,'OTRAS REFERENCIAS'!$L$5:$M$155,2,FALSE))","v":""},null,{"$f":"IF(T22=\"\",\"\",VLOOKUP(T22,'OTRAS REFERENCIAS'!$A$7:$B$9,2,FALSE))","v":""},null,"",null,{"$f":"IF(M22=\"\",\"\",VLOOKUP(M22,REFERENTES!$D$2:$E$9,2,FALSE))","v":""},null,{"$f":"IF(Z22=\"\",\"\",INDEX(REFERENTES!G:H,MATCH(Z22,REFERENTES!H:H,0),1))","v":""},null,null,{"$f":"IF(AC22=\"\",\"\",INDEX(REFERENTES!J:K,MATCH(AC22,REFERENTES!K:K,0),1))","v":""}]
[null,null,1,{"$f":"IF(Q23=\"\",\"\",IF(COUNTIF($Q$5:Q23, Q23)>1, \"\", Q23))","v":""},null,null,"","","",null,{"$f":"IF(J23=\"\",\"\",INDEX(REFERENTES!$Y:$Z,MATCH(J23,REFERENTES!Z:$Z,0),1))","v":""},"",null,null,19,"",{"$f":"IF(R23=\"\",\"\",IF(R23=\"\",\"\",CONCATENATE(DIGITADOR!$M$1,E23,S23)))","v":""},null,{"$f":"IF(R23=\"\",\"\",VLOOKUP(R23,'OTRAS REFERENCIAS'!$L$5:$M$155,2,FALSE))","v":""},null,{"$f":"IF(T23=\"\",\"\",VLOOKUP(T23,'OTRAS REFERENCIAS'!$A$7:$B$9,2,FALSE))","v":""},null,"",null,{"$f":"IF(M23=\"\",\"\",VLOOKUP(M23,REFERENTES!$D$2:$E$9,2,FALSE))","v":""},null,{"$f":"IF(Z23=\"\",\"\",INDEX(REFERENTES!G:H,MATCH(Z23,REFERENTES!H:H,0),1))","v":""},null,null,{"$f":"IF(AC23=\"\",\"\",INDEX(REFERENTES!J:K,MATCH(AC23,REFERENTES!K:K,0),1))","v":""}]
[null,null,1,{"$f":"IF(Q24=\"\",\"\",IF(COUNTIF($Q$5:Q24, Q24)>1, \"\", Q24))","v":""},null,null,"","","",null,{"$f":"IF(J24=\"\",\"\",INDEX(REFERENTES!$Y:$Z,MATCH(J24,REFERENTES!Z:$Z,0),1))","v":""},"",null,null,20,"",{"$f":"IF(R24=\"\",\"\",IF(R24=\"\",\"\",CONCATENATE(DIGITADOR!$M$1,E24,S24)))","v":""},null,{"$f":"IF(R24=\"\",\"\",VLOOKUP(R24,'OTRAS REFERENCIAS'!$L$5:$M$155,2,FALSE))","v":""},null,{"$f":"IF(T24=\"\",\"\",VLOOKUP(T24,'OTRAS REFERENCIAS'!$A$7:$B$9,2,FALSE))","v":""},null,"",null,{"$f":"IF(M24=\"\",\"\",VLOOKUP(M24,REFERENTES!$D$2:$E$9,2,FALSE))","v":""},null,{"$f":"IF(Z24=\"\",\"\",INDEX(REFERENTES!G:H,MATCH(Z24,REFERENTES!H:H,0),1))","v":""},null,null,{"$f":"IF(AC24=\"\",\"\",INDEX(REFERENTES!J:K,MATCH(AC24,REFERENTES!K:K,0),1))","v":""}]
[null,null,1,{"$f":"IF(Q25=\"\",\"\",IF(COUNTIF($Q$5:Q25, Q25)>1, \"\", Q25))","v":""},null,null,"","","",null,{"$f":"IF(J25=\"\",\"\",INDEX(REFERENTES!$Y:$Z,MATCH(J25,REFERENTES!Z:$Z,0),1))","v":""},"",null,null,21,"",{"$f":"IF(R25=\"\",\"\",IF(R25=\"\",\"\",CONCATENATE(DIGITADOR!$M$1,E25,S25)))","v":""},null,{"$f":"IF(R25=\"\",\"\",VLOOKUP(R25,'OTRAS REFERENCIAS'!$L$5:$M$155,2,FALSE))","v":""},null,{"$f":"IF(T25=\"\",\"\",VLOOKUP(T25,'OTRAS REFERENCIAS'!$A$7:$B$9,2,FALSE))","v":""},null,"",null,{"$f":"IF(M25=\"\",\"\",VLOOKUP(M25,REFERENTES!$D$2:$E$9,2,FALSE))","v":""},null,{"$f":"IF(Z25=\"\",\"\",INDEX(REFERENTES!G:H,MATCH(Z25,REFERENTES!H:H,0),1))","v":""},null,null,{"$f":"IF(AC25=\"\",\"\",INDEX(REFERENTES!J:K,MATCH(AC25,REFERENTES!K:K,0),1))","v":""}]
[null,null,1,{"$f":"IF(Q26=\"\",\"\",IF(COUNTIF($Q$5:Q26, Q26)>1, \"\", Q26))","v":""},null,null,"","","",null,{"$f":"IF(J26=\"\",\"\",INDEX(REFERENTES!$Y:$Z,MATCH(J26,REFERENTES!Z:$Z,0),1))","v":""},"",null,null,22,"",{"$f":"IF(R26=\"\",\"\",IF(R26=\"\",\"\",CONCATENATE(DIGITADOR!$M$1,E26,S26)))","v":""},null,{"$f":"IF(R26=\"\",\"\",VLOOKUP(R26,'OTRAS REFERENCIAS'!$L$5:$M$155,2,FALSE))","v":""},null,{"$f":"IF(T26=\"\",\"\",VLOOKUP(T26,'OTRAS REFERENCIAS'!$A$7:$B$9,2,FALSE))","v":""},null,"",null,{"$f":"IF(M26=\"\",\"\",VLOOKUP(M26,REFERENTES!$D$2:$E$9,2,FALSE))","v":""},null,{"$f":"IF(Z26=\"\",\"\",INDEX(REFERENTES!G:H,MATCH(Z26,REFERENTES!H:H,0),1))","v":""},null,null,{"$f":"IF(AC26=\"\",\"\",INDEX(REFERENTES!J:K,MATCH(AC26,REFERENTES!K:K,0),1))","v":""}]
[null,null,1,{"$f":"IF(Q27=\"\",\"\",IF(COUNTIF($Q$5:Q27, Q27)>1, \"\", Q27))","v":""},null,null,"","","",null,{"$f":"IF(J27=\"\",\"\",INDEX(REFERENTES!$Y:$Z,MATCH(J27,REFERENTES!Z:$Z,0),1))","v":""},"",null,null,23,"",{"$f":"IF(R27=\"\",\"\",IF(R27=\"\",\"\",CONCATENATE(DIGITADOR!$M$1,E27,S27)))","v":""},null,{"$f":"IF(R27=\"\",\"\",VLOOKUP(R27,'OTRAS REFERENCIAS'!$L$5:$M$155,2,FALSE))","v":""},null,{"$f":"IF(T27=\"\",\"\",VLOOKUP(T27,'OTRAS REFERENCIAS'!$A$7:$B$9,2,FALSE))","v":""},null,"",null,{"$f":"IF(M27=\"\",\"\",VLOOKUP(M27,REFERENTES!$D$2:$E$9,2,FALSE))","v":""},null,{"$f":"IF(Z27=\"\",\"\",INDEX(REFERENTES!G:H,MATCH(Z27,REFERENTES!H:H,0),1))","v":""},null,null,{"$f":"IF(AC27=\"\",\"\",INDEX(REFERENTES!J:K,MATCH(AC27,REFERENTES!K:K,0),1))","v":""}]
[null,null,1,{"$f":"IF(Q28=\"\",\"\",IF(COUNTIF($Q$5:Q28, Q28)>1, \"\", Q28))","v":""},null,null,"","","",null,{"$f":"IF(J28=\"\",\"\",INDEX(REFERENTES!$Y:$Z,MATCH(J28,REFERENTES!Z:$Z,0),1))","v":""},"",null,null,24,"",{"$f":"IF(R28=\"\",\"\",IF(R28=\"\",\"\",CONCATENATE(DIGITADOR!$M$1,E28,S28)))","v":""},null,{"$f":"IF(R28=\"\",\"\",VLOOKUP(R28,'OTRAS REFERENCIAS'!$L$5:$M$155,2,FALSE))","v":""},null,{"$f":"IF(T28=\"\",\"\",VLOOKUP(T28,'OTRAS REFERENCIAS'!$A$7:$B$9,2,FALSE))","v":""},null,"",null,{"$f":"IF(M28=\"\",\"\",VLOOKUP(M28,REFERENTES!$D$2:$E$9,2,FALSE))","v":""},null,{"$f":"IF(Z28=\"\",\"\",INDEX(REFERENTES!G:H,MATCH(Z28,REFERENTES!H:H,0),1))","v":""},null,null,{"$f":"IF(AC28=\"\",\"\",INDEX(REFERENTES!J:K,MATCH(AC28,REFERENTES!K:K,0),1))","v":""}]
[null,null,1,{"$f":"IF(Q29=\"\",\"\",IF(COUNTIF($Q$5:Q29, Q29)>1, \"\", Q29))","v":""},null,null,"","","",null,{"$f":"IF(J29=\"\",\"\",INDEX(REFERENTES!$Y:$Z,MATCH(J29,REFERENTES!Z:$Z,0),1))","v":""},"",null,null,25,"",{"$f":"IF(R29=\"\",\"\",IF(R29=\"\",\"\",CONCATENATE(DIGITADOR!$M$1,E29,S29)))","v":""},null,{"$f":"IF(R29=\"\",\"\",VLOOKUP(R29,'OTRAS REFERENCIAS'!$L$5:$M$155,2,FALSE))","v":""},null,{"$f":"IF(T29=\"\",\"\",VLOOKUP(T29,'OTRAS REFERENCIAS'!$A$7:$B$9,2,FALSE))","v":""},null,"",null,{"$f":"IF(M29=\"\",\"\",VLOOKUP(M29,REFERENTES!$D$2:$E$9,2,FALSE))","v":""},null,{"$f":"IF(Z29=\"\",\"\",INDEX(REFERENTES!G:H,MATCH(Z29,REFERENTES!H:H,0),1))","v":""},null,null,{"$f":"IF(AC29=\"\",\"\",INDEX(REFERENTES!J:K,MATCH(AC29,REFERENTES!K:K,0),1))","v":""}]
[null,null,1,{"$f":"IF(Q30=\"\",\"\",IF(COUNTIF($Q$5:Q30, Q30)>1, \"\", Q30))","v":""},null,null,"","","",null,{"$f":"IF(J30=\"\",\"\",INDEX(REFERENTES!$Y:$Z,MATCH(J30,REFERENTES!Z:$Z,0),1))","v":""},"",null,null,26,"",{"$f":"IF(R30=\"\",\"\",IF(R30=\"\",\"\",CONCATENATE(DIGITADOR!$M$1,E30,S30)))","v":""},null,{"$f":"IF(R30=\"\",\"\",VLOOKUP(R30,'OTRAS REFERENCIAS'!$L$5:$M$155,2,FALSE))","v":""},null,{"$f":"IF(T30=\"\",\"\",VLOOKUP(T30,'OTRAS REFERENCIAS'!$A$7:$B$9,2,FALSE))","v":""},null,"",null,{"$f":"IF(M30=\"\",\"\",VLOOKUP(M30,REFERENTES!$D$2:$E$9,2,FALSE))","v":""},null,{"$f":"IF(Z30=\"\",\"\",INDEX(REFERENTES!G:H,MATCH(Z30,REFERENTES!H:H,0),1))","v":""},null,null,{"$f":"IF(AC30=\"\",\"\",INDEX(REFERENTES!J:K,MATCH(AC30,REFERENTES!K:K,0),1))","v":""}]
[null,null,1,{"$f":"IF(Q31=\"\",\"\",IF(COUNTIF($Q$5:Q31, Q31)>1, \"\", Q31))","v":""},null,null,"","","",null,{"$f":"IF(J31=\"\",\"\",INDEX(REFERENTES!$Y:$Z,MATCH(J31,REFERENTES!Z:$Z,0),1))","v":""},"",null,null,27,"",{"$f":"IF(R31=\"\",\"\",IF(R31=\"\",\"\",CONCATENATE(DIGITADOR!$M$1,E31,S31)))","v":""},null,{"$f":"IF(R31=\"\",\"\",VLOOKUP(R31,'OTRAS REFERENCIAS'!$L$5:$M$155,2,FALSE))","v":""},null,{"$f":"IF(T31=\"\",\"\",VLOOKUP(T31,'OTRAS REFERENCIAS'!$A$7:$B$9,2,FALSE))","v":""},null,"",null,{"$f":"IF(M31=\"\",\"\",VLOOKUP(M31,REFERENTES!$D$2:$E$9,2,FALSE))","v":""},null,{"$f":"IF(Z31=\"\",\"\",INDEX(REFERENTES!G:H,MATCH(Z31,REFERENTES!H:H,0),1))","v":""},null,null,{"$f":"IF(AC31=\"\",\"\",INDEX(REFERENTES!J:K,MATCH(AC31,REFERENTES!K:K,0),1))","v":""}]
[null,null,1,{"$f":"IF(Q32=\"\",\"\",IF(COUNTIF($Q$5:Q32, Q32)>1, \"\", Q32))","v":""},null,null,"","","",null,{"$f":"IF(J32=\"\",\"\",INDEX(REFERENTES!$Y:$Z,MATCH(J32,REFERENTES!Z:$Z,0),1))","v":""},"",null,null,28,"",{"$f":"IF(R32=\"\",\"\",IF(R32=\"\",\"\",CONCATENATE(DIGITADOR!$M$1,E32,S32)))","v":""},null,{"$f":"IF(R32=\"\",\"\",VLOOKUP(R32,'OTRAS REFERENCIAS'!$L$5:$M$155,2,FALSE))","v":""},null,{"$f":"IF(T32=\"\",\"\",VLOOKUP(T32,'OTRAS REFERENCIAS'!$A$7:$B$9,2,FALSE))","v":""},null,"",null,{"$f":"IF(M32=\"\",\"\",VLOOKUP(M32,REFERENTES!$D$2:$E$9,2,FALSE))","v":""},null,{"$f":"IF(Z32=\"\",\"\",INDEX(REFERENTES!G:H,MATCH(Z32,REFERENTES!H:H,0),1))","v":""},null,null,{"$f":"IF(AC32=\"\",\"\",INDEX(REFERENTES!J:K,MATCH(AC32,REFERENTES!K:K,0),1))","v":""}]
[null,null,1,{"$f":"IF(Q33=\"\",\"\",IF(COUNTIF($Q$5:Q33, Q33)>1, \"\", Q33))","v":""},null,null,"","","",null,{"$f":"IF(J33=\"\",\"\",INDEX(REFERENTES!$Y:$Z,MATCH(J33,REFERENTES!Z:$Z,0),1))","v":""},"",null,null,29,"",{"$f":"IF(R33=\"\",\"\",IF(R33=\"\",\"\",CONCATENATE(DIGITADOR!$M$1,E33,S33)))","v":""},null,{"$f":"IF(R33=\"\",\"\",VLOOKUP(R33,'OTRAS REFERENCIAS'!$L$5:$M$155,2,FALSE))","v":""},null,{"$f":"IF(T33=\"\",\"\",VLOOKUP(T33,'OTRAS REFERENCIAS'!$A$7:$B$9,2,FALSE))","v":""},null,"",null,{"$f":"IF(M33=\"\",\"\",VLOOKUP(M33,REFERENTES!$D$2:$E$9,2,FALSE))","v":""},null,{"$f":"IF(Z33=\"\",\"\",INDEX(REFERENTES!G:H,MATCH(Z33,REFERENTES!H:H,0),1))","v":""},null,null,{"$f":"IF(AC33=\"\",\"\",INDEX(REFERENTES!J:K,MATCH(AC33,REFERENTES!K:K,0),1))","v":""}]
[null,null,1,{"$f":"IF(Q34=\"\",\"\",IF(COUNTIF($Q$5:Q34, Q34)>1, \"\", Q34))","v":""},null,null,"","","",null,{"$f":"IF(J34=\"\",\"\",INDEX(REFERENTES!$Y:$Z,MATCH(J34,REFERENTES!Z:$Z,0),1))","v":""},"",null,null,30,"",{"$f":"IF(R34=\"\",\"\",IF(R34=\"\",\"\",CONCATENATE(DIGITADOR!$M$1,E34,S34)))","v":""},null,{"$f":"IF(R34=\"\",\"\",VLOOKUP(R34,'OTRAS REFERENCIAS'!$L$5:$M$155,2,FALSE))","v":""},null,{"$f":"IF(T34=\"\",\"\",VLOOKUP(T34,'OTRAS REFERENCIAS'!$A$7:$B$9,2,FALSE))","v":""},null,"",null,{"$f":"IF(M34=\"\",\"\",VLOOKUP(M34,REFERENTES!$D$2:$E$9,2,FALSE))","v":""},null,{"$f":"IF(Z34=\"\",\"\",INDEX(REFERENTES!G:H,MATCH(Z34,REFERENTES!H:H,0),1))","v":""},null,null,{"$f":"IF(AC34=\"\",\"\",INDEX(REFERENTES!J:K,MATCH(AC34,REFERENTES!K:K,0),1))","v":""}]
[null,null,1,{"$f":"IF(Q35=\"\",\"\",IF(COUNTIF($Q$5:Q35, Q35)>1, \"\", Q35))","v":""},null,null,"","","",null,{"$f":"IF(J35=\"\",\"\",INDEX(REFERENTES!$Y:$Z,MATCH(J35,REFERENTES!Z:$Z,0),1))","v":""},"",null,null,31,"",{"$f":"IF(R35=\"\",\"\",IF(R35=\"\",\"\",CONCATENATE(DIGITADOR!$M$1,E35,S35)))","v":""},null,{"$f":"IF(R35=\"\",\"\",VLOOKUP(R35,'OTRAS REFERENCIAS'!$L$5:$M$155,2,FALSE))","v":""},null,{"$f":"IF(T35=\"\",\"\",VLOOKUP(T35,'OTRAS REFERENCIAS'!$A$7:$B$9,2,FALSE))","v":""},null,"",null,{"$f":"IF(M35=\"\",\"\",VLOOKUP(M35,REFERENTES!$D$2:$E$9,2,FALSE))","v":""},null,{"$f":"IF(Z35=\"\",\"\",INDEX(REFERENTES!G:H,MATCH(Z35,REFERENTES!H:H,0),1))","v":""},null,null,{"$f":"IF(AC35=\"\",\"\",INDEX(REFERENTES!J:K,MATCH(AC35,REFERENTES!K:K,0),1))","v":""}]
[null,null,1,{"$f":"IF(Q36=\"\",\"\",IF(COUNTIF($Q$5:Q36, Q36)>1, \"\", Q36))","v":""},null,null,"","","",null,{"$f":"IF(J36=\"\",\"\",INDEX(REFERENTES!$Y:$Z,MATCH(J36,REFERENTES!Z:$Z,0),1))","v":""},"",null,null,32,"",{"$f":"IF(R36=\"\",\"\",IF(R36=\"\",\"\",CONCATENATE(DIGITADOR!$M$1,E36,S36)))","v":""},null,{"$f":"IF(R36=\"\",\"\",VLOOKUP(R36,'OTRAS REFERENCIAS'!$L$5:$M$155,2,FALSE))","v":""},null,{"$f":"IF(T36=\"\",\"\",VLOOKUP(T36,'OTRAS REFERENCIAS'!$A$7:$B$9,2,FALSE))","v":""},null,"",null,{"$f":"IF(M36=\"\",\"\",VLOOKUP(M36,REFERENTES!$D$2:$E$9,2,FALSE))","v":""},null,{"$f":"IF(Z36=\"\",\"\",INDEX(REFERENTES!G:H,MATCH(Z36,REFERENTES!H:H,0),1))","v":""},null,null,{"$f":"IF(AC36=\"\",\"\",INDEX(REFERENTES!J:K,MATCH(AC36,REFERENTES!K:K,0),1))","v":""}]
[null,null,1,{"$f":"IF(Q37=\"\",\"\",IF(COUNTIF($Q$5:Q37, Q37)>1, \"\", Q37))","v":""},null,null,"","","",null,{"$f":"IF(J37=\"\",\"\",INDEX(REFERENTES!$Y:$Z,MATCH(J37,REFERENTES!Z:$Z,0),1))","v":""},{"$f":"IF(G37=\"\",\"\",CONCATENATE(G37,S37,K37,X37))","v":""},null,null,33,"",{"$f":"IF(R37=\"\",\"\",IF(R37=\"\",\"\",CONCATENATE(DIGITADOR!$M$1,E37,S37)))","v":""},null,{"$f":"IF(R37=\"\",\"\",VLOOKUP(R37,'OTRAS REFERENCIAS'!$L$5:$M$155,2,FALSE))","v":""},null,{"$f":"IF(T37=\"\",\"\",VLOOKUP(T37,'OTRAS REFERENCIAS'!$A$7:$B$9,2,FALSE))","v":""},null,"",null,{"$f":"IF(M37=\"\",\"\",VLOOKUP(M37,REFERENTES!$D$2:$E$9,2,FALSE))","v":""},null,{"$f":"IF(Z37=\"\",\"\",INDEX(REFERENTES!G:H,MATCH(Z37,REFERENTES!H:H,0),1))","v":""},null,null,{"$f":"IF(AC37=\"\",\"\",INDEX(REFERENTES!J:K,MATCH(AC37,REFERENTES!K:K,0),1))","v":""}]
[null,null,1,{"$f":"IF(Q38=\"\",\"\",IF(COUNTIF($Q$5:Q38, Q38)>1, \"\", Q38))","v":""},null,null,"","","",null,{"$f":"IF(J38=\"\",\"\",INDEX(REFERENTES!$Y:$Z,MATCH(J38,REFERENTES!Z:$Z,0),1))","v":""},"",null,null,34,"",{"$f":"IF(R38=\"\",\"\",IF(R38=\"\",\"\",CONCATENATE(DIGITADOR!$M$1,E38,S38)))","v":""},null,{"$f":"IF(R38=\"\",\"\",VLOOKUP(R38,'OTRAS REFERENCIAS'!$L$5:$M$155,2,FALSE))","v":""},null,{"$f":"IF(T38=\"\",\"\",VLOOKUP(T38,'OTRAS REFERENCIAS'!$A$7:$B$9,2,FALSE))","v":""},null,"",null,{"$f":"IF(M38=\"\",\"\",VLOOKUP(M38,REFERENTES!$D$2:$E$9,2,FALSE))","v":""},null,{"$f":"IF(Z38=\"\",\"\",INDEX(REFERENTES!G:H,MATCH(Z38,REFERENTES!H:H,0),1))","v":""},null,null,{"$f":"IF(AC38=\"\",\"\",INDEX(REFERENTES!J:K,MATCH(AC38,REFERENTES!K:K,0),1))","v":""}]
[null,null,1,{"$f":"IF(Q39=\"\",\"\",IF(COUNTIF($Q$5:Q39, Q39)>1, \"\", Q39))","v":""},null,null,"","","",null,{"$f":"IF(J39=\"\",\"\",INDEX(REFERENTES!$Y:$Z,MATCH(J39,REFERENTES!Z:$Z,0),1))","v":""},"",null,null,35,"",{"$f":"IF(R39=\"\",\"\",IF(R39=\"\",\"\",CONCATENATE(DIGITADOR!$M$1,E39,S39)))","v":""},null,{"$f":"IF(R39=\"\",\"\",VLOOKUP(R39,'OTRAS REFERENCIAS'!$L$5:$M$155,2,FALSE))","v":""},null,{"$f":"IF(T39=\"\",\"\",VLOOKUP(T39,'OTRAS REFERENCIAS'!$A$7:$B$9,2,FALSE))","v":""},null,"",null,{"$f":"IF(M39=\"\",\"\",VLOOKUP(M39,REFERENTES!$D$2:$E$9,2,FALSE))","v":""},null,{"$f":"IF(Z39=\"\",\"\",INDEX(REFERENTES!G:H,MATCH(Z39,REFERENTES!H:H,0),1))","v":""},null,null,{"$f":"IF(AC39=\"\",\"\",INDEX(REFERENTES!J:K,MATCH(AC39,REFERENTES!K:K,0),1))","v":""}]
[null,null,1,{"$f":"IF(Q40=\"\",\"\",IF(COUNTIF($Q$5:Q40, Q40)>1, \"\", Q40))","v":""},null,null,"","","",null,{"$f":"IF(J40=\"\",\"\",INDEX(REFERENTES!$Y:$Z,MATCH(J40,REFERENTES!Z:$Z,0),1))","v":""},"",null,null,36,"",{"$f":"IF(R40=\"\",\"\",IF(R40=\"\",\"\",CONCATENATE(DIGITADOR!$M$1,E40,S40)))","v":""},null,{"$f":"IF(R40=\"\",\"\",VLOOKUP(R40,'OTRAS REFERENCIAS'!$L$5:$M$155,2,FALSE))","v":""},null,{"$f":"IF(T40=\"\",\"\",VLOOKUP(T40,'OTRAS REFERENCIAS'!$A$7:$B$9,2,FALSE))","v":""},null,"",null,{"$f":"IF(M40=\"\",\"\",VLOOKUP(M40,REFERENTES!$D$2:$E$9,2,FALSE))","v":""},null,{"$f":"IF(Z40=\"\",\"\",INDEX(REFERENTES!G:H,MATCH(Z40,REFERENTES!H:H,0),1))","v":""},null,null,{"$f":"IF(AC40=\"\",\"\",INDEX(REFERENTES!J:K,MATCH(AC40,REFERENTES!K:K,0),1))","v":""}]
[null,null,1,{"$f":"IF(Q41=\"\",\"\",IF(COUNTIF($Q$5:Q41, Q41)>1, \"\", Q41))","v":""},null,null,"","","",null,{"$f":"IF(J41=\"\",\"\",INDEX(REFERENTES!$Y:$Z,MATCH(J41,REFERENTES!Z:$Z,0),1))","v":""},"",null,null,37,"",{"$f":"IF(R41=\"\",\"\",IF(R41=\"\",\"\",CONCATENATE(DIGITADOR!$M$1,E41,S41)))","v":""},null,{"$f":"IF(R41=\"\",\"\",VLOOKUP(R41,'OTRAS REFERENCIAS'!$L$5:$M$155,2,FALSE))","v":""},null,{"$f":"IF(T41=\"\",\"\",VLOOKUP(T41,'OTRAS REFERENCIAS'!$A$7:$B$9,2,FALSE))","v":""},null,"",null,{"$f":"IF(M41=\"\",\"\",VLOOKUP(M41,REFERENTES!$D$2:$E$9,2,FALSE))","v":""},null,{"$f":"IF(Z41=\"\",\"\",INDEX(REFERENTES!G:H,MATCH(Z41,REFERENTES!H:H,0),1))","v":""},null,null,{"$f":"IF(AC41=\"\",\"\",INDEX(REFERENTES!J:K,MATCH(AC41,REFERENTES!K:K,0),1))","v":""}]
[null,null,1,{"$f":"IF(Q42=\"\",\"\",IF(COUNTIF($Q$5:Q42, Q42)>1, \"\", Q42))","v":""},null,null,"","","",null,{"$f":"IF(J42=\"\",\"\",INDEX(REFERENTES!$Y:$Z,MATCH(J42,REFERENTES!Z:$Z,0),1))","v":""},"",null,null,38,"",{"$f":"IF(R42=\"\",\"\",IF(R42=\"\",\"\",CONCATENATE(DIGITADOR!$M$1,E42,S42)))","v":""},null,{"$f":"IF(R42=\"\",\"\",VLOOKUP(R42,'OTRAS REFERENCIAS'!$L$5:$M$155,2,FALSE))","v":""},null,{"$f":"IF(T42=\"\",\"\",VLOOKUP(T42,'OTRAS REFERENCIAS'!$A$7:$B$9,2,FALSE))","v":""},null,"",null,{"$f":"IF(M42=\"\",\"\",VLOOKUP(M42,REFERENTES!$D$2:$E$9,2,FALSE))","v":""},null,{"$f":"IF(Z42=\"\",\"\",INDEX(REFERENTES!G:H,MATCH(Z42,REFERENTES!H:H,0),1))","v":""},null,null,{"$f":"IF(AC42=\"\",\"\",INDEX(REFERENTES!J:K,MATCH(AC42,REFERENTES!K:K,0),1))","v":""}]
[null,null,1,{"$f":"IF(Q43=\"\",\"\",IF(COUNTIF($Q$5:Q43, Q43)>1, \"\", Q43))","v":""},null,null,"","","",null,{"$f":"IF(J43=\"\",\"\",INDEX(REFERENTES!$Y:$Z,MATCH(J43,REFERENTES!Z:$Z,0),1))","v":""},"",null,null,39,"",{"$f":"IF(R43=\"\",\"\",IF(R43=\"\",\"\",CONCATENATE(DIGITADOR!$M$1,E43,S43)))","v":""},null,{"$f":"IF(R43=\"\",\"\",VLOOKUP(R43,'OTRAS REFERENCIAS'!$L$5:$M$155,2,FALSE))","v":""},null,{"$f":"IF(T43=\"\",\"\",VLOOKUP(T43,'OTRAS REFERENCIAS'!$A$7:$B$9,2,FALSE))","v":""},null,"",null,{"$f":"IF(M43=\"\",\"\",VLOOKUP(M43,REFERENTES!$D$2:$E$9,2,FALSE))","v":""},null,{"$f":"IF(Z43=\"\",\"\",INDEX(REFERENTES!G:H,MATCH(Z43,REFERENTES!H:H,0),1))","v":""},null,null,{"$f":"IF(AC43=\"\",\"\",INDEX(REFERENTES!J:K,MATCH(AC43,REFERENTES!K:K,0),1))","v":""}]
[null,null,1,{"$f":"IF(Q44=\"\",\"\",IF(COUNTIF($Q$5:Q44, Q44)>1, \"\", Q44))","v":""},null,null,"","","",null,{"$f":"IF(J44=\"\",\"\",INDEX(REFERENTES!$Y:$Z,MATCH(J44,REFERENTES!Z:$Z,0),1))","v":""},"",null,null,40,"",{"$f":"IF(R44=\"\",\"\",IF(R44=\"\",\"\",CONCATENATE(DIGITADOR!$M$1,E44,S44)))","v":""},null,{"$f":"IF(R44=\"\",\"\",VLOOKUP(R44,'OTRAS REFERENCIAS'!$L$5:$M$155,2,FALSE))","v":""},null,{"$f":"IF(T44=\"\",\"\",VLOOKUP(T44,'OTRAS REFERENCIAS'!$A$7:$B$9,2,FALSE))","v":""},null,"",null,{"$f":"IF(M44=\"\",\"\",VLOOKUP(M44,REFERENTES!$D$2:$E$9,2,FALSE))","v":""},null,{"$f":"IF(Z44=\"\",\"\",INDEX(REFERENTES!G:H,MATCH(Z44,REFERENTES!H:H,0),1))","v":""},null,null,{"$f":"IF(AC44=\"\",\"\",INDEX(REFERENTES!J:K,MATCH(AC44,REFERENTES!K:K,0),1))","v":""}]
[null,null,1,{"$f":"IF(Q45=\"\",\"\",IF(COUNTIF($Q$5:Q45, Q45)>1, \"\", Q45))","v":""},null,null,"","","",null,{"$f":"IF(J45=\"\",\"\",INDEX(REFERENTES!$Y:$Z,MATCH(J45,REFERENTES!Z:$Z,0),1))","v":""},"",null,null,41,"",{"$f":"IF(R45=\"\",\"\",IF(R45=\"\",\"\",CONCATENATE(DIGITADOR!$M$1,E45,S45)))","v":""},null,{"$f":"IF(R45=\"\",\"\",VLOOKUP(R45,'OTRAS REFERENCIAS'!$L$5:$M$155,2,FALSE))","v":""},null,{"$f":"IF(T45=\"\",\"\",VLOOKUP(T45,'OTRAS REFERENCIAS'!$A$7:$B$9,2,FALSE))","v":""},null,"",null,{"$f":"IF(M45=\"\",\"\",VLOOKUP(M45,REFERENTES!$D$2:$E$9,2,FALSE))","v":""},null,{"$f":"IF(Z45=\"\",\"\",INDEX(REFERENTES!G:H,MATCH(Z45,REFERENTES!H:H,0),1))","v":""},null,null,{"$f":"IF(AC45=\"\",\"\",INDEX(REFERENTES!J:K,MATCH(AC45,REFERENTES!K:K,0),1))","v":""}]
[null,null,1,{"$f":"IF(Q46=\"\",\"\",IF(COUNTIF($Q$5:Q46, Q46)>1, \"\", Q46))","v":""},null,null,"","","",null,{"$f":"IF(J46=\"\",\"\",INDEX(REFERENTES!$Y:$Z,MATCH(J46,REFERENTES!Z:$Z,0),1))","v":""},"",null,null,42,"",{"$f":"IF(R46=\"\",\"\",IF(R46=\"\",\"\",CONCATENATE(DIGITADOR!$M$1,E46,S46)))","v":""},null,{"$f":"IF(R46=\"\",\"\",VLOOKUP(R46,'OTRAS REFERENCIAS'!$L$5:$M$155,2,FALSE))","v":""},null,{"$f":"IF(T46=\"\",\"\",VLOOKUP(T46,'OTRAS REFERENCIAS'!$A$7:$B$9,2,FALSE))","v":""},null,"",null,{"$f":"IF(M46=\"\",\"\",VLOOKUP(M46,REFERENTES!$D$2:$E$9,2,FALSE))","v":""},null,{"$f":"IF(Z46=\"\",\"\",INDEX(REFERENTES!G:H,MATCH(Z46,REFERENTES!H:H,0),1))","v":""},null,null,{"$f":"IF(AC46=\"\",\"\",INDEX(REFERENTES!J:K,MATCH(AC46,REFERENTES!K:K,0),1))","v":""}]
[null,null,1,{"$f":"IF(Q47=\"\",\"\",IF(COUNTIF($Q$5:Q47, Q47)>1, \"\", Q47))","v":""},null,null,"","","",null,{"$f":"IF(J47=\"\",\"\",INDEX(REFERENTES!$Y:$Z,MATCH(J47,REFERENTES!Z:$Z,0),1))","v":""},"",null,null,43,"",{"$f":"IF(R47=\"\",\"\",IF(R47=\"\",\"\",CONCATENATE(DIGITADOR!$M$1,E47,S47)))","v":""},null,{"$f":"IF(R47=\"\",\"\",VLOOKUP(R47,'OTRAS REFERENCIAS'!$L$5:$M$155,2,FALSE))","v":""},null,{"$f":"IF(T47=\"\",\"\",VLOOKUP(T47,'OTRAS REFERENCIAS'!$A$7:$B$9,2,FALSE))","v":""},null,"",null,{"$f":"IF(M47=\"\",\"\",VLOOKUP(M47,REFERENTES!$D$2:$E$9,2,FALSE))","v":""},null,{"$f":"IF(Z47=\"\",\"\",INDEX(REFERENTES!G:H,MATCH(Z47,REFERENTES!H:H,0),1))","v":""},null,null,{"$f":"IF(AC47=\"\",\"\",INDEX(REFERENTES!J:K,MATCH(AC47,REFERENTES!K:K,0),1))","v":""}]
[null,null,1,{"$f":"IF(Q48=\"\",\"\",IF(COUNTIF($Q$5:Q48, Q48)>1, \"\", Q48))","v":""},null,null,"","","",null,{"$f":"IF(J48=\"\",\"\",INDEX(REFERENTES!$Y:$Z,MATCH(J48,REFERENTES!Z:$Z,0),1))","v":""},"",null,null,44,"",{"$f":"IF(R48=\"\",\"\",IF(R48=\"\",\"\",CONCATENATE(DIGITADOR!$M$1,E48,S48)))","v":""},null,{"$f":"IF(R48=\"\",\"\",VLOOKUP(R48,'OTRAS REFERENCIAS'!$L$5:$M$155,2,FALSE))","v":""},null,{"$f":"IF(T48=\"\",\"\",VLOOKUP(T48,'OTRAS REFERENCIAS'!$A$7:$B$9,2,FALSE))","v":""},null,"",null,{"$f":"IF(M48=\"\",\"\",VLOOKUP(M48,REFERENTES!$D$2:$E$9,2,FALSE))","v":""},null,{"$f":"IF(Z48=\"\",\"\",INDEX(REFERENTES!G:H,MATCH(Z48,REFERENTES!H:H,0),1))","v":""},null,null,{"$f":"IF(AC48=\"\",\"\",INDEX(REFERENTES!J:K,MATCH(AC48,REFERENTES!K:K,0),1))","v":""}]
[null,null,1,{"$f":"IF(Q49=\"\",\"\",IF(COUNTIF($Q$5:Q49, Q49)>1, \"\", Q49))","v":""},null,null,"","","",null,{"$f":"IF(J49=\"\",\"\",INDEX(REFERENTES!$Y:$Z,MATCH(J49,REFERENTES!Z:$Z,0),1))","v":""},"",null,null,45,"",{"$f":"IF(R49=\"\",\"\",IF(R49=\"\",\"\",CONCATENATE(DIGITADOR!$M$1,E49,S49)))","v":""},null,{"$f":"IF(R49=\"\",\"\",VLOOKUP(R49,'OTRAS REFERENCIAS'!$L$5:$M$155,2,FALSE))","v":""},null,{"$f":"IF(T49=\"\",\"\",VLOOKUP(T49,'OTRAS REFERENCIAS'!$A$7:$B$9,2,FALSE))","v":""},null,"",null,{"$f":"IF(M49=\"\",\"\",VLOOKUP(M49,REFERENTES!$D$2:$E$9,2,FALSE))","v":""},null,{"$f":"IF(Z49=\"\",\"\",INDEX(REFERENTES!G:H,MATCH(Z49,REFERENTES!H:H,0),1))","v":""},null,null,{"$f":"IF(AC49=\"\",\"\",INDEX(REFERENTES!J:K,MATCH(AC49,REFERENTES!K:K,0),1))","v":""}]
[null,null,1,{"$f":"IF(Q50=\"\",\"\",IF(COUNTIF($Q$5:Q50, Q50)>1, \"\", Q50))","v":""},null,null,"","","",null,{"$f":"IF(J50=\"\",\"\",INDEX(REFERENTES!$Y:$Z,MATCH(J50,REFERENTES!Z:$Z,0),1))","v":""},"",null,null,46,"",{"$f":"IF(R50=\"\",\"\",IF(R50=\"\",\"\",CONCATENATE(DIGITADOR!$M$1,E50,S50)))","v":""},null,{"$f":"IF(R50=\"\",\"\",VLOOKUP(R50,'OTRAS REFERENCIAS'!$L$5:$M$155,2,FALSE))","v":""},null,{"$f":"IF(T50=\"\",\"\",VLOOKUP(T50,'OTRAS REFERENCIAS'!$A$7:$B$9,2,FALSE))","v":""},null,"",null,{"$f":"IF(M50=\"\",\"\",VLOOKUP(M50,REFERENTES!$D$2:$E$9,2,FALSE))","v":""},null,{"$f":"IF(Z50=\"\",\"\",INDEX(REFERENTES!G:H,MATCH(Z50,REFERENTES!H:H,0),1))","v":""},null,null,{"$f":"IF(AC50=\"\",\"\",INDEX(REFERENTES!J:K,MATCH(AC50,REFERENTES!K:K,0),1))","v":""}]
[null,null,1,{"$f":"IF(Q51=\"\",\"\",IF(COUNTIF($Q$5:Q51, Q51)>1, \"\", Q51))","v":""},null,null,"","","",null,{"$f":"IF(J51=\"\",\"\",INDEX(REFERENTES!$Y:$Z,MATCH(J51,REFERENTES!Z:$Z,0),1))","v":""},"",null,null,47,"",{"$f":"IF(R51=\"\",\"\",IF(R51=\"\",\"\",CONCATENATE(DIGITADOR!$M$1,E51,S51)))","v":""},null,{"$f":"IF(R51=\"\",\"\",VLOOKUP(R51,'OTRAS REFERENCIAS'!$L$5:$M$155,2,FALSE))","v":""},null,{"$f":"IF(T51=\"\",\"\",VLOOKUP(T51,'OTRAS REFERENCIAS'!$A$7:$B$9,2,FALSE))","v":""},null,"",null,{"$f":"IF(M51=\"\",\"\",VLOOKUP(M51,REFERENTES!$D$2:$E$9,2,FALSE))","v":""},null,{"$f":"IF(Z51=\"\",\"\",INDEX(REFERENTES!G:H,MATCH(Z51,REFERENTES!H:H,0),1))","v":""},null,null,{"$f":"IF(AC51=\"\",\"\",INDEX(REFERENTES!J:K,MATCH(AC51,REFERENTES!K:K,0),1))","v":""}]
[null,null,1,{"$f":"IF(Q52=\"\",\"\",IF(COUNTIF($Q$5:Q52, Q52)>1, \"\", Q52))","v":""},null,null,"","","",null,{"$f":"IF(J52=\"\",\"\",INDEX(REFERENTES!$Y:$Z,MATCH(J52,REFERENTES!Z:$Z,0),1))","v":""},"",null,null,48,"",{"$f":"IF(R52=\"\",\"\",IF(R52=\"\",\"\",CONCATENATE(DIGITADOR!$M$1,E52,S52)))","v":""},null,{"$f":"IF(R52=\"\",\"\",VLOOKUP(R52,'OTRAS REFERENCIAS'!$L$5:$M$155,2,FALSE))","v":""},null,{"$f":"IF(T52=\"\",\"\",VLOOKUP(T52,'OTRAS REFERENCIAS'!$A$7:$B$9,2,FALSE))","v":""},null,"",null,{"$f":"IF(M52=\"\",\"\",VLOOKUP(M52,REFERENTES!$D$2:$E$9,2,FALSE))","v":""},null,{"$f":"IF(Z52=\"\",\"\",INDEX(REFERENTES!G:H,MATCH(Z52,REFERENTES!H:H,0),1))","v":""},null,null,{"$f":"IF(AC52=\"\",\"\",INDEX(REFERENTES!J:K,MATCH(AC52,REFERENTES!K:K,0),1))","v":""}]
[null,null,1,{"$f":"IF(Q53=\"\",\"\",IF(COUNTIF($Q$5:Q53, Q53)>1, \"\", Q53))","v":""},null,null,"","","",null,{"$f":"IF(J53=\"\",\"\",INDEX(REFERENTES!$Y:$Z,MATCH(J53,REFERENTES!Z:$Z,0),1))","v":""},"",null,null,49,"",{"$f":"IF(R53=\"\",\"\",IF(R53=\"\",\"\",CONCATENATE(DIGITADOR!$M$1,E53,S53)))","v":""},null,{"$f":"IF(R53=\"\",\"\",VLOOKUP(R53,'OTRAS REFERENCIAS'!$L$5:$M$155,2,FALSE))","v":""},null,{"$f":"IF(T53=\"\",\"\",VLOOKUP(T53,'OTRAS REFERENCIAS'!$A$7:$B$9,2,FALSE))","v":""},null,"",null,{"$f":"IF(M53=\"\",\"\",VLOOKUP(M53,REFERENTES!$D$2:$E$9,2,FALSE))","v":""},null,{"$f":"IF(Z53=\"\",\"\",INDEX(REFERENTES!G:H,MATCH(Z53,REFERENTES!H:H,0),1))","v":""},null,null,{"$f":"IF(AC53=\"\",\"\",INDEX(REFERENTES!J:K,MATCH(AC53,REFERENTES!K:K,0),1))","v":""}]
[null,null,1,{"$f":"IF(Q54=\"\",\"\",IF(COUNTIF($Q$5:Q54, Q54)>1, \"\", Q54))","v":""},null,null,"","","",null,{"$f":"IF(J54=\"\",\"\",INDEX(REFERENTES!$Y:$Z,MATCH(J54,REFERENTES!Z:$Z,0),1))","v":""},"",null,null,50,"",{"$f":"IF(R54=\"\",\"\",IF(R54=\"\",\"\",CONCATENATE(DIGITADOR!$M$1,E54,S54)))","v":""},null,{"$f":"IF(R54=\"\",\"\",VLOOKUP(R54,'OTRAS REFERENCIAS'!$L$5:$M$155,2,FALSE))","v":""},null,{"$f":"IF(T54=\"\",\"\",VLOOKUP(T54,'OTRAS REFERENCIAS'!$A$7:$B$9,2,FALSE))","v":""},null,"",null,{"$f":"IF(M54=\"\",\"\",VLOOKUP(M54,REFERENTES!$D$2:$E$9,2,FALSE))","v":""},null,{"$f":"IF(Z54=\"\",\"\",INDEX(REFERENTES!G:H,MATCH(Z54,REFERENTES!H:H,0),1))","v":""},null,null,{"$f":"IF(AC54=\"\",\"\",INDEX(REFERENTES!J:K,MATCH(AC54,REFERENTES!K:K,0),1))","v":""}]
[null,null,1,{"$f":"IF(Q55=\"\",\"\",IF(COUNTIF($Q$5:Q55, Q55)>1, \"\", Q55))","v":""},null,null,"","","",null,{"$f":"IF(J55=\"\",\"\",INDEX(REFERENTES!$Y:$Z,MATCH(J55,REFERENTES!Z:$Z,0),1))","v":""},"",null,null,51,"",{"$f":"IF(R55=\"\",\"\",IF(R55=\"\",\"\",CONCATENATE(DIGITADOR!$M$1,E55,S55)))","v":""},null,{"$f":"IF(R55=\"\",\"\",VLOOKUP(R55,'OTRAS REFERENCIAS'!$L$5:$M$155,2,FALSE))","v":""},null,{"$f":"IF(T55=\"\",\"\",VLOOKUP(T55,'OTRAS REFERENCIAS'!$A$7:$B$9,2,FALSE))","v":""},null,"",null,{"$f":"IF(M55=\"\",\"\",VLOOKUP(M55,REFERENTES!$D$2:$E$9,2,FALSE))","v":""},null,{"$f":"IF(Z55=\"\",\"\",INDEX(REFERENTES!G:H,MATCH(Z55,REFERENTES!H:H,0),1))","v":""},null,null,{"$f":"IF(AC55=\"\",\"\",INDEX(REFERENTES!J:K,MATCH(AC55,REFERENTES!K:K,0),1))","v":""}]
[null,null,1,{"$f":"IF(Q56=\"\",\"\",IF(COUNTIF($Q$5:Q56, Q56)>1, \"\", Q56))","v":""},null,null,"","","",null,{"$f":"IF(J56=\"\",\"\",INDEX(REFERENTES!$Y:$Z,MATCH(J56,REFERENTES!Z:$Z,0),1))","v":""},"",null,null,52,"",{"$f":"IF(R56=\"\",\"\",IF(R56=\"\",\"\",CONCATENATE(DIGITADOR!$M$1,E56,S56)))","v":""},null,{"$f":"IF(R56=\"\",\"\",VLOOKUP(R56,'OTRAS REFERENCIAS'!$L$5:$M$155,2,FALSE))","v":""},null,{"$f":"IF(T56=\"\",\"\",VLOOKUP(T56,'OTRAS REFERENCIAS'!$A$7:$B$9,2,FALSE))","v":""},null,"",null,{"$f":"IF(M56=\"\",\"\",VLOOKUP(M56,REFERENTES!$D$2:$E$9,2,FALSE))","v":""},null,{"$f":"IF(Z56=\"\",\"\",INDEX(REFERENTES!G:H,MATCH(Z56,REFERENTES!H:H,0),1))","v":""},null,null,{"$f":"IF(AC56=\"\",\"\",INDEX(REFERENTES!J:K,MATCH(AC56,REFERENTES!K:K,0),1))","v":""}]
[null,null,1,{"$f":"IF(Q57=\"\",\"\",IF(COUNTIF($Q$5:Q57, Q57)>1, \"\", Q57))","v":""},null,null,"","","",null,{"$f":"IF(J57=\"\",\"\",INDEX(REFERENTES!$Y:$Z,MATCH(J57,REFERENTES!Z:$Z,0),1))","v":""},"",null,null,53,"",{"$f":"IF(R57=\"\",\"\",IF(R57=\"\",\"\",CONCATENATE(DIGITADOR!$M$1,E57,S57)))","v":""},null,{"$f":"IF(R57=\"\",\"\",VLOOKUP(R57,'OTRAS REFERENCIAS'!$L$5:$M$155,2,FALSE))","v":""},null,{"$f":"IF(T57=\"\",\"\",VLOOKUP(T57,'OTRAS REFERENCIAS'!$A$7:$B$9,2,FALSE))","v":""},null,"",null,{"$f":"IF(M57=\"\",\"\",VLOOKUP(M57,REFERENTES!$D$2:$E$9,2,FALSE))","v":""},null,{"$f":"IF(Z57=\"\",\"\",INDEX(REFERENTES!G:H,MATCH(Z57,REFERENTES!H:H,0),1))","v":""},null,null,{"$f":"IF(AC57=\"\",\"\",INDEX(REFERENTES!J:K,MATCH(AC57,REFERENTES!K:K,0),1))","v":""}]
[null,null,1,{"$f":"IF(Q58=\"\",\"\",IF(COUNTIF($Q$5:Q58, Q58)>1, \"\", Q58))","v":""},null,null,"","","",null,{"$f":"IF(J58=\"\",\"\",INDEX(REFERENTES!$Y:$Z,MATCH(J58,REFERENTES!Z:$Z,0),1))","v":""},"",null,null,54,"",{"$f":"IF(R58=\"\",\"\",IF(R58=\"\",\"\",CONCATENATE(DIGITADOR!$M$1,E58,S58)))","v":""},null,{"$f":"IF(R58=\"\",\"\",VLOOKUP(R58,'OTRAS REFERENCIAS'!$L$5:$M$155,2,FALSE))","v":""},null,{"$f":"IF(T58=\"\",\"\",VLOOKUP(T58,'OTRAS REFERENCIAS'!$A$7:$B$9,2,FALSE))","v":""},null,"",null,{"$f":"IF(M58=\"\",\"\",VLOOKUP(M58,REFERENTES!$D$2:$E$9,2,FALSE))","v":""},null,{"$f":"IF(Z58=\"\",\"\",INDEX(REFERENTES!G:H,MATCH(Z58,REFERENTES!H:H,0),1))","v":""},null,null,{"$f":"IF(AC58=\"\",\"\",INDEX(REFERENTES!J:K,MATCH(AC58,REFERENTES!K:K,0),1))","v":""}]
[null,null,1,{"$f":"IF(Q59=\"\",\"\",IF(COUNTIF($Q$5:Q59, Q59)>1, \"\", Q59))","v":""},null,null,"","","",null,{"$f":"IF(J59=\"\",\"\",INDEX(REFERENTES!$Y:$Z,MATCH(J59,REFERENTES!Z:$Z,0),1))","v":""},"",null,null,55,"",{"$f":"IF(R59=\"\",\"\",IF(R59=\"\",\"\",CONCATENATE(DIGITADOR!$M$1,E59,S59)))","v":""},null,{"$f":"IF(R59=\"\",\"\",VLOOKUP(R59,'OTRAS REFERENCIAS'!$L$5:$M$155,2,FALSE))","v":""},null,{"$f":"IF(T59=\"\",\"\",VLOOKUP(T59,'OTRAS REFERENCIAS'!$A$7:$B$9,2,FALSE))","v":""},null,"",null,{"$f":"IF(M59=\"\",\"\",VLOOKUP(M59,REFERENTES!$D$2:$E$9,2,FALSE))","v":""},null,{"$f":"IF(Z59=\"\",\"\",INDEX(REFERENTES!G:H,MATCH(Z59,REFERENTES!H:H,0),1))","v":""},null,null,{"$f":"IF(AC59=\"\",\"\",INDEX(REFERENTES!J:K,MATCH(AC59,REFERENTES!K:K,0),1))","v":""}]
[null,null,1,{"$f":"IF(Q60=\"\",\"\",IF(COUNTIF($Q$5:Q60, Q60)>1, \"\", Q60))","v":""},null,null,"","","",null,{"$f":"IF(J60=\"\",\"\",INDEX(REFERENTES!$Y:$Z,MATCH(J60,REFERENTES!Z:$Z,0),1))","v":""},"",null,null,56,"",{"$f":"IF(R60=\"\",\"\",IF(R60=\"\",\"\",CONCATENATE(DIGITADOR!$M$1,E60,S60)))","v":""},null,{"$f":"IF(R60=\"\",\"\",VLOOKUP(R60,'OTRAS REFERENCIAS'!$L$5:$M$155,2,FALSE))","v":""},null,{"$f":"IF(T60=\"\",\"\",VLOOKUP(T60,'OTRAS REFERENCIAS'!$A$7:$B$9,2,FALSE))","v":""},null,"",null,{"$f":"IF(M60=\"\",\"\",VLOOKUP(M60,REFERENTES!$D$2:$E$9,2,FALSE))","v":""},null,{"$f":"IF(Z60=\"\",\"\",INDEX(REFERENTES!G:H,MATCH(Z60,REFERENTES!H:H,0),1))","v":""},null,null,{"$f":"IF(AC60=\"\",\"\",INDEX(REFERENTES!J:K,MATCH(AC60,REFERENTES!K:K,0),1))","v":""}]
[null,null,1,{"$f":"IF(Q61=\"\",\"\",IF(COUNTIF($Q$5:Q61, Q61)>1, \"\", Q61))","v":""},null,null,"","","",null,{"$f":"IF(J61=\"\",\"\",INDEX(REFERENTES!$Y:$Z,MATCH(J61,REFERENTES!Z:$Z,0),1))","v":""},"",null,null,57,"",{"$f":"IF(R61=\"\",\"\",IF(R61=\"\",\"\",CONCATENATE(DIGITADOR!$M$1,E61,S61)))","v":""},null,{"$f":"IF(R61=\"\",\"\",VLOOKUP(R61,'OTRAS REFERENCIAS'!$L$5:$M$155,2,FALSE))","v":""},null,{"$f":"IF(T61=\"\",\"\",VLOOKUP(T61,'OTRAS REFERENCIAS'!$A$7:$B$9,2,FALSE))","v":""},null,"",null,{"$f":"IF(M61=\"\",\"\",VLOOKUP(M61,REFERENTES!$D$2:$E$9,2,FALSE))","v":""},null,{"$f":"IF(Z61=\"\",\"\",INDEX(REFERENTES!G:H,MATCH(Z61,REFERENTES!H:H,0),1))","v":""},null,null,{"$f":"IF(AC61=\"\",\"\",INDEX(REFERENTES!J:K,MATCH(AC61,REFERENTES!K:K,0),1))","v":""}]
[null,null,1,{"$f":"IF(Q62=\"\",\"\",IF(COUNTIF($Q$5:Q62, Q62)>1, \"\", Q62))","v":""},null,null,"","","",null,{"$f":"IF(J62=\"\",\"\",INDEX(REFERENTES!$Y:$Z,MATCH(J62,REFERENTES!Z:$Z,0),1))","v":""},"",null,null,58,"",{"$f":"IF(R62=\"\",\"\",IF(R62=\"\",\"\",CONCATENATE(DIGITADOR!$M$1,E62,S62)))","v":""},null,{"$f":"IF(R62=\"\",\"\",VLOOKUP(R62,'OTRAS REFERENCIAS'!$L$5:$M$155,2,FALSE))","v":""},null,{"$f":"IF(T62=\"\",\"\",VLOOKUP(T62,'OTRAS REFERENCIAS'!$A$7:$B$9,2,FALSE))","v":""},null,"",null,{"$f":"IF(M62=\"\",\"\",VLOOKUP(M62,REFERENTES!$D$2:$E$9,2,FALSE))","v":""},null,{"$f":"IF(Z62=\"\",\"\",INDEX(REFERENTES!G:H,MATCH(Z62,REFERENTES!H:H,0),1))","v":""},null,null,{"$f":"IF(AC62=\"\",\"\",INDEX(REFERENTES!J:K,MATCH(AC62,REFERENTES!K:K,0),1))","v":""}]
[null,null,1,{"$f":"IF(Q63=\"\",\"\",IF(COUNTIF($Q$5:Q63, Q63)>1, \"\", Q63))","v":""},null,null,"","","",null,{"$f":"IF(J63=\"\",\"\",INDEX(REFERENTES!$Y:$Z,MATCH(J63,REFERENTES!Z:$Z,0),1))","v":""},"",null,null,59,"",{"$f":"IF(R63=\"\",\"\",IF(R63=\"\",\"\",CONCATENATE(DIGITADOR!$M$1,E63,S63)))","v":""},null,{"$f":"IF(R63=\"\",\"\",VLOOKUP(R63,'OTRAS REFERENCIAS'!$L$5:$M$155,2,FALSE))","v":""},null,{"$f":"IF(T63=\"\",\"\",VLOOKUP(T63,'OTRAS REFERENCIAS'!$A$7:$B$9,2,FALSE))","v":""},null,"",null,{"$f":"IF(M63=\"\",\"\",VLOOKUP(M63,REFERENTES!$D$2:$E$9,2,FALSE))","v":""},null,{"$f":"IF(Z63=\"\",\"\",INDEX(REFERENTES!G:H,MATCH(Z63,REFERENTES!H:H,0),1))","v":""},null,null,{"$f":"IF(AC63=\"\",\"\",INDEX(REFERENTES!J:K,MATCH(AC63,REFERENTES!K:K,0),1))","v":""}]
[null,null,1,{"$f":"IF(Q64=\"\",\"\",IF(COUNTIF($Q$5:Q64, Q64)>1, \"\", Q64))","v":""},null,null,"","","",null,{"$f":"IF(J64=\"\",\"\",INDEX(REFERENTES!$Y:$Z,MATCH(J64,REFERENTES!Z:$Z,0),1))","v":""},"",null,null,60,"",{"$f":"IF(R64=\"\",\"\",IF(R64=\"\",\"\",CONCATENATE(DIGITADOR!$M$1,E64,S64)))","v":""},null,{"$f":"IF(R64=\"\",\"\",VLOOKUP(R64,'OTRAS REFERENCIAS'!$L$5:$M$155,2,FALSE))","v":""},null,{"$f":"IF(T64=\"\",\"\",VLOOKUP(T64,'OTRAS REFERENCIAS'!$A$7:$B$9,2,FALSE))","v":""},null,"",null,{"$f":"IF(M64=\"\",\"\",VLOOKUP(M64,REFERENTES!$D$2:$E$9,2,FALSE))","v":""},null,{"$f":"IF(Z64=\"\",\"\",INDEX(REFERENTES!G:H,MATCH(Z64,REFERENTES!H:H,0),1))","v":""},null,null,{"$f":"IF(AC64=\"\",\"\",INDEX(REFERENTES!J:K,MATCH(AC64,REFERENTES!K:K,0),1))","v":""}]
[null,null,1,{"$f":"IF(Q65=\"\",\"\",IF(COUNTIF($Q$5:Q65, Q65)>1, \"\", Q65))","v":""},null,null,"","","",null,{"$f":"IF(J65=\"\",\"\",INDEX(REFERENTES!$Y:$Z,MATCH(J65,REFERENTES!Z:$Z,0),1))","v":""},"",null,null,61,"",{"$f":"IF(R65=\"\",\"\",IF(R65=\"\",\"\",CONCATENATE(DIGITADOR!$M$1,E65,S65)))","v":""},null,{"$f":"IF(R65=\"\",\"\",VLOOKUP(R65,'OTRAS REFERENCIAS'!$L$5:$M$155,2,FALSE))","v":""},null,{"$f":"IF(T65=\"\",\"\",VLOOKUP(T65,'OTRAS REFERENCIAS'!$A$7:$B$9,2,FALSE))","v":""},null,"",null,{"$f":"IF(M65=\"\",\"\",VLOOKUP(M65,REFERENTES!$D$2:$E$9,2,FALSE))","v":""},null,{"$f":"IF(Z65=\"\",\"\",INDEX(REFERENTES!G:H,MATCH(Z65,REFERENTES!H:H,0),1))","v":""},null,null,{"$f":"IF(AC65=\"\",\"\",INDEX(REFERENTES!J:K,MATCH(AC65,REFERENTES!K:K,0),1))","v":""}]
[null,null,1,{"$f":"IF(Q66=\"\",\"\",IF(COUNTIF($Q$5:Q66, Q66)>1, \"\", Q66))","v":""},null,null,"","","",null,{"$f":"IF(J66=\"\",\"\",INDEX(REFERENTES!$Y:$Z,MATCH(J66,REFERENTES!Z:$Z,0),1))","v":""},"",null,null,62,"",{"$f":"IF(R66=\"\",\"\",IF(R66=\"\",\"\",CONCATENATE(DIGITADOR!$M$1,E66,S66)))","v":""},null,{"$f":"IF(R66=\"\",\"\",VLOOKUP(R66,'OTRAS REFERENCIAS'!$L$5:$M$155,2,FALSE))","v":""},null,{"$f":"IF(T66=\"\",\"\",VLOOKUP(T66,'OTRAS REFERENCIAS'!$A$7:$B$9,2,FALSE))","v":""},null,"",null,{"$f":"IF(M66=\"\",\"\",VLOOKUP(M66,REFERENTES!$D$2:$E$9,2,FALSE))","v":""},null,{"$f":"IF(Z66=\"\",\"\",INDEX(REFERENTES!G:H,MATCH(Z66,REFERENTES!H:H,0),1))","v":""},null,null,{"$f":"IF(AC66=\"\",\"\",INDEX(REFERENTES!J:K,MATCH(AC66,REFERENTES!K:K,0),1))","v":""}]
[null,null,1,{"$f":"IF(Q67=\"\",\"\",IF(COUNTIF($Q$5:Q67, Q67)>1, \"\", Q67))","v":""},null,null,"","","",null,{"$f":"IF(J67=\"\",\"\",INDEX(REFERENTES!$Y:$Z,MATCH(J67,REFERENTES!Z:$Z,0),1))","v":""},"",null,null,63,"",{"$f":"IF(R67=\"\",\"\",IF(R67=\"\",\"\",CONCATENATE(DIGITADOR!$M$1,E67,S67)))","v":""},null,{"$f":"IF(R67=\"\",\"\",VLOOKUP(R67,'OTRAS REFERENCIAS'!$L$5:$M$155,2,FALSE))","v":""},null,{"$f":"IF(T67=\"\",\"\",VLOOKUP(T67,'OTRAS REFERENCIAS'!$A$7:$B$9,2,FALSE))","v":""},null,"",null,{"$f":"IF(M67=\"\",\"\",VLOOKUP(M67,REFERENTES!$D$2:$E$9,2,FALSE))","v":""},null,{"$f":"IF(Z67=\"\",\"\",INDEX(REFERENTES!G:H,MATCH(Z67,REFERENTES!H:H,0),1))","v":""},null,null,{"$f":"IF(AC67=\"\",\"\",INDEX(REFERENTES!J:K,MATCH(AC67,REFERENTES!K:K,0),1))","v":""}]
[null,null,1,{"$f":"IF(Q68=\"\",\"\",IF(COUNTIF($Q$5:Q68, Q68)>1, \"\", Q68))","v":""},null,null,"","","",null,{"$f":"IF(J68=\"\",\"\",INDEX(REFERENTES!$Y:$Z,MATCH(J68,REFERENTES!Z:$Z,0),1))","v":""},"",null,null,64,"",{"$f":"IF(R68=\"\",\"\",IF(R68=\"\",\"\",CONCATENATE(DIGITADOR!$M$1,E68,S68)))","v":""},null,{"$f":"IF(R68=\"\",\"\",VLOOKUP(R68,'OTRAS REFERENCIAS'!$L$5:$M$155,2,FALSE))","v":""},null,{"$f":"IF(T68=\"\",\"\",VLOOKUP(T68,'OTRAS REFERENCIAS'!$A$7:$B$9,2,FALSE))","v":""},null,"",null,{"$f":"IF(M68=\"\",\"\",VLOOKUP(M68,REFERENTES!$D$2:$E$9,2,FALSE))","v":""},null,{"$f":"IF(Z68=\"\",\"\",INDEX(REFERENTES!G:H,MATCH(Z68,REFERENTES!H:H,0),1))","v":""},null,null,{"$f":"IF(AC68=\"\",\"\",INDEX(REFERENTES!J:K,MATCH(AC68,REFERENTES!K:K,0),1))","v":""}]
[null,null,{"$f":"IF(L69=L68,C68,C68+1)","v":1},{"$f":"IF(Q69=\"\",\"\",IF(COUNTIF($Q$5:Q69, Q69)>1, \"\", Q69))","v":""},null,null,"",{"$f":"IF(G69<>\"\",MONTH(G69),\"\")","v":""},"",null,{"$f":"IF(J69=\"\",\"\",INDEX(REFERENTES!$Y:$Z,MATCH(J69,REFERENTES!Z:$Z,0),1))","v":""},{"$f":"IF(G69=\"\",\"\",CONCATENATE(G69,S69,K69,X69))","v":""},null,null,65,"",{"$f":"IF(R69=\"\",\"\",IF(R69=\"\",\"\",CONCATENATE(DIGITADOR!$M$1,E69,S69)))","v":""},null,{"$f":"IF(R69=\"\",\"\",VLOOKUP(R69,'OTRAS REFERENCIAS'!$L$5:$M$155,2,FALSE))","v":""},null,{"$f":"IF(T69=\"\",\"\",VLOOKUP(T69,'OTRAS REFERENCIAS'!$A$7:$B$9,2,FALSE))","v":""},null,"",null,{"$f":"IF(M69=\"\",\"\",VLOOKUP(M69,REFERENTES!$D$2:$E$9,2,FALSE))","v":""},null,{"$f":"IF(Z69=\"\",\"\",INDEX(REFERENTES!G:H,MATCH(Z69,REFERENTES!H:H,0),1))","v":""},null,null,{"$f":"IF(AC69=\"\",\"\",INDEX(REFERENTES!J:K,MATCH(AC69,REFERENTES!K:K,0),1))","v":""}]
[null,null,1,{"$f":"IF(Q70=\"\",\"\",IF(COUNTIF($Q$5:Q70, Q70)>1, \"\", Q70))","v":""},null,null,{"$f":"IF(E70=\"\",\"\",E70+F70)","v":""},"",{"$f":"IF(D70=\"\",\"\",1)","v":""},null,{"$f":"IF(J70=\"\",\"\",INDEX(REFERENTES!$Y:$Z,MATCH(J70,REFERENTES!Z:$Z,0),1))","v":""},"",null,null,66,{"$f":"IF(Q70=\"\",\"\",CONCATENATE(Q70,ROW()-2))","v":""},{"$f":"IF(R70=\"\",\"\",IF(R70=\"\",\"\",CONCATENATE(DIGITADOR!$M$1,E70,S70)))","v":""},null,{"$f":"IF(R70=\"\",\"\",VLOOKUP(R70,'OTRAS REFERENCIAS'!$L$5:$M$155,2,FALSE))","v":""},null,{"$f":"IF(T70=\"\",\"\",VLOOKUP(T70,'OTRAS REFERENCIAS'!$A$7:$B$9,2,FALSE))","v":""},null,{"$f":"CONCATENATE(U70,V70)","v":""},null,{"$f":"IF(M70=\"\",\"\",VLOOKUP(M70,REFERENTES!$D$2:$E$9,2,FALSE))","v":""},null,{"$f":"IF(Z70=\"\",\"\",INDEX(REFERENTES!G:H,MATCH(Z70,REFERENTES!H:H,0),1))","v":""},null,null,{"$f":"IF(AC70=\"\",\"\",INDEX(REFERENTES!J:K,MATCH(AC70,REFERENTES!K:K,0),1))","v":""}]
[null,null,1,{"$f":"IF(Q71=\"\",\"\",IF(COUNTIF($Q$5:Q71, Q71)>1, \"\", Q71))","v":""},null,null,"","","",null,{"$f":"IF(J71=\"\",\"\",INDEX(REFERENTES!$Y:$Z,MATCH(J71,REFERENTES!Z:$Z,0),1))","v":""},"",null,null,67,"",{"$f":"IF(R71=\"\",\"\",IF(R71=\"\",\"\",CONCATENATE(DIGITADOR!$M$1,E71,S71)))","v":""},null,{"$f":"IF(R71=\"\",\"\",VLOOKUP(R71,'OTRAS REFERENCIAS'!$L$5:$M$155,2,FALSE))","v":""},null,{"$f":"IF(T71=\"\",\"\",VLOOKUP(T71,'OTRAS REFERENCIAS'!$A$7:$B$9,2,FALSE))","v":""},null,"",null,{"$f":"IF(M71=\"\",\"\",VLOOKUP(M71,REFERENTES!$D$2:$E$9,2,FALSE))","v":""},null,{"$f":"IF(Z71=\"\",\"\",INDEX(REFERENTES!G:H,MATCH(Z71,REFERENTES!H:H,0),1))","v":""},null,null,{"$f":"IF(AC71=\"\",\"\",INDEX(REFERENTES!J:K,MATCH(AC71,REFERENTES!K:K,0),1))","v":""}]
[null,null,1,{"$f":"IF(Q72=\"\",\"\",IF(COUNTIF($Q$5:Q72, Q72)>1, \"\", Q72))","v":""},null,null,"","","",null,{"$f":"IF(J72=\"\",\"\",INDEX(REFERENTES!$Y:$Z,MATCH(J72,REFERENTES!Z:$Z,0),1))","v":""},"",null,null,68,"",{"$f":"IF(R72=\"\",\"\",IF(R72=\"\",\"\",CONCATENATE(DIGITADOR!$M$1,E72,S72)))","v":""},null,{"$f":"IF(R72=\"\",\"\",VLOOKUP(R72,'OTRAS REFERENCIAS'!$L$5:$M$155,2,FALSE))","v":""},null,{"$f":"IF(T72=\"\",\"\",VLOOKUP(T72,'OTRAS REFERENCIAS'!$A$7:$B$9,2,FALSE))","v":""},null,"",null,{"$f":"IF(M72=\"\",\"\",VLOOKUP(M72,REFERENTES!$D$2:$E$9,2,FALSE))","v":""},null,{"$f":"IF(Z72=\"\",\"\",INDEX(REFERENTES!G:H,MATCH(Z72,REFERENTES!H:H,0),1))","v":""},null,null,{"$f":"IF(AC72=\"\",\"\",INDEX(REFERENTES!J:K,MATCH(AC72,REFERENTES!K:K,0),1))","v":""}]
[null,null,1,{"$f":"IF(Q73=\"\",\"\",IF(COUNTIF($Q$5:Q73, Q73)>1, \"\", Q73))","v":""},null,null,"","","",null,{"$f":"IF(J73=\"\",\"\",INDEX(REFERENTES!$Y:$Z,MATCH(J73,REFERENTES!Z:$Z,0),1))","v":""},"",null,null,69,"",{"$f":"IF(R73=\"\",\"\",IF(R73=\"\",\"\",CONCATENATE(DIGITADOR!$M$1,E73,S73)))","v":""},null,{"$f":"IF(R73=\"\",\"\",VLOOKUP(R73,'OTRAS REFERENCIAS'!$L$5:$M$155,2,FALSE))","v":""},null,{"$f":"IF(T73=\"\",\"\",VLOOKUP(T73,'OTRAS REFERENCIAS'!$A$7:$B$9,2,FALSE))","v":""},null,"",null,{"$f":"IF(M73=\"\",\"\",VLOOKUP(M73,REFERENTES!$D$2:$E$9,2,FALSE))","v":""},null,{"$f":"IF(Z73=\"\",\"\",INDEX(REFERENTES!G:H,MATCH(Z73,REFERENTES!H:H,0),1))","v":""},null,null,{"$f":"IF(AC73=\"\",\"\",INDEX(REFERENTES!J:K,MATCH(AC73,REFERENTES!K:K,0),1))","v":""}]
[null,null,1,{"$f":"IF(Q74=\"\",\"\",IF(COUNTIF($Q$5:Q74, Q74)>1, \"\", Q74))","v":""},null,null,"","","",null,{"$f":"IF(J74=\"\",\"\",INDEX(REFERENTES!$Y:$Z,MATCH(J74,REFERENTES!Z:$Z,0),1))","v":""},"",null,null,70,"",{"$f":"IF(R74=\"\",\"\",IF(R74=\"\",\"\",CONCATENATE(DIGITADOR!$M$1,E74,S74)))","v":""},null,{"$f":"IF(R74=\"\",\"\",VLOOKUP(R74,'OTRAS REFERENCIAS'!$L$5:$M$155,2,FALSE))","v":""},null,{"$f":"IF(T74=\"\",\"\",VLOOKUP(T74,'OTRAS REFERENCIAS'!$A$7:$B$9,2,FALSE))","v":""},null,"",null,{"$f":"IF(M74=\"\",\"\",VLOOKUP(M74,REFERENTES!$D$2:$E$9,2,FALSE))","v":""},null,{"$f":"IF(Z74=\"\",\"\",INDEX(REFERENTES!G:H,MATCH(Z74,REFERENTES!H:H,0),1))","v":""},null,null,{"$f":"IF(AC74=\"\",\"\",INDEX(REFERENTES!J:K,MATCH(AC74,REFERENTES!K:K,0),1))","v":""}]
[null,null,1,{"$f":"IF(Q75=\"\",\"\",IF(COUNTIF($Q$5:Q75, Q75)>1, \"\", Q75))","v":""},null,null,"","","",null,{"$f":"IF(J75=\"\",\"\",INDEX(REFERENTES!$Y:$Z,MATCH(J75,REFERENTES!Z:$Z,0),1))","v":""},"",null,null,71,"",{"$f":"IF(R75=\"\",\"\",IF(R75=\"\",\"\",CONCATENATE(DIGITADOR!$M$1,E75,S75)))","v":""},null,{"$f":"IF(R75=\"\",\"\",VLOOKUP(R75,'OTRAS REFERENCIAS'!$L$5:$M$155,2,FALSE))","v":""},null,{"$f":"IF(T75=\"\",\"\",VLOOKUP(T75,'OTRAS REFERENCIAS'!$A$7:$B$9,2,FALSE))","v":""},null,"",null,{"$f":"IF(M75=\"\",\"\",VLOOKUP(M75,REFERENTES!$D$2:$E$9,2,FALSE))","v":""},null,{"$f":"IF(Z75=\"\",\"\",INDEX(REFERENTES!G:H,MATCH(Z75,REFERENTES!H:H,0),1))","v":""},null,null,{"$f":"IF(AC75=\"\",\"\",INDEX(REFERENTES!J:K,MATCH(AC75,REFERENTES!K:K,0),1))","v":""}]
[null,null,1,{"$f":"IF(Q76=\"\",\"\",IF(COUNTIF($Q$5:Q76, Q76)>1, \"\", Q76))","v":""},null,null,"","","",null,{"$f":"IF(J76=\"\",\"\",INDEX(REFERENTES!$Y:$Z,MATCH(J76,REFERENTES!Z:$Z,0),1))","v":""},"",null,null,72,"",{"$f":"IF(R76=\"\",\"\",IF(R76=\"\",\"\",CONCATENATE(DIGITADOR!$M$1,E76,S76)))","v":""},null,{"$f":"IF(R76=\"\",\"\",VLOOKUP(R76,'OTRAS REFERENCIAS'!$L$5:$M$155,2,FALSE))","v":""},null,{"$f":"IF(T76=\"\",\"\",VLOOKUP(T76,'OTRAS REFERENCIAS'!$A$7:$B$9,2,FALSE))","v":""},null,"",null,{"$f":"IF(M76=\"\",\"\",VLOOKUP(M76,REFERENTES!$D$2:$E$9,2,FALSE))","v":""},null,{"$f":"IF(Z76=\"\",\"\",INDEX(REFERENTES!G:H,MATCH(Z76,REFERENTES!H:H,0),1))","v":""},null,null,{"$f":"IF(AC76=\"\",\"\",INDEX(REFERENTES!J:K,MATCH(AC76,REFERENTES!K:K,0),1))","v":""}]
[null,null,1,{"$f":"IF(Q77=\"\",\"\",IF(COUNTIF($Q$5:Q77, Q77)>1, \"\", Q77))","v":""},null,null,"","","",null,{"$f":"IF(J77=\"\",\"\",INDEX(REFERENTES!$Y:$Z,MATCH(J77,REFERENTES!Z:$Z,0),1))","v":""},"",null,null,73,"",{"$f":"IF(R77=\"\",\"\",IF(R77=\"\",\"\",CONCATENATE(DIGITADOR!$M$1,E77,S77)))","v":""},null,{"$f":"IF(R77=\"\",\"\",VLOOKUP(R77,'OTRAS REFERENCIAS'!$L$5:$M$155,2,FALSE))","v":""},null,{"$f":"IF(T77=\"\",\"\",VLOOKUP(T77,'OTRAS REFERENCIAS'!$A$7:$B$9,2,FALSE))","v":""},null,"",null,{"$f":"IF(M77=\"\",\"\",VLOOKUP(M77,REFERENTES!$D$2:$E$9,2,FALSE))","v":""},null,{"$f":"IF(Z77=\"\",\"\",INDEX(REFERENTES!G:H,MATCH(Z77,REFERENTES!H:H,0),1))","v":""},null,null,{"$f":"IF(AC77=\"\",\"\",INDEX(REFERENTES!J:K,MATCH(AC77,REFERENTES!K:K,0),1))","v":""}]
[null,null,1,{"$f":"IF(Q78=\"\",\"\",IF(COUNTIF($Q$5:Q78, Q78)>1, \"\", Q78))","v":""},null,null,"","","",null,{"$f":"IF(J78=\"\",\"\",INDEX(REFERENTES!$Y:$Z,MATCH(J78,REFERENTES!Z:$Z,0),1))","v":""},"",null,null,74,"",{"$f":"IF(R78=\"\",\"\",IF(R78=\"\",\"\",CONCATENATE(DIGITADOR!$M$1,E78,S78)))","v":""},null,{"$f":"IF(R78=\"\",\"\",VLOOKUP(R78,'OTRAS REFERENCIAS'!$L$5:$M$155,2,FALSE))","v":""},null,{"$f":"IF(T78=\"\",\"\",VLOOKUP(T78,'OTRAS REFERENCIAS'!$A$7:$B$9,2,FALSE))","v":""},null,"",null,{"$f":"IF(M78=\"\",\"\",VLOOKUP(M78,REFERENTES!$D$2:$E$9,2,FALSE))","v":""},null,{"$f":"IF(Z78=\"\",\"\",INDEX(REFERENTES!G:H,MATCH(Z78,REFERENTES!H:H,0),1))","v":""},null,null,{"$f":"IF(AC78=\"\",\"\",INDEX(REFERENTES!J:K,MATCH(AC78,REFERENTES!K:K,0),1))","v":""}]
[null,null,1,{"$f":"IF(Q79=\"\",\"\",IF(COUNTIF($Q$5:Q79, Q79)>1, \"\", Q79))","v":""},null,null,"","","",null,{"$f":"IF(J79=\"\",\"\",INDEX(REFERENTES!$Y:$Z,MATCH(J79,REFERENTES!Z:$Z,0),1))","v":""},"",null,null,75,"",{"$f":"IF(R79=\"\",\"\",IF(R79=\"\",\"\",CONCATENATE(DIGITADOR!$M$1,E79,S79)))","v":""},null,{"$f":"IF(R79=\"\",\"\",VLOOKUP(R79,'OTRAS REFERENCIAS'!$L$5:$M$155,2,FALSE))","v":""},null,{"$f":"IF(T79=\"\",\"\",VLOOKUP(T79,'OTRAS REFERENCIAS'!$A$7:$B$9,2,FALSE))","v":""},null,"",null,{"$f":"IF(M79=\"\",\"\",VLOOKUP(M79,REFERENTES!$D$2:$E$9,2,FALSE))","v":""},null,{"$f":"IF(Z79=\"\",\"\",INDEX(REFERENTES!G:H,MATCH(Z79,REFERENTES!H:H,0),1))","v":""},null,null,{"$f":"IF(AC79=\"\",\"\",INDEX(REFERENTES!J:K,MATCH(AC79,REFERENTES!K:K,0),1))","v":""}]
[null,null,1,{"$f":"IF(Q80=\"\",\"\",IF(COUNTIF($Q$5:Q80, Q80)>1, \"\", Q80))","v":""},null,null,"","","",null,{"$f":"IF(J80=\"\",\"\",INDEX(REFERENTES!$Y:$Z,MATCH(J80,REFERENTES!Z:$Z,0),1))","v":""},"",null,null,76,"",{"$f":"IF(R80=\"\",\"\",IF(R80=\"\",\"\",CONCATENATE(DIGITADOR!$M$1,E80,S80)))","v":""},null,{"$f":"IF(R80=\"\",\"\",VLOOKUP(R80,'OTRAS REFERENCIAS'!$L$5:$M$155,2,FALSE))","v":""},null,{"$f":"IF(T80=\"\",\"\",VLOOKUP(T80,'OTRAS REFERENCIAS'!$A$7:$B$9,2,FALSE))","v":""},null,"",null,{"$f":"IF(M80=\"\",\"\",VLOOKUP(M80,REFERENTES!$D$2:$E$9,2,FALSE))","v":""},null,{"$f":"IF(Z80=\"\",\"\",INDEX(REFERENTES!G:H,MATCH(Z80,REFERENTES!H:H,0),1))","v":""},null,null,{"$f":"IF(AC80=\"\",\"\",INDEX(REFERENTES!J:K,MATCH(AC80,REFERENTES!K:K,0),1))","v":""}]
[null,null,1,{"$f":"IF(Q81=\"\",\"\",IF(COUNTIF($Q$5:Q81, Q81)>1, \"\", Q81))","v":""},null,null,"","","",null,{"$f":"IF(J81=\"\",\"\",INDEX(REFERENTES!$Y:$Z,MATCH(J81,REFERENTES!Z:$Z,0),1))","v":""},"",null,null,77,"",{"$f":"IF(R81=\"\",\"\",IF(R81=\"\",\"\",CONCATENATE(DIGITADOR!$M$1,E81,S81)))","v":""},null,{"$f":"IF(R81=\"\",\"\",VLOOKUP(R81,'OTRAS REFERENCIAS'!$L$5:$M$155,2,FALSE))","v":""},null,{"$f":"IF(T81=\"\",\"\",VLOOKUP(T81,'OTRAS REFERENCIAS'!$A$7:$B$9,2,FALSE))","v":""},null,"",null,{"$f":"IF(M81=\"\",\"\",VLOOKUP(M81,REFERENTES!$D$2:$E$9,2,FALSE))","v":""},null,{"$f":"IF(Z81=\"\",\"\",INDEX(REFERENTES!G:H,MATCH(Z81,REFERENTES!H:H,0),1))","v":""},null,null,{"$f":"IF(AC81=\"\",\"\",INDEX(REFERENTES!J:K,MATCH(AC81,REFERENTES!K:K,0),1))","v":""}]
[null,null,1,{"$f":"IF(Q82=\"\",\"\",IF(COUNTIF($Q$5:Q82, Q82)>1, \"\", Q82))","v":""},null,null,"","","",null,{"$f":"IF(J82=\"\",\"\",INDEX(REFERENTES!$Y:$Z,MATCH(J82,REFERENTES!Z:$Z,0),1))","v":""},"",null,null,78,"",{"$f":"IF(R82=\"\",\"\",IF(R82=\"\",\"\",CONCATENATE(DIGITADOR!$M$1,E82,S82)))","v":""},null,{"$f":"IF(R82=\"\",\"\",VLOOKUP(R82,'OTRAS REFERENCIAS'!$L$5:$M$155,2,FALSE))","v":""},null,{"$f":"IF(T82=\"\",\"\",VLOOKUP(T82,'OTRAS REFERENCIAS'!$A$7:$B$9,2,FALSE))","v":""},null,"",null,{"$f":"IF(M82=\"\",\"\",VLOOKUP(M82,REFERENTES!$D$2:$E$9,2,FALSE))","v":""},null,{"$f":"IF(Z82=\"\",\"\",INDEX(REFERENTES!G:H,MATCH(Z82,REFERENTES!H:H,0),1))","v":""},null,null,{"$f":"IF(AC82=\"\",\"\",INDEX(REFERENTES!J:K,MATCH(AC82,REFERENTES!K:K,0),1))","v":""}]
[null,null,1,{"$f":"IF(Q83=\"\",\"\",IF(COUNTIF($Q$5:Q83, Q83)>1, \"\", Q83))","v":""},null,null,"","","",null,{"$f":"IF(J83=\"\",\"\",INDEX(REFERENTES!$Y:$Z,MATCH(J83,REFERENTES!Z:$Z,0),1))","v":""},"",null,null,79,"",{"$f":"IF(R83=\"\",\"\",IF(R83=\"\",\"\",CONCATENATE(DIGITADOR!$M$1,E83,S83)))","v":""},null,{"$f":"IF(R83=\"\",\"\",VLOOKUP(R83,'OTRAS REFERENCIAS'!$L$5:$M$155,2,FALSE))","v":""},null,{"$f":"IF(T83=\"\",\"\",VLOOKUP(T83,'OTRAS REFERENCIAS'!$A$7:$B$9,2,FALSE))","v":""},null,"",null,{"$f":"IF(M83=\"\",\"\",VLOOKUP(M83,REFERENTES!$D$2:$E$9,2,FALSE))","v":""},null,{"$f":"IF(Z83=\"\",\"\",INDEX(REFERENTES!G:H,MATCH(Z83,REFERENTES!H:H,0),1))","v":""},null,null,{"$f":"IF(AC83=\"\",\"\",INDEX(REFERENTES!J:K,MATCH(AC83,REFERENTES!K:K,0),1))","v":""}]
[null,null,1,{"$f":"IF(Q84=\"\",\"\",IF(COUNTIF($Q$5:Q84, Q84)>1, \"\", Q84))","v":""},null,null,"","","",null,{"$f":"IF(J84=\"\",\"\",INDEX(REFERENTES!$Y:$Z,MATCH(J84,REFERENTES!Z:$Z,0),1))","v":""},"",null,null,80,"",{"$f":"IF(R84=\"\",\"\",IF(R84=\"\",\"\",CONCATENATE(DIGITADOR!$M$1,E84,S84)))","v":""},null,{"$f":"IF(R84=\"\",\"\",VLOOKUP(R84,'OTRAS REFERENCIAS'!$L$5:$M$155,2,FALSE))","v":""},null,{"$f":"IF(T84=\"\",\"\",VLOOKUP(T84,'OTRAS REFERENCIAS'!$A$7:$B$9,2,FALSE))","v":""},null,"",null,{"$f":"IF(M84=\"\",\"\",VLOOKUP(M84,REFERENTES!$D$2:$E$9,2,FALSE))","v":""},null,{"$f":"IF(Z84=\"\",\"\",INDEX(REFERENTES!G:H,MATCH(Z84,REFERENTES!H:H,0),1))","v":""},null,null,{"$f":"IF(AC84=\"\",\"\",INDEX(REFERENTES!J:K,MATCH(AC84,REFERENTES!K:K,0),1))","v":""}]
[null,null,1,{"$f":"IF(Q85=\"\",\"\",IF(COUNTIF($Q$5:Q85, Q85)>1, \"\", Q85))","v":""},null,null,"","","",null,{"$f":"IF(J85=\"\",\"\",INDEX(REFERENTES!$Y:$Z,MATCH(J85,REFERENTES!Z:$Z,0),1))","v":""},"",null,null,81,"",{"$f":"IF(R85=\"\",\"\",IF(R85=\"\",\"\",CONCATENATE(DIGITADOR!$M$1,E85,S85)))","v":""},null,{"$f":"IF(R85=\"\",\"\",VLOOKUP(R85,'OTRAS REFERENCIAS'!$L$5:$M$155,2,FALSE))","v":""},null,{"$f":"IF(T85=\"\",\"\",VLOOKUP(T85,'OTRAS REFERENCIAS'!$A$7:$B$9,2,FALSE))","v":""},null,"",null,{"$f":"IF(M85=\"\",\"\",VLOOKUP(M85,REFERENTES!$D$2:$E$9,2,FALSE))","v":""},null,{"$f":"IF(Z85=\"\",\"\",INDEX(REFERENTES!G:H,MATCH(Z85,REFERENTES!H:H,0),1))","v":""},null,null,{"$f":"IF(AC85=\"\",\"\",INDEX(REFERENTES!J:K,MATCH(AC85,REFERENTES!K:K,0),1))","v":""}]
[null,null,1,{"$f":"IF(Q86=\"\",\"\",IF(COUNTIF($Q$5:Q86, Q86)>1, \"\", Q86))","v":""},null,null,"","","",null,{"$f":"IF(J86=\"\",\"\",INDEX(REFERENTES!$Y:$Z,MATCH(J86,REFERENTES!Z:$Z,0),1))","v":""},"",null,null,82,"",{"$f":"IF(R86=\"\",\"\",IF(R86=\"\",\"\",CONCATENATE(DIGITADOR!$M$1,E86,S86)))","v":""},null,{"$f":"IF(R86=\"\",\"\",VLOOKUP(R86,'OTRAS REFERENCIAS'!$L$5:$M$155,2,FALSE))","v":""},null,{"$f":"IF(T86=\"\",\"\",VLOOKUP(T86,'OTRAS REFERENCIAS'!$A$7:$B$9,2,FALSE))","v":""},null,"",null,{"$f":"IF(M86=\"\",\"\",VLOOKUP(M86,REFERENTES!$D$2:$E$9,2,FALSE))","v":""},null,{"$f":"IF(Z86=\"\",\"\",INDEX(REFERENTES!G:H,MATCH(Z86,REFERENTES!H:H,0),1))","v":""},null,null,{"$f":"IF(AC86=\"\",\"\",INDEX(REFERENTES!J:K,MATCH(AC86,REFERENTES!K:K,0),1))","v":""}]
[null,null,1,{"$f":"IF(Q87=\"\",\"\",IF(COUNTIF($Q$5:Q87, Q87)>1, \"\", Q87))","v":""},null,null,"","","",null,{"$f":"IF(J87=\"\",\"\",INDEX(REFERENTES!$Y:$Z,MATCH(J87,REFERENTES!Z:$Z,0),1))","v":""},"",null,null,83,"",{"$f":"IF(R87=\"\",\"\",IF(R87=\"\",\"\",CONCATENATE(DIGITADOR!$M$1,E87,S87)))","v":""},null,{"$f":"IF(R87=\"\",\"\",VLOOKUP(R87,'OTRAS REFERENCIAS'!$L$5:$M$155,2,FALSE))","v":""},null,{"$f":"IF(T87=\"\",\"\",VLOOKUP(T87,'OTRAS REFERENCIAS'!$A$7:$B$9,2,FALSE))","v":""},null,"",null,{"$f":"IF(M87=\"\",\"\",VLOOKUP(M87,REFERENTES!$D$2:$E$9,2,FALSE))","v":""},null,{"$f":"IF(Z87=\"\",\"\",INDEX(REFERENTES!G:H,MATCH(Z87,REFERENTES!H:H,0),1))","v":""},null,null,{"$f":"IF(AC87=\"\",\"\",INDEX(REFERENTES!J:K,MATCH(AC87,REFERENTES!K:K,0),1))","v":""}]
[null,null,1,{"$f":"IF(Q88=\"\",\"\",IF(COUNTIF($Q$5:Q88, Q88)>1, \"\", Q88))","v":""},null,null,"","","",null,{"$f":"IF(J88=\"\",\"\",INDEX(REFERENTES!$Y:$Z,MATCH(J88,REFERENTES!Z:$Z,0),1))","v":""},"",null,null,84,"",{"$f":"IF(R88=\"\",\"\",IF(R88=\"\",\"\",CONCATENATE(DIGITADOR!$M$1,E88,S88)))","v":""},null,{"$f":"IF(R88=\"\",\"\",VLOOKUP(R88,'OTRAS REFERENCIAS'!$L$5:$M$155,2,FALSE))","v":""},null,{"$f":"IF(T88=\"\",\"\",VLOOKUP(T88,'OTRAS REFERENCIAS'!$A$7:$B$9,2,FALSE))","v":""},null,"",null,{"$f":"IF(M88=\"\",\"\",VLOOKUP(M88,REFERENTES!$D$2:$E$9,2,FALSE))","v":""},null,{"$f":"IF(Z88=\"\",\"\",INDEX(REFERENTES!G:H,MATCH(Z88,REFERENTES!H:H,0),1))","v":""},null,null,{"$f":"IF(AC88=\"\",\"\",INDEX(REFERENTES!J:K,MATCH(AC88,REFERENTES!K:K,0),1))","v":""}]
[null,null,1,{"$f":"IF(Q89=\"\",\"\",IF(COUNTIF($Q$5:Q89, Q89)>1, \"\", Q89))","v":""},null,null,"","","",null,{"$f":"IF(J89=\"\",\"\",INDEX(REFERENTES!$Y:$Z,MATCH(J89,REFERENTES!Z:$Z,0),1))","v":""},"",null,null,85,"",{"$f":"IF(R89=\"\",\"\",IF(R89=\"\",\"\",CONCATENATE(DIGITADOR!$M$1,E89,S89)))","v":""},null,{"$f":"IF(R89=\"\",\"\",VLOOKUP(R89,'OTRAS REFERENCIAS'!$L$5:$M$155,2,FALSE))","v":""},null,{"$f":"IF(T89=\"\",\"\",VLOOKUP(T89,'OTRAS REFERENCIAS'!$A$7:$B$9,2,FALSE))","v":""},null,"",null,{"$f":"IF(M89=\"\",\"\",VLOOKUP(M89,REFERENTES!$D$2:$E$9,2,FALSE))","v":""},null,{"$f":"IF(Z89=\"\",\"\",INDEX(REFERENTES!G:H,MATCH(Z89,REFERENTES!H:H,0),1))","v":""},null,null,{"$f":"IF(AC89=\"\",\"\",INDEX(REFERENTES!J:K,MATCH(AC89,REFERENTES!K:K,0),1))","v":""}]
[null,null,1,{"$f":"IF(Q90=\"\",\"\",IF(COUNTIF($Q$5:Q90, Q90)>1, \"\", Q90))","v":""},null,null,"","","",null,{"$f":"IF(J90=\"\",\"\",INDEX(REFERENTES!$Y:$Z,MATCH(J90,REFERENTES!Z:$Z,0),1))","v":""},"",null,null,86,"",{"$f":"IF(R90=\"\",\"\",IF(R90=\"\",\"\",CONCATENATE(DIGITADOR!$M$1,E90,S90)))","v":""},null,{"$f":"IF(R90=\"\",\"\",VLOOKUP(R90,'OTRAS REFERENCIAS'!$L$5:$M$155,2,FALSE))","v":""},null,{"$f":"IF(T90=\"\",\"\",VLOOKUP(T90,'OTRAS REFERENCIAS'!$A$7:$B$9,2,FALSE))","v":""},null,"",null,{"$f":"IF(M90=\"\",\"\",VLOOKUP(M90,REFERENTES!$D$2:$E$9,2,FALSE))","v":""},null,{"$f":"IF(Z90=\"\",\"\",INDEX(REFERENTES!G:H,MATCH(Z90,REFERENTES!H:H,0),1))","v":""},null,null,{"$f":"IF(AC90=\"\",\"\",INDEX(REFERENTES!J:K,MATCH(AC90,REFERENTES!K:K,0),1))","v":""}]
[null,null,1,{"$f":"IF(Q91=\"\",\"\",IF(COUNTIF($Q$5:Q91, Q91)>1, \"\", Q91))","v":""},null,null,"","","",null,{"$f":"IF(J91=\"\",\"\",INDEX(REFERENTES!$Y:$Z,MATCH(J91,REFERENTES!Z:$Z,0),1))","v":""},"",null,null,87,"",{"$f":"IF(R91=\"\",\"\",IF(R91=\"\",\"\",CONCATENATE(DIGITADOR!$M$1,E91,S91)))","v":""},null,{"$f":"IF(R91=\"\",\"\",VLOOKUP(R91,'OTRAS REFERENCIAS'!$L$5:$M$155,2,FALSE))","v":""},null,{"$f":"IF(T91=\"\",\"\",VLOOKUP(T91,'OTRAS REFERENCIAS'!$A$7:$B$9,2,FALSE))","v":""},null,"",null,{"$f":"IF(M91=\"\",\"\",VLOOKUP(M91,REFERENTES!$D$2:$E$9,2,FALSE))","v":""},null,{"$f":"IF(Z91=\"\",\"\",INDEX(REFERENTES!G:H,MATCH(Z91,REFERENTES!H:H,0),1))","v":""},null,null,{"$f":"IF(AC91=\"\",\"\",INDEX(REFERENTES!J:K,MATCH(AC91,REFERENTES!K:K,0),1))","v":""}]
[null,null,1,{"$f":"IF(Q92=\"\",\"\",IF(COUNTIF($Q$5:Q92, Q92)>1, \"\", Q92))","v":""},null,null,"","","",null,{"$f":"IF(J92=\"\",\"\",INDEX(REFERENTES!$Y:$Z,MATCH(J92,REFERENTES!Z:$Z,0),1))","v":""},"",null,null,88,"",{"$f":"IF(R92=\"\",\"\",IF(R92=\"\",\"\",CONCATENATE(DIGITADOR!$M$1,E92,S92)))","v":""},null,{"$f":"IF(R92=\"\",\"\",VLOOKUP(R92,'OTRAS REFERENCIAS'!$L$5:$M$155,2,FALSE))","v":""},null,{"$f":"IF(T92=\"\",\"\",VLOOKUP(T92,'OTRAS REFERENCIAS'!$A$7:$B$9,2,FALSE))","v":""},null,"",null,{"$f":"IF(M92=\"\",\"\",VLOOKUP(M92,REFERENTES!$D$2:$E$9,2,FALSE))","v":""},null,{"$f":"IF(Z92=\"\",\"\",INDEX(REFERENTES!G:H,MATCH(Z92,REFERENTES!H:H,0),1))","v":""},null,null,{"$f":"IF(AC92=\"\",\"\",INDEX(REFERENTES!J:K,MATCH(AC92,REFERENTES!K:K,0),1))","v":""}]
[null,null,1,{"$f":"IF(Q93=\"\",\"\",IF(COUNTIF($Q$5:Q93, Q93)>1, \"\", Q93))","v":""},null,null,"","","",null,{"$f":"IF(J93=\"\",\"\",INDEX(REFERENTES!$Y:$Z,MATCH(J93,REFERENTES!Z:$Z,0),1))","v":""},"",null,null,89,"",{"$f":"IF(R93=\"\",\"\",IF(R93=\"\",\"\",CONCATENATE(DIGITADOR!$M$1,E93,S93)))","v":""},null,{"$f":"IF(R93=\"\",\"\",VLOOKUP(R93,'OTRAS REFERENCIAS'!$L$5:$M$155,2,FALSE))","v":""},null,{"$f":"IF(T93=\"\",\"\",VLOOKUP(T93,'OTRAS REFERENCIAS'!$A$7:$B$9,2,FALSE))","v":""},null,"",null,{"$f":"IF(M93=\"\",\"\",VLOOKUP(M93,REFERENTES!$D$2:$E$9,2,FALSE))","v":""},null,{"$f":"IF(Z93=\"\",\"\",INDEX(REFERENTES!G:H,MATCH(Z93,REFERENTES!H:H,0),1))","v":""},null,null,{"$f":"IF(AC93=\"\",\"\",INDEX(REFERENTES!J:K,MATCH(AC93,REFERENTES!K:K,0),1))","v":""}]
[null,null,1,{"$f":"IF(Q94=\"\",\"\",IF(COUNTIF($Q$5:Q94, Q94)>1, \"\", Q94))","v":""},null,null,"","","",null,{"$f":"IF(J94=\"\",\"\",INDEX(REFERENTES!$Y:$Z,MATCH(J94,REFERENTES!Z:$Z,0),1))","v":""},"",null,null,90,"",{"$f":"IF(R94=\"\",\"\",IF(R94=\"\",\"\",CONCATENATE(DIGITADOR!$M$1,E94,S94)))","v":""},null,{"$f":"IF(R94=\"\",\"\",VLOOKUP(R94,'OTRAS REFERENCIAS'!$L$5:$M$155,2,FALSE))","v":""},null,{"$f":"IF(T94=\"\",\"\",VLOOKUP(T94,'OTRAS REFERENCIAS'!$A$7:$B$9,2,FALSE))","v":""},null,"",null,{"$f":"IF(M94=\"\",\"\",VLOOKUP(M94,REFERENTES!$D$2:$E$9,2,FALSE))","v":""},null,{"$f":"IF(Z94=\"\",\"\",INDEX(REFERENTES!G:H,MATCH(Z94,REFERENTES!H:H,0),1))","v":""},null,null,{"$f":"IF(AC94=\"\",\"\",INDEX(REFERENTES!J:K,MATCH(AC94,REFERENTES!K:K,0),1))","v":""}]
[null,null,1,{"$f":"IF(Q95=\"\",\"\",IF(COUNTIF($Q$5:Q95, Q95)>1, \"\", Q95))","v":""},null,null,"","","",null,{"$f":"IF(J95=\"\",\"\",INDEX(REFERENTES!$Y:$Z,MATCH(J95,REFERENTES!Z:$Z,0),1))","v":""},"",null,null,91,"",{"$f":"IF(R95=\"\",\"\",IF(R95=\"\",\"\",CONCATENATE(DIGITADOR!$M$1,E95,S95)))","v":""},null,{"$f":"IF(R95=\"\",\"\",VLOOKUP(R95,'OTRAS REFERENCIAS'!$L$5:$M$155,2,FALSE))","v":""},null,{"$f":"IF(T95=\"\",\"\",VLOOKUP(T95,'OTRAS REFERENCIAS'!$A$7:$B$9,2,FALSE))","v":""},null,"",null,{"$f":"IF(M95=\"\",\"\",VLOOKUP(M95,REFERENTES!$D$2:$E$9,2,FALSE))","v":""},null,{"$f":"IF(Z95=\"\",\"\",INDEX(REFERENTES!G:H,MATCH(Z95,REFERENTES!H:H,0),1))","v":""},null,null,{"$f":"IF(AC95=\"\",\"\",INDEX(REFERENTES!J:K,MATCH(AC95,REFERENTES!K:K,0),1))","v":""}]
[null,null,1,{"$f":"IF(Q96=\"\",\"\",IF(COUNTIF($Q$5:Q96, Q96)>1, \"\", Q96))","v":""},null,null,"","","",null,{"$f":"IF(J96=\"\",\"\",INDEX(REFERENTES!$Y:$Z,MATCH(J96,REFERENTES!Z:$Z,0),1))","v":""},"",null,null,92,"",{"$f":"IF(R96=\"\",\"\",IF(R96=\"\",\"\",CONCATENATE(DIGITADOR!$M$1,E96,S96)))","v":""},null,{"$f":"IF(R96=\"\",\"\",VLOOKUP(R96,'OTRAS REFERENCIAS'!$L$5:$M$155,2,FALSE))","v":""},null,{"$f":"IF(T96=\"\",\"\",VLOOKUP(T96,'OTRAS REFERENCIAS'!$A$7:$B$9,2,FALSE))","v":""},null,"",null,{"$f":"IF(M96=\"\",\"\",VLOOKUP(M96,REFERENTES!$D$2:$E$9,2,FALSE))","v":""},null,{"$f":"IF(Z96=\"\",\"\",INDEX(REFERENTES!G:H,MATCH(Z96,REFERENTES!H:H,0),1))","v":""},null,null,{"$f":"IF(AC96=\"\",\"\",INDEX(REFERENTES!J:K,MATCH(AC96,REFERENTES!K:K,0),1))","v":""}]
[null,null,1,{"$f":"IF(Q97=\"\",\"\",IF(COUNTIF($Q$5:Q97, Q97)>1, \"\", Q97))","v":""},null,null,"","","",null,{"$f":"IF(J97=\"\",\"\",INDEX(REFERENTES!$Y:$Z,MATCH(J97,REFERENTES!Z:$Z,0),1))","v":""},"",null,null,93,"",{"$f":"IF(R97=\"\",\"\",IF(R97=\"\",\"\",CONCATENATE(DIGITADOR!$M$1,E97,S97)))","v":""},null,{"$f":"IF(R97=\"\",\"\",VLOOKUP(R97,'OTRAS REFERENCIAS'!$L$5:$M$155,2,FALSE))","v":""},null,{"$f":"IF(T97=\"\",\"\",VLOOKUP(T97,'OTRAS REFERENCIAS'!$A$7:$B$9,2,FALSE))","v":""},null,"",null,{"$f":"IF(M97=\"\",\"\",VLOOKUP(M97,REFERENTES!$D$2:$E$9,2,FALSE))","v":""},null,{"$f":"IF(Z97=\"\",\"\",INDEX(REFERENTES!G:H,MATCH(Z97,REFERENTES!H:H,0),1))","v":""},null,null,{"$f":"IF(AC97=\"\",\"\",INDEX(REFERENTES!J:K,MATCH(AC97,REFERENTES!K:K,0),1))","v":""}]
[null,null,1,{"$f":"IF(Q98=\"\",\"\",IF(COUNTIF($Q$5:Q98, Q98)>1, \"\", Q98))","v":""},null,null,"","","",null,{"$f":"IF(J98=\"\",\"\",INDEX(REFERENTES!$Y:$Z,MATCH(J98,REFERENTES!Z:$Z,0),1))","v":""},"",null,null,94,"",{"$f":"IF(R98=\"\",\"\",IF(R98=\"\",\"\",CONCATENATE(DIGITADOR!$M$1,E98,S98)))","v":""},null,{"$f":"IF(R98=\"\",\"\",VLOOKUP(R98,'OTRAS REFERENCIAS'!$L$5:$M$155,2,FALSE))","v":""},null,{"$f":"IF(T98=\"\",\"\",VLOOKUP(T98,'OTRAS REFERENCIAS'!$A$7:$B$9,2,FALSE))","v":""},null,"",null,{"$f":"IF(M98=\"\",\"\",VLOOKUP(M98,REFERENTES!$D$2:$E$9,2,FALSE))","v":""},null,{"$f":"IF(Z98=\"\",\"\",INDEX(REFERENTES!G:H,MATCH(Z98,REFERENTES!H:H,0),1))","v":""},null,null,{"$f":"IF(AC98=\"\",\"\",INDEX(REFERENTES!J:K,MATCH(AC98,REFERENTES!K:K,0),1))","v":""}]
[null,null,1,{"$f":"IF(Q99=\"\",\"\",IF(COUNTIF($Q$5:Q99, Q99)>1, \"\", Q99))","v":""},null,null,"","","",null,{"$f":"IF(J99=\"\",\"\",INDEX(REFERENTES!$Y:$Z,MATCH(J99,REFERENTES!Z:$Z,0),1))","v":""},"",null,null,95,"",{"$f":"IF(R99=\"\",\"\",IF(R99=\"\",\"\",CONCATENATE(DIGITADOR!$M$1,E99,S99)))","v":""},null,{"$f":"IF(R99=\"\",\"\",VLOOKUP(R99,'OTRAS REFERENCIAS'!$L$5:$M$155,2,FALSE))","v":""},null,{"$f":"IF(T99=\"\",\"\",VLOOKUP(T99,'OTRAS REFERENCIAS'!$A$7:$B$9,2,FALSE))","v":""},null,"",null,{"$f":"IF(M99=\"\",\"\",VLOOKUP(M99,REFERENTES!$D$2:$E$9,2,FALSE))","v":""},null,{"$f":"IF(Z99=\"\",\"\",INDEX(REFERENTES!G:H,MATCH(Z99,REFERENTES!H:H,0),1))","v":""},null,null,{"$f":"IF(AC99=\"\",\"\",INDEX(REFERENTES!J:K,MATCH(AC99,REFERENTES!K:K,0),1))","v":""}]
[null,null,1,{"$f":"IF(Q100=\"\",\"\",IF(COUNTIF($Q$5:Q100, Q100)>1, \"\", Q100))","v":""},null,null,"","","",null,{"$f":"IF(J100=\"\",\"\",INDEX(REFERENTES!$Y:$Z,MATCH(J100,REFERENTES!Z:$Z,0),1))","v":""},"",null,null,96,"",{"$f":"IF(R100=\"\",\"\",IF(R100=\"\",\"\",CONCATENATE(DIGITADOR!$M$1,E100,S100)))","v":""},null,{"$f":"IF(R100=\"\",\"\",VLOOKUP(R100,'OTRAS REFERENCIAS'!$L$5:$M$155,2,FALSE))","v":""},null,{"$f":"IF(T100=\"\",\"\",VLOOKUP(T100,'OTRAS REFERENCIAS'!$A$7:$B$9,2,FALSE))","v":""},null,"",null,{"$f":"IF(M100=\"\",\"\",VLOOKUP(M100,REFERENTES!$D$2:$E$9,2,FALSE))","v":""},null,{"$f":"IF(Z100=\"\",\"\",INDEX(REFERENTES!G:H,MATCH(Z100,REFERENTES!H:H,0),1))","v":""},null,null,{"$f":"IF(AC100=\"\",\"\",INDEX(REFERENTES!J:K,MATCH(AC100,REFERENTES!K:K,0),1))","v":""}]
[null,null,1,{"$f":"IF(Q101=\"\",\"\",IF(COUNTIF($Q$5:Q101, Q101)>1, \"\", Q101))","v":""},null,null,"","","",null,{"$f":"IF(J101=\"\",\"\",INDEX(REFERENTES!$Y:$Z,MATCH(J101,REFERENTES!Z:$Z,0),1))","v":""},{"$f":"IF(G101=\"\",\"\",CONCATENATE(G101,S101,K101,X101))","v":""},null,null,97,"",{"$f":"IF(R101=\"\",\"\",IF(R101=\"\",\"\",CONCATENATE(DIGITADOR!$M$1,E101,S101)))","v":""},null,{"$f":"IF(R101=\"\",\"\",VLOOKUP(R101,'OTRAS REFERENCIAS'!$L$5:$M$155,2,FALSE))","v":""},null,{"$f":"IF(T101=\"\",\"\",VLOOKUP(T101,'OTRAS REFERENCIAS'!$A$7:$B$9,2,FALSE))","v":""},null,"",null,{"$f":"IF(M101=\"\",\"\",VLOOKUP(M101,REFERENTES!$D$2:$E$9,2,FALSE))","v":""},null,{"$f":"IF(Z101=\"\",\"\",INDEX(REFERENTES!G:H,MATCH(Z101,REFERENTES!H:H,0),1))","v":""},null,null,{"$f":"IF(AC101=\"\",\"\",INDEX(REFERENTES!J:K,MATCH(AC101,REFERENTES!K:K,0),1))","v":""}]
[null,null,1,{"$f":"IF(Q102=\"\",\"\",IF(COUNTIF($Q$5:Q102, Q102)>1, \"\", Q102))","v":""},null,null,"","","",null,{"$f":"IF(J102=\"\",\"\",INDEX(REFERENTES!$Y:$Z,MATCH(J102,REFERENTES!Z:$Z,0),1))","v":""},"",null,null,98,"",{"$f":"IF(R102=\"\",\"\",IF(R102=\"\",\"\",CONCATENATE(DIGITADOR!$M$1,E102,S102)))","v":""},null,{"$f":"IF(R102=\"\",\"\",VLOOKUP(R102,'OTRAS REFERENCIAS'!$L$5:$M$155,2,FALSE))","v":""},null,{"$f":"IF(T102=\"\",\"\",VLOOKUP(T102,'OTRAS REFERENCIAS'!$A$7:$B$9,2,FALSE))","v":""},null,"",null,{"$f":"IF(M102=\"\",\"\",VLOOKUP(M102,REFERENTES!$D$2:$E$9,2,FALSE))","v":""},null,{"$f":"IF(Z102=\"\",\"\",INDEX(REFERENTES!G:H,MATCH(Z102,REFERENTES!H:H,0),1))","v":""},null,null,{"$f":"IF(AC102=\"\",\"\",INDEX(REFERENTES!J:K,MATCH(AC102,REFERENTES!K:K,0),1))","v":""}]
[null,null,1,{"$f":"IF(Q103=\"\",\"\",IF(COUNTIF($Q$5:Q103, Q103)>1, \"\", Q103))","v":""},null,null,"","","",null,{"$f":"IF(J103=\"\",\"\",INDEX(REFERENTES!$Y:$Z,MATCH(J103,REFERENTES!Z:$Z,0),1))","v":""},"",null,null,99,"",{"$f":"IF(R103=\"\",\"\",IF(R103=\"\",\"\",CONCATENATE(DIGITADOR!$M$1,E103,S103)))","v":""},null,{"$f":"IF(R103=\"\",\"\",VLOOKUP(R103,'OTRAS REFERENCIAS'!$L$5:$M$155,2,FALSE))","v":""},null,{"$f":"IF(T103=\"\",\"\",VLOOKUP(T103,'OTRAS REFERENCIAS'!$A$7:$B$9,2,FALSE))","v":""},null,"",null,{"$f":"IF(M103=\"\",\"\",VLOOKUP(M103,REFERENTES!$D$2:$E$9,2,FALSE))","v":""},null,{"$f":"IF(Z103=\"\",\"\",INDEX(REFERENTES!G:H,MATCH(Z103,REFERENTES!H:H,0),1))","v":""},null,null,{"$f":"IF(AC103=\"\",\"\",INDEX(REFERENTES!J:K,MATCH(AC103,REFERENTES!K:K,0),1))","v":""}]
[null,null,1,{"$f":"IF(Q104=\"\",\"\",IF(COUNTIF($Q$5:Q104, Q104)>1, \"\", Q104))","v":""},null,null,"","","",null,{"$f":"IF(J104=\"\",\"\",INDEX(REFERENTES!$Y:$Z,MATCH(J104,REFERENTES!Z:$Z,0),1))","v":""},"",null,null,100,"",{"$f":"IF(R104=\"\",\"\",IF(R104=\"\",\"\",CONCATENATE(DIGITADOR!$M$1,E104,S104)))","v":""},null,{"$f":"IF(R104=\"\",\"\",VLOOKUP(R104,'OTRAS REFERENCIAS'!$L$5:$M$155,2,FALSE))","v":""},null,{"$f":"IF(T104=\"\",\"\",VLOOKUP(T104,'OTRAS REFERENCIAS'!$A$7:$B$9,2,FALSE))","v":""},null,"",null,{"$f":"IF(M104=\"\",\"\",VLOOKUP(M104,REFERENTES!$D$2:$E$9,2,FALSE))","v":""},null,{"$f":"IF(Z104=\"\",\"\",INDEX(REFERENTES!G:H,MATCH(Z104,REFERENTES!H:H,0),1))","v":""},null,null,{"$f":"IF(AC104=\"\",\"\",INDEX(REFERENTES!J:K,MATCH(AC104,REFERENTES!K:K,0),1))","v":""}]

{"sheet":"REFERENTES","index":4,"n_rows":83,"n_cols":26,"rows_kept":83,"cut":false,"hidden":false,"merged":[]}
["AG_ESPECIES",148027,null,"AG_LOV","ALV",null,"AG_LOV",1035,null,"descripcion","cod_letras","clave_sibm","phylum","clase","orden","familia","genero",null,"lugar","prefijo_cdg_est_loc","secuencia_loc","codigo_estacion_loc","descripcion_estacion_loc"]
["Astropiga pulvinata","Apul",null,"CORALINA","CORALINA",null,"Invertebrados","INVE",null,"Astropiga pulvinata","Apul","60.55.2140",null,null,null,null,null,null,"Acuario 1","ACU",14311,1,null,null,3907,"Ameth  Vargas Campo"]
["Centrostephanus coronatus","Ceco",null,"Fundacion Malpelo","F. Malpelo",null,"Camarón","CAMA",null,"Centrostephanus coronatus","Ceco","60.55.3460",null,null,null,null,null,null,"Acuario 2","ACU",14312,2,null,null,593,"Andrea Polanco"]
["Cyphoma gibbosum","Cgib",null,"Instituto de Investigaciones Marinas y Costeras","INVEMAR",null,"Cangreja","CANG",null,"Cyphoma gibbosum","Cgib","52.55.2400",null,null,null,null,null,null,"Aguacate S","AGU",14338,1,"se encuentra localizada bien al fondo de la ensenada",null,4408,"Andres Felipe Acosta Chaparro"]
["Callinectes sp.","Ctes",null,"Parques Nacionales","ParquesNacionales",null,"Caracol","CARA",null,"Callinectes sp.","Ctes","58.46.1570",null,null,null,null,null,null,"Azufrada 1","AZU",14341,1,"A unos 60 metros de la costa en marea baja. localizada a 2º 57' 30.6\" N - 78º 10' 41.0\" O",null,3956,"Carlos Aponte"]
["Diadema antillarum","Dant",null,"PNN_GORGONA","PNN_GORGONA",null,"Erizo","ERIZ",null,"Diadema antillarum","Dant","60.55.2150",null,null,null,null,null,null,"Azufrada 2","AZU",14342,2,"A unos 70m de la costa en marea baja",null,1834,"Diana Isabel Gómez López"]
["Diadema sp.","Diad",null,"UJTL","UJTL",null,"Langosta","LANG",null,"Diadema sp.","Diad","60.46.1135",null,null,null,null,null,null,"Bahía Portete","POR",43726,1,"Bahía Portete",null,1775,"Diego Duque"]
["Diadema mexicanum","Dmex",null,"Universidad Nacional","UNal",null,"Poliqueto","POLI",null,"Diadema mexicanum","Dmex","60.55.2160",null,null,null,null,null,null,"Bonito Gordo (PNN Tayrona)","BGO",55425,1,null,null,3646,"Elizabeth Galeano Galeano"]
["Echinometra sp.","Echi",null,"Universidad del Valle","UNIVALLE",null,"Pulpo","PULP",null,"Echinometra sp.","Echi","60.46.1185",null,null,null,null,null,null,"Cabo Tiburón M","CTI",14333,2,"incluye una parcela en el nivel medio de prof",null,1784,"Johanna Carolina Vega Sequeda"]
["Echinometra lucunter","Eluc",null,null,null,null,null,null,null,"Echinometra lucunter","Eluc","60.55.2280",null,null,null,null,null,null,"Cabo Tiburón S","CTI",14334,1,"la estación es una parcela somera (3 m) forma",null,6356,"Jose Francisco Campo Campo"]
["Eucidaris tribuloides","Etri",null,null,null,null,null,null,null,"Eucidaris tribuloides","Etri","60.55.1950",null,null,null,null,null,null,"Capurganá 1","CAP",14336,1,null,null,3905,"Juan David González Corredor"]
["Eucidaris sp.","Euci",null,null,null,null,null,null,null,"Eucidaris sp.","Euci","60.46.1110",null,null,null,null,null,null,"Capurganá 2","CAP",14337,2,null,null,5705,"Katherine Johanna Mejía Quintero"]
["Echinometra vanbrunti","Evan",null,null,null,null,null,null,null,"Echinometra vanbrunti","Evan","60.55.2300",null,null,null,null,null,null,"Cara del Fantasma","FAN",58217,1,"Estación de monitoreo de Corales en la cara del fantasma",null,8265,"Kevin Samuel Moreno"]
["Echinometra viridis","Evir",null,null,null,null,null,null,null,"Echinometra viridis","Evir","60.55.2270",null,null,null,null,null,null,"Ceycen 1","CEY",14331,1,"Estación está conformada por  una parcela",null,4227,"Laura Sanchez Valencia"]
["Hesperacidaris asteriscus","Hast",null,null,null,null,null,null,null,"Hesperacidaris asteriscus","Hast","60.55.3388",null,null,null,null,null,null,"Ceycen 2","CEY",14308,2,null,null,3281,"Leonardo José Arias Alemán (2022)"]
["Hermodice carunculata","Hata",null,null,null,null,null,null,null,"Hermodice carunculata","Hata","54.55.50",null,null,null,null,null,null,"Ceycen 3","CEY",41651,3,null,null,287,"Marcela Cano Correa"]
["Hermodice sp.","Herm",null,null,null,null,null,null,null,"Hermodice sp.","Herm","54.46.41",null,null,null,null,null,null,"Chengue Acropora","CHE",41705,4,null,null,5021,"Maria Juliana Vanegas Gonzalez"]
["Hesperacidaris sp.","Hesp",null,null,null,null,null,null,null,"Hesperacidaris sp.","Hesp","60.46.1832",null,null,null,null,null,null,"Chengue Pastos","CHE",15508,3,null,null,1809,"Raul Navas Camacho"]
["Lysmata grabhami","Lgra",null,null,null,null,null,null,null,"Lysmata grabhami","Lgra","58.55.120",null,null,null,null,null,null,"Chengue..C1","CHE",14297,1,"Compartida con CARICOMP.La parcela del nivel somero (3-5 m) presenta una cobertura coralina _x000D_\r\r\naproximada del 29% dada principalmente por Montastraea faveolata y esqueletos de _x000D_\r\r\nAcropora palmata (algunas colonias vivas). _x000D_\r\r\nLas parcelas media (9-10 m) y profunda (15-16) tienen coberturas de 22% y 21%_x000D_\r\r\n respectivamente y están dominadas por una franja amplia de pendiente suave conformada por _x000D_\r\r\n corales masivos e incrustantes de Diploria spp, Montastraea faveolata y M. cavernosa principalmente._x000D_\r\r\n  El relieve de éstas dos últimas parcelas no es fuerte ya que no hay tamaños de colonias considerables, _x000D_\r\r\n  pero si hay una zona de relieve complejo muy cerca de los transectos la cual es dominada por colonias _x000D_\r\r\n  muy grandes de crecimiento montañoso de M. faveolata. En la parcela media se pueden observar además _x000D_\r\r\n  abundantes colonias medianas de gorgonáceos de la especie Eunicea fusca",null,5749,"Shanly Carolina Coneo Gómez"]
["Lytechinus variegatus","Ltus",null,null,null,null,null,null,null,"Lytechinus variegatus","Ltus","60.55.2230",null,null,null,null,null,null,"Chengue..C2","CHE",14298,2,"Las formaciones coralinas y el tipo de relieve son similares a los de C1 exceptuando _x000D_\r\r\nque en el nivel somero (3-6 m) de C2 hay mayor cobertura coralina (38%), _x000D_\r\r\nse pueden observar además cabezas grandes de Siderastrea siderea y _x000D_\r\r\nlos arrecifes de las parcelas media (9-11 m) y profunda (15-17 m), _x000D_\r\r\ndescienden como un talud de pendiente más fuerte. _x000D_\r\r\nLa cobertura de las parcelas media y profunda es de 40% y 31% _x000D_\r\r\nrespectivamente y dichos niveles presentan abundantes cabezas de Montastraea cavernosa_x000D_\r\r\ny Diploria strigosa, así como algunas colonias de gorgonáceos de tamaño considerable principalmente _x000D_\r\r\ndel género Plexaura sp. Debido a que las parcelas media y profunda están ubicados más hacia afuera _x000D_\r\r\nde la bahía, presentan un poco de oleaje de diciembre a abril por la fuerte acción de los _x000D_\r\r\nvientos alisios, lo cual dificulta el muestreo de los transectos de cadena durante esa _x000D_\r\r\népoca",null,8266,"Zulay Saudith González Herrera"]
["Lytechinus williamsi","Lwil",null,null,null,null,null,null,null,"Lytechinus williamsi","Lwil","60.55.2240",null,null,null,null,null,null,"Cinto expuesto","CIN",41704,2,"Cinto expuesto  Occidente"]
["Lytechinus sp.","Lyte",null,null,null,null,null,null,null,"Lytechinus sp.","Lyte","60.46.1160",null,null,null,null,null,null,"Cinto protegido","CIN",41703,1,"Cinto protegido Oriente"]
["Mythrax sp.","Mitr",null,null,null,null,null,null,null,"Mythrax sp.","Mitr","58.46.1390",null,null,null,null,null,null,"El Arrecife","MAL",14325,1]
["Mythrax spinosissimus","Mspi",null,null,null,null,null,null,null,"Mythrax spinosissimus","Mspi","58.55.330",null,null,null,null,null,null,"El Canal 1","CAN",14315,1]
["Octopus sp.","Octo",null,null,null,null,null,null,null,"Octopus sp.","Octo","52.46.4770",null,null,null,null,null,null,"El Canal 2","CAN",14316,2]
["Palinurellus sp.","Pali",null,null,null,null,null,null,null,"Palinurellus sp.","Pali","58.46.750",null,null,null,null,null,null,"El Morro","MRO",14303,1]
["Panulirus sp.","Panu",null,null,null,null,null,null,null,"Panulirus sp.","Panu","58.46.710",null,null,null,null,null,null,"Emisario 1","EMI",14309,1]
["Panulirus argus","Parg",null,null,null,null,null,null,null,"Panulirus argus","Parg","58.55.164",null,null,null,null,null,null,"Emisario 2","EMI",14310,2]
["Panulirus guttatus","Pgut",null,null,null,null,null,null,null,"Panulirus guttatus","Pgut","58.55.1088",null,null,null,null,null,null,"Gayraca 1","GAY",14302,1]
["Periclemenes pedersoni","Pped",null,null,null,null,null,null,null,"Periclemenes pedersoni","Pped","58.55.51",null,null,null,null,null,null,"Gayraca 2","GAY",14323,2]
["Scyllarides sp.","Scyl",null,null,null,null,null,null,null,"Scyllarides sp.","Scyl","58.46.730",null,null,null,null,null,null,"Granate 1","GRA",14324,1]
["Strombus gigas","Stgi",null,null,null,null,null,null,null,"Strombus gigas","Stgi","52.55.2130",null,null,null,null,null,null,"Iguana","IGU",14339,1]
["Stenopus hispidus","Sthi",null,null,null,null,null,null,null,"Stenopus hispidus","Sthi","58.55.24",null,null,null,null,null,null,"Isla Arena","ARE",41546,1]
["Tripneustes depressus","Trde",null,null,null,null,null,null,null,"Tripneustes depressus","Trde","60.46.1170",null,null,null,null,null,null,"Isla Grande","IGR",41545,1]
["Toxopneustes roseus","Tros",null,null,null,null,null,null,null,"Toxopneustes roseus","Tros","60.55.3462",null,null,null,null,null,null,"Johnny Cay","JCA",48967,1,"Johnny Cay"]
["Tripneustes ventricosus","Trve",null,null,null,null,null,null,null,"Tripneustes ventricosus","Trve","60.55.2250",null,null,null,null,null,null,"La Chola 1","CHO",14296,1,"ubicada a 6º"]
[null,null,null,null,null,null,null,null,null,null,null,null,null,null,null,null,null,null,"La Chola 2","CHO",14326,2,"Parcela media localizada a 6º 0' 47.04"]
[null,null,null,null,null,null,null,null,null,null,null,null,null,null,null,null,null,null,"La Chola 3","CHO",14304,3,"es una parcela somera localizada a 6º 0' 40.9"]
[null,null,null,null,null,null,null,null,null,null,null,null,null,null,null,null,null,null,"La Chola 4","CHO",14327,4,"Cobertura del 33%"]
[null,null,null,null,null,null,null,null,null,null,null,null,null,null,null,null,null,null,"La Chola 5","CHO",14328,5]
[null,null,null,null,null,null,null,null,null,null,null,null,null,null,null,null,null,null,"La Chola 6","CHO",14329,6]
[null,null,null,null,null,null,null,null,null,null,null,null,null,null,null,null,null,null,"La Coca","COC",37122,1]
[null,null,null,null,null,null,null,null,null,null,null,null,null,null,null,null,null,null,"La Nevera","MAL",43098,2]
[null,null,null,null,null,null,null,null,null,null,null,null,null,null,null,null,null,null,"La Ventana Norte Externa -VEN 4","VEN",41695,4]
[null,null,null,null,null,null,null,null,null,null,null,null,null,null,null,null,null,null,"La Ventana Norte Interna -VEN 3","VEN",41694,3]
[null,null,null,null,null,null,null,null,null,null,null,null,null,null,null,null,null,null,"La Ventana Sur Externa -VEN 1","VEN",41692,1]
[null,null,null,null,null,null,null,null,null,null,null,null,null,null,null,null,null,null,"La Ventana Sur Interna -VEN 2","VEN",41693,2]
[null,null,null,null,null,null,null,null,null,null,null,null,null,null,null,null,null,null,"Las Palmas","PAL",41547,1]
[null,null,null,null,null,null,null,null,null,null,null,null,null,null,null,null,null,null,"MARACAIBO","MAR",41699,1]
[null,null,null,null,null,null,null,null,null,null,null,null,null,null,null,null,null,null,"Mangle 1","MAN",14305,1,"ubicada frente a Isla Mangle en dirección N. Parcela en el nivel somero (4.5-6 m) que presenta una cobertura del 48%. _x000D_\r\r\nSe caracteriza porque la pendiente del fondo es imperceptible y porque presenta un relieve arrecifal _x000D_\r\r\ncomplejo compuesto por colonias muy grandes de Montastraea annularis y M. faveolata principalmente;_x000D_\r\r\n también es posible observar comúnmente Porites astreoides, P. porites y Millepora alcicornis. _x000D_\r\r\n El arrecife no es compacto y por lo tanto pueden observarse frecuentemente considerables parches _x000D_\r\r\n de sedimentos gruesos."]
[null,null,null,null,null,null,null,null,null,null,null,null,null,null,null,null,null,null,"Mangle 2","MAN",14307,2,"La estación Mangle 2. Parcela en el nivel medio (9-11.5 m), _x000D_\r\r\nubicada sobre un arrecife muy compacto de relieve complejo, la pendiente del fondo es_x000D_\r\r\n suave y tiene una cobertura coralina del 31% aproximadamente. Se pueden observar corales de _x000D_\r\r\n 19 especies pero los más abundantes son M. franksi, P. astreoides y Agaricia tenuifolia y _x000D_\r\r\n también hay otras importantes como M. annularis, M. faveolata y P. porites entre otros. Después_x000D_\r\r\n de este arrecife, el fondo se precipita en un talud mayor que termina en amplios canales de arena _x000D_\r\r\n a los 15-18 m"]
[null,null,null,null,null,null,null,null,null,null,null,null,null,null,null,null,null,null,"Manzanillo 1","MAZ",14317,1]
[null,null,null,null,null,null,null,null,null,null,null,null,null,null,null,null,null,null,"Manzanillo 2","MAZ",14318,2]
[null,null,null,null,null,null,null,null,null,null,null,null,null,null,null,null,null,null,"Marcela's place","MRC",41698,1,"Marcelas place"]
[null,null,null,null,null,null,null,null,null,null,null,null,null,null,null,null,null,null,"Minalta","MIN",14306,1,"Ubicada hacia el noroeste de Isla Mucura._x000D_\r\r\nEsta estación es una parcela somera (6-7 m)_x000D_\r\r\n con una cobertura coralina del 33% cuyo fondo tiene una pendiente imperceptible y forma _x000D_\r\r\n parte de una terraza muy extensa. Sus arrecifes forman parches alargados que algunas veces _x000D_\r\r\n se conectan entre sí o están separados por áreas de sedimento de origen calcáreo y aparentemente _x000D_\r\r\n son arenas gruesas. Los corales pueden ser cabezas de variados tamaños de Montastraea spp, _x000D_\r\r\n Siderastrea siderea, Colpophyllia natans, Diploria spp. y Porites porites. Las algas y los_x000D_\r\r\n  octocorales son muy abundantes y estos últimos alcanzan tamaños considerables"]
[null,null,null,null,null,null,null,null,null,null,null,null,null,null,null,null,null,null,"Morro Acropora (MRAC)","4400147CORA100",56790,1]
[null,null,null,null,null,null,null,null,null,null,null,null,null,null,null,null,null,null,"Narrow Channel","NCH",42263,1,"Narrow Channel"]
[null,null,null,null,null,null,null,null,null,null,null,null,null,null,null,null,null,null,"Neguanje expuesto","NEG",41702,2]
[null,null,null,null,null,null,null,null,null,null,null,null,null,null,null,null,null,null,"Neguanje protegido","NEG",41701,1]
[null,null,null,null,null,null,null,null,null,null,null,null,null,null,null,null,null,null,"No Entry","NET",37120,1,"Bajo coralino en la barrera de providencia, alejado varios km al noroeste de la isla"]
[null,null,null,null,null,null,null,null,null,null,null,null,null,null,null,null,null,null,"No Entry 2","NET",52325,2,"Bajo coralino en la barrera de providencia, alejado varios km al noroeste de la isla"]
[null,null,null,null,null,null,null,null,null,null,null,null,null,null,null,null,null,null,"Pavitos","PAV",14300,1,"Isla Rosario, Pavitos. El ambiente de esta estación en los tres niveles de profundidad difiere considerablemente al de tesoro _x000D_\r\r\npues pavitos está dominado por corales de crecimiento foliáceo del tipo Agaricia sp,_x000D_\r\r\n los gorgonáceos están prácticamente ausentes y se presentan gran cantidad de esponjas de variados _x000D_\r\r\n tamaños, formas de crecimiento y colores. La parcela somera de monitoreo está ubicada_x000D_\r\r\n  sobre la plataforma o terraza que rodea la Isla Pavitos y presenta una cobertura coralina _x000D_\r\r\n  del 31% y cerca se observa un talud de pendiente fuerte y de sustrato frágil donde _x000D_\r\r\n  se localizan las parcelas de los niveles medio (9-12 m) y profundo (16-18 m)._x000D_\r\r\n  En el nivel somero también pueden observarse comúnmente algunas cabezas medianas de _x000D_\r\r\n  Montastraea annularis y M. faveolata mientras en el profundo hay abundantes colonias _x000D_\r\r\n  de M. franksi. Los niveles medio y profundo presenta una cobertura coralina del 40% y 30%_x000D_\r\r\n   respectivamente_x000D_"]
[null,null,null,null,null,null,null,null,null,null,null,null,null,null,null,null,null,null,"Playa Blanca norte medio 2","PLA",14295,2,"A unos 150m de la costa en marea baja"]
[null,null,null,null,null,null,null,null,null,null,null,null,null,null,null,null,null,null,"Playa Blanca norte somero 3","PLA",41690,3,"Ubicada al norte de la formación coralina"]
[null,null,null,null,null,null,null,null,null,null,null,null,null,null,null,null,null,null,"Playa Blanca sur medio 4","PLA",41691,4,"Ubicada al norte de la formación coralina"]
[null,null,null,null,null,null,null,null,null,null,null,null,null,null,null,null,null,null,"Playa Blanca sur somero 1","PLA",14343,1,"Ubicada al sur de la formación coralina"]
[null,null,null,null,null,null,null,null,null,null,null,null,null,null,null,null,null,null,"Playa Blanca-Barú (PNN Corales del Rosario y San Bernardo)","PBLA",52865,1]
[null,null,null,null,null,null,null,null,null,null,null,null,null,null,null,null,null,null,"Punta Brava","PBR",41548,1]
[null,null,null,null,null,null,null,null,null,null,null,null,null,null,null,null,null,null,"San Felipe 1","SFE",14321,1]
[null,null,null,null,null,null,null,null,null,null,null,null,null,null,null,null,null,null,"San Felipe 2","SFE",14322,2]
[null,null,null,null,null,null,null,null,null,null,null,null,null,null,null,null,null,null,"Tesoro 1","TES",14299,1,"Isla Rosario, el Tesoro. está ubicada en una cuenca lagunar de poca pendiente y relieve complejo, _x000D_\r\r\npresenta una cobertura aproximada del 45% y se observan cabezas coralinas _x000D_\r\r\ngrandes dominadas por Montastraea annularis. Es posible observar también _x000D_\r\r\notros corales de crecimiento masivo y cobertura importante como M. faveolata, _x000D_\r\r\nDiploria labyrinthiformis y Colpophyllia natans mezclados con parches amplios de arena._x000D_\r\r\n También se presentan abundantes gorgonáceos de los géneros Briareum sp. y Pseudoplexaura sp. _x000D_\r\r\n Después del plano se presenta hacia afuera un talud de pendiente media y relieve complejo donde _x000D_\r\r\n están ubicados las parcelas de los niveles medio (9-12 m) y profundo (16-19 m). El nivel medio _x000D_\r\r\n tiene una cobertura coralina del 24% y es un ambiente de corales masivos mixtos como M. annularis, _x000D_\r\r\n M franksi y C. natans, mientras el profundo presenta una cobertura mayor (35%) y está dominado por M. _x000D_\r\r\n franksi que forma colonias grandes con bordes tipo terraza. En la parcela profunda se presentan colonias _x000D_\r\r\n aisladas de látigos del género Ellisella sp"]
[null,null,null,null,null,null,null,null,null,null,null,null,null,null,null,null,null,null,"Tesoro Oriental","TES",41549,2]
[null,null,null,null,null,null,null,null,null,null,null,null,null,null,null,null,null,null,"The Bar 1","BAR",14319,1]
[null,null,null,null,null,null,null,null,null,null,null,null,null,null,null,null,null,null,"The Bar 2","BAR",14320,2]
[null,null,null,null,null,null,null,null,null,null,null,null,null,null,null,null,null,null,"Tintipan 1 Somero","TNT",41697,1,"Tintipan 1 Somero"]
[null,null,null,null,null,null,null,null,null,null,null,null,null,null,null,null,null,null,"Tintipan 2 Medio","TNT",41696,2,"Tintipan 2 Medio"]
[null,null,null,null,null,null,null,null,null,null,null,null,null,null,null,null,null,null,"Tiosolda","TIO",14332,1,"localizada al noroeste de Isla Tintipan a 9º"]
[null,null,null,null,null,null,null,null,null,null,null,null,null,null,null,null,null,null,"Varadero 1","VAR",49084,1,"Varadero 1"]
[null,null,null,null,null,null,null,null,null,null,null,null,null,null,null,null,null,null,"Varadero 2","VAR",49085,2,"Varadero 2"]
[null,null,null,null,null,null,null,null,null,null,null,null,null,null,null,null,null,null,"Varadero 3","VAR",49086,3,"Varadero 3"]
[null,null,null,null,null,null,null,null,null,null,null,null,null,null,null,null,null,null,"White  Shoal","WHI",41700,1]
[null,null,null,null,null,null,null,null,null,null,null,null,null,null,null,null,null,null,"Wild Life","WLF",14340,1,"La parcela somera está localizada a 12º 30' 4"]
[null,null,null,null,null,null,null,null,null,null,null,null,null,null,null,null,null,null,"Zapsurro M","ZAP",14335,1,"Ubicada afuera de la punta rocosa que cierra la ensenada"]

{"sheet":"OTRAS REFERENCIAS","index":5,"n_rows":155,"n_cols":13,"rows_kept":155,"cut":false,"hidden":false,"merged":[[0,0,2,10],[4,0,4,1],[26,0,26,2],[11,0,11,2],[18,0,18,1]]}
["Estas son listas para variables con valores que no se encuentran codificados, pero que deben manejarse de manera estandarizada. \nSi se requiere agregar un valor nuevo hagalo debajo de la lista correspondiente"]
[]
[]
[]
["PROFUNDIDAD",null,null,"METODOS",null,null,null,null,null,null,null,{"$f":"IF(AND(REFERENTES!V2<>\"\",          REFERENTES!V2<>96321,    REFERENTES!V2<>96222            ),CONCATENATE(REFERENTES!T2,\"-\",REFERENTES!V2),\"\")","v":"ACU-1"},{"$f":"REFERENTES!U2","v":14311}]
["Descripcion","Codigo",null,"NOMBRE_MT","CODIGO",null,null,null,null,null,null,{"$f":"IF(AND(REFERENTES!V3<>\"\",          REFERENTES!V3<>96321,    REFERENTES!V3<>96222            ),CONCATENATE(REFERENTES!T3,\"-\",REFERENTES!V3),\"\")","v":"ACU-2"},{"$f":"REFERENTES!U3","v":14312}]
["Somero","S",null,"Manual de métodos de SIMAC: Cadena rotulada cada diez eslabones","Car",null,null,null,null,null,null,{"$f":"IF(AND(REFERENTES!V4<>\"\",          REFERENTES!V4<>96321,    REFERENTES!V4<>96222            ),CONCATENATE(REFERENTES!T4,\"-\",REFERENTES!V4),\"\")","v":"AGU-1"},{"$f":"REFERENTES!U4","v":14338}]
["Medio","M",null,null,null,null,null,null,null,null,null,{"$f":"IF(AND(REFERENTES!V5<>\"\",          REFERENTES!V5<>96321,    REFERENTES!V5<>96222            ),CONCATENATE(REFERENTES!T5,\"-\",REFERENTES!V5),\"\")","v":"AZU-1"},{"$f":"REFERENTES!U5","v":14341}]
["Profundo","P",null,null,null,null,null,null,null,null,null,{"$f":"IF(AND(REFERENTES!V6<>\"\",          REFERENTES!V6<>96321,    REFERENTES!V6<>96222            ),CONCATENATE(REFERENTES!T6,\"-\",REFERENTES!V6),\"\")","v":"AZU-2"},{"$f":"REFERENTES!U6","v":14342}]
[null,null,null,null,null,null,null,null,null,null,null,{"$f":"IF(AND(REFERENTES!V7<>\"\",          REFERENTES!V7<>96321,    REFERENTES!V7<>96222            ),CONCATENATE(REFERENTES!T7,\"-\",REFERENTES!V7),\"\")","v":"POR-1"},{"$f":"REFERENTES!U7","v":43726}]
[null,null,null,null,null,null,null,null,null,null,null,{"$f":"IF(AND(REFERENTES!V8<>\"\",          REFERENTES!V8<>96321,    REFERENTES!V8<>96222            ),CONCATENATE(REFERENTES!T8,\"-\",REFERENTES!V8),\"\")","v":"BGO-1"},{"$f":"REFERENTES!U8","v":55425}]
["PROYECTOS PRINCIPALES",null,null,null,null,null,null,null,null,null,null,{"$f":"IF(AND(REFERENTES!V9<>\"\",          REFERENTES!V9<>96321,    REFERENTES!V9<>96222            ),CONCATENATE(REFERENTES!T9,\"-\",REFERENTES!V9),\"\")","v":"CTI-2"},{"$f":"REFERENTES!U9","v":14333}]
["COD","PROYECTO","PROYECTO DESC",null,null,null,null,null,null,null,null,{"$f":"IF(AND(REFERENTES!V10<>\"\",          REFERENTES!V10<>96321,    REFERENTES!V10<>96222            ),CONCATENATE(REFERENTES!T10,\"-\",REFERENTES!V10),\"\")","v":"CTI-1"},{"$f":"REFERENTES!U10","v":14334}]
["SIMAC",1480,"Sistema de Monitoreo de los Arrecifes Coralinos en Colombia",null,null,null,null,null,null,null,null,{"$f":"IF(AND(REFERENTES!V11<>\"\",          REFERENTES!V11<>96321,    REFERENTES!V11<>96222            ),CONCATENATE(REFERENTES!T11,\"-\",REFERENTES!V11),\"\")","v":"CAP-1"},{"$f":"REFERENTES!U11","v":14336}]
[null,null,null,null,null,null,null,null,null,null,null,{"$f":"IF(AND(REFERENTES!V12<>\"\",          REFERENTES!V12<>96321,    REFERENTES!V12<>96222            ),CONCATENATE(REFERENTES!T12,\"-\",REFERENTES!V12),\"\")","v":"CAP-2"},{"$f":"REFERENTES!U12","v":14337}]
[null,null,null,null,null,null,null,null,null,null,null,{"$f":"IF(AND(REFERENTES!V13<>\"\",          REFERENTES!V13<>96321,    REFERENTES!V13<>96222            ),CONCATENATE(REFERENTES!T13,\"-\",REFERENTES!V13),\"\")","v":"FAN-1"},{"$f":"REFERENTES!U13","v":58217}]
[null,null,null,null,null,null,null,null,null,null,null,{"$f":"IF(AND(REFERENTES!V14<>\"\",          REFERENTES!V14<>96321,    REFERENTES!V14<>96222            ),CONCATENATE(REFERENTES!T14,\"-\",REFERENTES!V14),\"\")","v":"CEY-1"},{"$f":"REFERENTES!U14","v":14331}]
[null,null,null,null,null,null,null,null,null,null,null,{"$f":"IF(AND(REFERENTES!V15<>\"\",          REFERENTES!V15<>96321,    REFERENTES!V15<>96222            ),CONCATENATE(REFERENTES!T15,\"-\",REFERENTES!V15),\"\")","v":"CEY-2"},{"$f":"REFERENTES!U15","v":14308}]
["METODOLOGIAS",null,null,null,null,null,null,null,null,null,null,{"$f":"IF(AND(REFERENTES!V16<>\"\",          REFERENTES!V16<>96321,    REFERENTES!V16<>96222            ),CONCATENATE(REFERENTES!T16,\"-\",REFERENTES!V16),\"\")","v":"CEY-3"},{"$f":"REFERENTES!U16","v":41651}]
["CODIGO","DESCRIPCION",null,null,null,null,null,null,null,null,null,{"$f":"IF(AND(REFERENTES!V17<>\"\",          REFERENTES!V17<>96321,    REFERENTES!V17<>96222            ),CONCATENATE(REFERENTES!T17,\"-\",REFERENTES!V17),\"\")","v":"CHE-4"},{"$f":"REFERENTES!U17","v":41705}]
[27,"SIMAC - INVERTEBRADOS",null,null,null,null,null,null,null,null,null,{"$f":"IF(AND(REFERENTES!V18<>\"\",          REFERENTES!V18<>96321,    REFERENTES!V18<>96222            ),CONCATENATE(REFERENTES!T18,\"-\",REFERENTES!V18),\"\")","v":"CHE-3"},{"$f":"REFERENTES!U18","v":15508}]
[null,null,null,null,null,null,null,null,null,null,null,{"$f":"IF(AND(REFERENTES!V19<>\"\",          REFERENTES!V19<>96321,    REFERENTES!V19<>96222            ),CONCATENATE(REFERENTES!T19,\"-\",REFERENTES!V19),\"\")","v":"CHE-1"},{"$f":"REFERENTES!U19","v":14297}]
[null,null,null,null,null,null,null,null,null,null,null,{"$f":"IF(AND(REFERENTES!V20<>\"\",          REFERENTES!V20<>96321,    REFERENTES!V20<>96222            ),CONCATENATE(REFERENTES!T20,\"-\",REFERENTES!V20),\"\")","v":"CHE-2"},{"$f":"REFERENTES!U20","v":14298}]
[null,null,null,null,null,null,null,null,null,null,null,{"$f":"IF(AND(REFERENTES!V21<>\"\",          REFERENTES!V21<>96321,    REFERENTES!V21<>96222            ),CONCATENATE(REFERENTES!T21,\"-\",REFERENTES!V21),\"\")","v":"CIN-2"},{"$f":"REFERENTES!U21","v":41704}]
[null,null,null,null,null,null,null,null,null,null,null,{"$f":"IF(AND(REFERENTES!V22<>\"\",          REFERENTES!V22<>96321,    REFERENTES!V22<>96222            ),CONCATENATE(REFERENTES!T22,\"-\",REFERENTES!V22),\"\")","v":"CIN-1"},{"$f":"REFERENTES!U22","v":41703}]
[null,null,null,null,null,null,null,null,null,null,null,{"$f":"IF(AND(REFERENTES!V23<>\"\",          REFERENTES!V23<>96321,    REFERENTES!V23<>96222            ),CONCATENATE(REFERENTES!T23,\"-\",REFERENTES!V23),\"\")","v":"MAL-1"},{"$f":"REFERENTES!U23","v":14325}]
["CODIGOS LOV",null,null,null,null,null,null,null,null,null,null,{"$f":"IF(AND(REFERENTES!V24<>\"\",          REFERENTES!V24<>96321,    REFERENTES!V24<>96222            ),CONCATENATE(REFERENTES!T24,\"-\",REFERENTES!V24),\"\")","v":"CAN-1"},{"$f":"REFERENTES!U24","v":14315}]
["DESCRIPCIÓN","CÓDIGO","GRUPO",null,null,null,null,null,null,null,null,{"$f":"IF(AND(REFERENTES!V25<>\"\",          REFERENTES!V25<>96321,    REFERENTES!V25<>96222            ),CONCATENATE(REFERENTES!T25,\"-\",REFERENTES!V25),\"\")","v":"CAN-2"},{"$f":"REFERENTES!U25","v":14316}]
["Departamento",10,2,null,null,null,null,null,null,null,null,{"$f":"IF(AND(REFERENTES!V26<>\"\",          REFERENTES!V26<>96321,    REFERENTES!V26<>96222            ),CONCATENATE(REFERENTES!T26,\"-\",REFERENTES!V26),\"\")","v":"MRO-1"},{"$f":"REFERENTES!U26","v":14303}]
["Sector",20,2,null,null,null,null,null,null,null,null,{"$f":"IF(AND(REFERENTES!V27<>\"\",          REFERENTES!V27<>96321,    REFERENTES!V27<>96222            ),CONCATENATE(REFERENTES!T27,\"-\",REFERENTES!V27),\"\")","v":"EMI-1"},{"$f":"REFERENTES!U27","v":14309}]
["Punto",30,2,null,null,null,null,null,null,null,null,{"$f":"IF(AND(REFERENTES!V28<>\"\",          REFERENTES!V28<>96321,    REFERENTES!V28<>96222            ),CONCATENATE(REFERENTES!T28,\"-\",REFERENTES!V28),\"\")","v":"EMI-2"},{"$f":"REFERENTES!U28","v":14310}]
["Parcela",35,2,null,null,null,null,null,null,null,null,{"$f":"IF(AND(REFERENTES!V29<>\"\",          REFERENTES!V29<>96321,    REFERENTES!V29<>96222            ),CONCATENATE(REFERENTES!T29,\"-\",REFERENTES!V29),\"\")","v":"GAY-1"},{"$f":"REFERENTES!U29","v":14302}]
["Estaciones",40,2,null,null,null,null,null,null,null,null,{"$f":"IF(AND(REFERENTES!V30<>\"\",          REFERENTES!V30<>96321,    REFERENTES!V30<>96222            ),CONCATENATE(REFERENTES!T30,\"-\",REFERENTES!V30),\"\")","v":"GAY-2"},{"$f":"REFERENTES!U30","v":14323}]
["Region",50,2,null,null,null,null,null,null,null,null,{"$f":"IF(AND(REFERENTES!V31<>\"\",          REFERENTES!V31<>96321,    REFERENTES!V31<>96222            ),CONCATENATE(REFERENTES!T31,\"-\",REFERENTES!V31),\"\")","v":"GRA-1"},{"$f":"REFERENTES!U31","v":14324}]
["Unidad_de_Manejo",60,2,null,null,null,null,null,null,null,null,{"$f":"IF(AND(REFERENTES!V32<>\"\",          REFERENTES!V32<>96321,    REFERENTES!V32<>96222            ),CONCATENATE(REFERENTES!T32,\"-\",REFERENTES!V32),\"\")","v":"IGU-1"},{"$f":"REFERENTES!U32","v":14339}]
["Unidad_Ambiental_Costera",70,2,null,null,null,null,null,null,null,null,{"$f":"IF(AND(REFERENTES!V33<>\"\",          REFERENTES!V33<>96321,    REFERENTES!V33<>96222            ),CONCATENATE(REFERENTES!T33,\"-\",REFERENTES!V33),\"\")","v":"ARE-1"},{"$f":"REFERENTES!U33","v":41546}]
["Localidad",80,2,null,null,null,null,null,null,null,null,{"$f":"IF(AND(REFERENTES!V34<>\"\",          REFERENTES!V34<>96321,    REFERENTES!V34<>96222            ),CONCATENATE(REFERENTES!T34,\"-\",REFERENTES!V34),\"\")","v":"IGR-1"},{"$f":"REFERENTES!U34","v":41545}]
["Bloque_Exploracion",85,2,null,null,null,null,null,null,null,null,{"$f":"IF(AND(REFERENTES!V35<>\"\",          REFERENTES!V35<>96321,    REFERENTES!V35<>96222            ),CONCATENATE(REFERENTES!T35,\"-\",REFERENTES!V35),\"\")","v":"JCA-1"},{"$f":"REFERENTES!U35","v":48967}]
["Area",90,2,null,null,null,null,null,null,null,null,{"$f":"IF(AND(REFERENTES!V36<>\"\",          REFERENTES!V36<>96321,    REFERENTES!V36<>96222            ),CONCATENATE(REFERENTES!T36,\"-\",REFERENTES!V36),\"\")","v":"CHO-1"},{"$f":"REFERENTES!U36","v":14296}]
[null,null,null,null,null,null,null,null,null,null,null,{"$f":"IF(AND(REFERENTES!V37<>\"\",          REFERENTES!V37<>96321,    REFERENTES!V37<>96222            ),CONCATENATE(REFERENTES!T37,\"-\",REFERENTES!V37),\"\")","v":"CHO-2"},{"$f":"REFERENTES!U37","v":14326}]
[null,null,null,null,null,null,null,null,null,null,null,{"$f":"IF(AND(REFERENTES!V38<>\"\",          REFERENTES!V38<>96321,    REFERENTES!V38<>96222            ),CONCATENATE(REFERENTES!T38,\"-\",REFERENTES!V38),\"\")","v":"CHO-3"},{"$f":"REFERENTES!U38","v":14304}]
[null,null,null,null,null,null,null,null,null,null,null,{"$f":"IF(AND(REFERENTES!V39<>\"\",          REFERENTES!V39<>96321,    REFERENTES!V39<>96222            ),CONCATENATE(REFERENTES!T39,\"-\",REFERENTES!V39),\"\")","v":"CHO-4"},{"$f":"REFERENTES!U39","v":14327}]
[null,null,null,null,null,null,null,null,null,null,null,{"$f":"IF(AND(REFERENTES!V40<>\"\",          REFERENTES!V40<>96321,    REFERENTES!V40<>96222            ),CONCATENATE(REFERENTES!T40,\"-\",REFERENTES!V40),\"\")","v":"CHO-5"},{"$f":"REFERENTES!U40","v":14328}]
[null,null,null,null,null,null,null,null,null,null,null,{"$f":"IF(AND(REFERENTES!V41<>\"\",          REFERENTES!V41<>96321,    REFERENTES!V41<>96222            ),CONCATENATE(REFERENTES!T41,\"-\",REFERENTES!V41),\"\")","v":"CHO-6"},{"$f":"REFERENTES!U41","v":14329}]
[null,null,null,null,null,null,null,null,null,null,null,{"$f":"IF(AND(REFERENTES!V42<>\"\",          REFERENTES!V42<>96321,    REFERENTES!V42<>96222            ),CONCATENATE(REFERENTES!T42,\"-\",REFERENTES!V42),\"\")","v":"COC-1"},{"$f":"REFERENTES!U42","v":37122}]
[null,null,null,null,null,null,null,null,null,null,null,{"$f":"IF(AND(REFERENTES!V43<>\"\",          REFERENTES!V43<>96321,    REFERENTES!V43<>96222            ),CONCATENATE(REFERENTES!T43,\"-\",REFERENTES!V43),\"\")","v":"MAL-2"},{"$f":"REFERENTES!U43","v":43098}]
[null,null,null,null,null,null,null,null,null,null,null,{"$f":"IF(AND(REFERENTES!V44<>\"\",          REFERENTES!V44<>96321,    REFERENTES!V44<>96222            ),CONCATENATE(REFERENTES!T44,\"-\",REFERENTES!V44),\"\")","v":"VEN-4"},{"$f":"REFERENTES!U44","v":41695}]
[null,null,null,null,null,null,null,null,null,null,null,{"$f":"IF(AND(REFERENTES!V45<>\"\",          REFERENTES!V45<>96321,    REFERENTES!V45<>96222            ),CONCATENATE(REFERENTES!T45,\"-\",REFERENTES!V45),\"\")","v":"VEN-3"},{"$f":"REFERENTES!U45","v":41694}]
[null,null,null,null,null,null,null,null,null,null,null,{"$f":"IF(AND(REFERENTES!V46<>\"\",          REFERENTES!V46<>96321,    REFERENTES!V46<>96222            ),CONCATENATE(REFERENTES!T46,\"-\",REFERENTES!V46),\"\")","v":"VEN-1"},{"$f":"REFERENTES!U46","v":41692}]
[null,null,null,null,null,null,null,null,null,null,null,{"$f":"IF(AND(REFERENTES!V47<>\"\",          REFERENTES!V47<>96321,    REFERENTES!V47<>96222            ),CONCATENATE(REFERENTES!T47,\"-\",REFERENTES!V47),\"\")","v":"VEN-2"},{"$f":"REFERENTES!U47","v":41693}]
[null,null,null,null,null,null,null,null,null,null,null,{"$f":"IF(AND(REFERENTES!V48<>\"\",          REFERENTES!V48<>96321,    REFERENTES!V48<>96222            ),CONCATENATE(REFERENTES!T48,\"-\",REFERENTES!V48),\"\")","v":"PAL-1"},{"$f":"REFERENTES!U48","v":41547}]
[null,null,null,null,null,null,null,null,null,null,null,{"$f":"IF(AND(REFERENTES!V49<>\"\",          REFERENTES!V49<>96321,    REFERENTES!V49<>96222            ),CONCATENATE(REFERENTES!T49,\"-\",REFERENTES!V49),\"\")","v":"MAR-1"},{"$f":"REFERENTES!U49","v":41699}]
[null,null,null,null,null,null,null,null,null,null,null,{"$f":"IF(AND(REFERENTES!V50<>\"\",          REFERENTES!V50<>96321,    REFERENTES!V50<>96222            ),CONCATENATE(REFERENTES!T50,\"-\",REFERENTES!V50),\"\")","v":"MAN-1"},{"$f":"REFERENTES!U50","v":14305}]
[null,null,null,null,null,null,null,null,null,null,null,{"$f":"IF(AND(REFERENTES!V51<>\"\",          REFERENTES!V51<>96321,    REFERENTES!V51<>96222            ),CONCATENATE(REFERENTES!T51,\"-\",REFERENTES!V51),\"\")","v":"MAN-2"},{"$f":"REFERENTES!U51","v":14307}]
[null,null,null,null,null,null,null,null,null,null,null,{"$f":"IF(AND(REFERENTES!V52<>\"\",          REFERENTES!V52<>96321,    REFERENTES!V52<>96222            ),CONCATENATE(REFERENTES!T52,\"-\",REFERENTES!V52),\"\")","v":"MAZ-1"},{"$f":"REFERENTES!U52","v":14317}]
[null,null,null,null,null,null,null,null,null,null,null,{"$f":"IF(AND(REFERENTES!V53<>\"\",          REFERENTES!V53<>96321,    REFERENTES!V53<>96222            ),CONCATENATE(REFERENTES!T53,\"-\",REFERENTES!V53),\"\")","v":"MAZ-2"},{"$f":"REFERENTES!U53","v":14318}]
[null,null,null,null,null,null,null,null,null,null,null,{"$f":"IF(AND(REFERENTES!V54<>\"\",          REFERENTES!V54<>96321,    REFERENTES!V54<>96222            ),CONCATENATE(REFERENTES!T54,\"-\",REFERENTES!V54),\"\")","v":"MRC-1"},{"$f":"REFERENTES!U54","v":41698}]
[null,null,null,null,null,null,null,null,null,null,null,{"$f":"IF(AND(REFERENTES!V55<>\"\",          REFERENTES!V55<>96321,    REFERENTES!V55<>96222            ),CONCATENATE(REFERENTES!T55,\"-\",REFERENTES!V55),\"\")","v":"MIN-1"},{"$f":"REFERENTES!U55","v":14306}]
[null,null,null,null,null,null,null,null,null,null,null,{"$f":"IF(AND(REFERENTES!V56<>\"\",          REFERENTES!V56<>96321,    REFERENTES!V56<>96222            ),CONCATENATE(REFERENTES!T56,\"-\",REFERENTES!V56),\"\")","v":"4400147CORA100-1"},{"$f":"REFERENTES!U56","v":56790}]
[null,null,null,null,null,null,null,null,null,null,null,{"$f":"IF(AND(REFERENTES!V57<>\"\",          REFERENTES!V57<>96321,    REFERENTES!V57<>96222            ),CONCATENATE(REFERENTES!T57,\"-\",REFERENTES!V57),\"\")","v":"NCH-1"},{"$f":"REFERENTES!U57","v":42263}]
[null,null,null,null,null,null,null,null,null,null,null,{"$f":"IF(AND(REFERENTES!V58<>\"\",          REFERENTES!V58<>96321,    REFERENTES!V58<>96222            ),CONCATENATE(REFERENTES!T58,\"-\",REFERENTES!V58),\"\")","v":"NEG-2"},{"$f":"REFERENTES!U58","v":41702}]
[null,null,null,null,null,null,null,null,null,null,null,{"$f":"IF(AND(REFERENTES!V59<>\"\",          REFERENTES!V59<>96321,    REFERENTES!V59<>96222            ),CONCATENATE(REFERENTES!T59,\"-\",REFERENTES!V59),\"\")","v":"NEG-1"},{"$f":"REFERENTES!U59","v":41701}]
[null,null,null,null,null,null,null,null,null,null,null,{"$f":"IF(AND(REFERENTES!V60<>\"\",          REFERENTES!V60<>96321,    REFERENTES!V60<>96222            ),CONCATENATE(REFERENTES!T60,\"-\",REFERENTES!V60),\"\")","v":"NET-1"},{"$f":"REFERENTES!U60","v":37120}]
[null,null,null,null,null,null,null,null,null,null,null,{"$f":"IF(AND(REFERENTES!V61<>\"\",          REFERENTES!V61<>96321,    REFERENTES!V61<>96222            ),CONCATENATE(REFERENTES!T61,\"-\",REFERENTES!V61),\"\")","v":"NET-2"},{"$f":"REFERENTES!U61","v":52325}]
[null,null,null,null,null,null,null,null,null,null,null,{"$f":"IF(AND(REFERENTES!V62<>\"\",          REFERENTES!V62<>96321,    REFERENTES!V62<>96222            ),CONCATENATE(REFERENTES!T62,\"-\",REFERENTES!V62),\"\")","v":"PAV-1"},{"$f":"REFERENTES!U62","v":14300}]
[null,null,null,null,null,null,null,null,null,null,null,{"$f":"IF(AND(REFERENTES!V63<>\"\",          REFERENTES!V63<>96321,    REFERENTES!V63<>96222            ),CONCATENATE(REFERENTES!T63,\"-\",REFERENTES!V63),\"\")","v":"PLA-2"},{"$f":"REFERENTES!U63","v":14295}]
[null,null,null,null,null,null,null,null,null,null,null,{"$f":"IF(AND(REFERENTES!V64<>\"\",          REFERENTES!V64<>96321,    REFERENTES!V64<>96222            ),CONCATENATE(REFERENTES!T64,\"-\",REFERENTES!V64),\"\")","v":"PLA-3"},{"$f":"REFERENTES!U64","v":41690}]
[null,null,null,null,null,null,null,null,null,null,null,{"$f":"IF(AND(REFERENTES!V65<>\"\",          REFERENTES!V65<>96321,    REFERENTES!V65<>96222            ),CONCATENATE(REFERENTES!T65,\"-\",REFERENTES!V65),\"\")","v":"PLA-4"},{"$f":"REFERENTES!U65","v":41691}]
[null,null,null,null,null,null,null,null,null,null,null,{"$f":"IF(AND(REFERENTES!V66<>\"\",          REFERENTES!V66<>96321,    REFERENTES!V66<>96222            ),CONCATENATE(REFERENTES!T66,\"-\",REFERENTES!V66),\"\")","v":"PLA-1"},{"$f":"REFERENTES!U66","v":14343}]
[null,null,null,null,null,null,null,null,null,null,null,{"$f":"IF(AND(REFERENTES!V67<>\"\",          REFERENTES!V67<>96321,    REFERENTES!V67<>96222            ),CONCATENATE(REFERENTES!T67,\"-\",REFERENTES!V67),\"\")","v":"PBLA-1"},{"$f":"REFERENTES!U67","v":52865}]
[null,null,null,null,null,null,null,null,null,null,null,{"$f":"IF(AND(REFERENTES!V68<>\"\",          REFERENTES!V68<>96321,    REFERENTES!V68<>96222            ),CONCATENATE(REFERENTES!T68,\"-\",REFERENTES!V68),\"\")","v":"PBR-1"},{"$f":"REFERENTES!U68","v":41548}]
[null,null,null,null,null,null,null,null,null,null,null,{"$f":"IF(AND(REFERENTES!V69<>\"\",          REFERENTES!V69<>96321,    REFERENTES!V69<>96222            ),CONCATENATE(REFERENTES!T69,\"-\",REFERENTES!V69),\"\")","v":"SFE-1"},{"$f":"REFERENTES!U69","v":14321}]
[null,null,null,null,null,null,null,null,null,null,null,{"$f":"IF(AND(REFERENTES!V70<>\"\",          REFERENTES!V70<>96321,    REFERENTES!V70<>96222            ),CONCATENATE(REFERENTES!T70,\"-\",REFERENTES!V70),\"\")","v":"SFE-2"},{"$f":"REFERENTES!U70","v":14322}]
[null,null,null,null,null,null,null,null,null,null,null,{"$f":"IF(AND(REFERENTES!V71<>\"\",          REFERENTES!V71<>96321,    REFERENTES!V71<>96222            ),CONCATENATE(REFERENTES!T71,\"-\",REFERENTES!V71),\"\")","v":"TES-1"},{"$f":"REFERENTES!U71","v":14299}]
[null,null,null,null,null,null,null,null,null,null,null,{"$f":"IF(AND(REFERENTES!V72<>\"\",          REFERENTES!V72<>96321,    REFERENTES!V72<>96222            ),CONCATENATE(REFERENTES!T72,\"-\",REFERENTES!V72),\"\")","v":"TES-2"},{"$f":"REFERENTES!U72","v":41549}]
[null,null,null,null,null,null,null,null,null,null,null,{"$f":"IF(AND(REFERENTES!V73<>\"\",          REFERENTES!V73<>96321,    REFERENTES!V73<>96222            ),CONCATENATE(REFERENTES!T73,\"-\",REFERENTES!V73),\"\")","v":"BAR-1"},{"$f":"REFERENTES!U73","v":14319}]
[null,null,null,null,null,null,null,null,null,null,null,{"$f":"IF(AND(REFERENTES!V74<>\"\",          REFERENTES!V74<>96321,    REFERENTES!V74<>96222            ),CONCATENATE(REFERENTES!T74,\"-\",REFERENTES!V74),\"\")","v":"BAR-2"},{"$f":"REFERENTES!U74","v":14320}]
[null,null,null,null,null,null,null,null,null,null,null,{"$f":"IF(AND(REFERENTES!V75<>\"\",          REFERENTES!V75<>96321,    REFERENTES!V75<>96222            ),CONCATENATE(REFERENTES!T75,\"-\",REFERENTES!V75),\"\")","v":"TNT-1"},{"$f":"REFERENTES!U75","v":41697}]
[null,null,null,null,null,null,null,null,null,null,null,{"$f":"IF(AND(REFERENTES!V76<>\"\",          REFERENTES!V76<>96321,    REFERENTES!V76<>96222            ),CONCATENATE(REFERENTES!T76,\"-\",REFERENTES!V76),\"\")","v":"TNT-2"},{"$f":"REFERENTES!U76","v":41696}]
[null,null,null,null,null,null,null,null,null,null,null,{"$f":"IF(AND(REFERENTES!V77<>\"\",          REFERENTES!V77<>96321,    REFERENTES!V77<>96222            ),CONCATENATE(REFERENTES!T77,\"-\",REFERENTES!V77),\"\")","v":"TIO-1"},{"$f":"REFERENTES!U77","v":14332}]
[null,null,null,null,null,null,null,null,null,null,null,{"$f":"IF(AND(REFERENTES!V78<>\"\",          REFERENTES!V78<>96321,    REFERENTES!V78<>96222            ),CONCATENATE(REFERENTES!T78,\"-\",REFERENTES!V78),\"\")","v":"VAR-1"},{"$f":"REFERENTES!U78","v":49084}]
[null,null,null,null,null,null,null,null,null,null,null,{"$f":"IF(AND(REFERENTES!V79<>\"\",          REFERENTES!V79<>96321,    REFERENTES!V79<>96222            ),CONCATENATE(REFERENTES!T79,\"-\",REFERENTES!V79),\"\")","v":"VAR-2"},{"$f":"REFERENTES!U79","v":49085}]
[null,null,null,null,null,null,null,null,null,null,null,{"$f":"IF(AND(REFERENTES!V80<>\"\",          REFERENTES!V80<>96321,    REFERENTES!V80<>96222            ),CONCATENATE(REFERENTES!T80,\"-\",REFERENTES!V80),\"\")","v":"VAR-3"},{"$f":"REFERENTES!U80","v":49086}]
[null,null,null,null,null,null,null,null,null,null,null,{"$f":"IF(AND(REFERENTES!V81<>\"\",          REFERENTES!V81<>96321,    REFERENTES!V81<>96222            ),CONCATENATE(REFERENTES!T81,\"-\",REFERENTES!V81),\"\")","v":"WHI-1"},{"$f":"REFERENTES!U81","v":41700}]
[null,null,null,null,null,null,null,null,null,null,null,{"$f":"IF(AND(REFERENTES!V82<>\"\",          REFERENTES!V82<>96321,    REFERENTES!V82<>96222            ),CONCATENATE(REFERENTES!T82,\"-\",REFERENTES!V82),\"\")","v":"WLF-1"},{"$f":"REFERENTES!U82","v":14340}]
[null,null,null,null,null,null,null,null,null,null,null,{"$f":"IF(AND(REFERENTES!V83<>\"\",          REFERENTES!V83<>96321,    REFERENTES!V83<>96222            ),CONCATENATE(REFERENTES!T83,\"-\",REFERENTES!V83),\"\")","v":"ZAP-1"},{"$f":"REFERENTES!U83","v":14335}]
[null,null,null,null,null,null,null,null,null,null,null,{"$f":"IF(AND(REFERENTES!V84<>\"\",          REFERENTES!V84<>96321,    REFERENTES!V84<>96222            ),CONCATENATE(REFERENTES!T84,\"-\",REFERENTES!V84),\"\")","v":""},{"$f":"REFERENTES!U84","v":0}]
[null,null,null,null,null,null,null,null,null,null,null,{"$f":"IF(AND(REFERENTES!V85<>\"\",          REFERENTES!V85<>96321,    REFERENTES!V85<>96222            ),CONCATENATE(REFERENTES!T85,\"-\",REFERENTES!V85),\"\")","v":""},{"$f":"REFERENTES!U85","v":0}]
[null,null,null,null,null,null,null,null,null,null,null,{"$f":"IF(AND(REFERENTES!V86<>\"\",          REFERENTES!V86<>96321,    REFERENTES!V86<>96222            ),CONCATENATE(REFERENTES!T86,\"-\",REFERENTES!V86),\"\")","v":""},{"$f":"REFERENTES!U86","v":0}]
[null,null,null,null,null,null,null,null,null,null,null,{"$f":"IF(AND(REFERENTES!V87<>\"\",          REFERENTES!V87<>96321,    REFERENTES!V87<>96222            ),CONCATENATE(REFERENTES!T87,\"-\",REFERENTES!V87),\"\")","v":""},{"$f":"REFERENTES!U87","v":0}]
[null,null,null,null,null,null,null,null,null,null,null,{"$f":"IF(AND(REFERENTES!V88<>\"\",          REFERENTES!V88<>96321,    REFERENTES!V88<>96222            ),CONCATENATE(REFERENTES!T88,\"-\",REFERENTES!V88),\"\")","v":""},{"$f":"REFERENTES!U88","v":0}]
[null,null,null,null,null,null,null,null,null,null,null,{"$f":"IF(AND(REFERENTES!V89<>\"\",          REFERENTES!V89<>96321,    REFERENTES!V89<>96222            ),CONCATENATE(REFERENTES!T89,\"-\",REFERENTES!V89),\"\")","v":""},{"$f":"REFERENTES!U89","v":0}]
[null,null,null,null,null,null,null,null,null,null,null,{"$f":"IF(AND(REFERENTES!V90<>\"\",          REFERENTES!V90<>96321,    REFERENTES!V90<>96222            ),CONCATENATE(REFERENTES!T90,\"-\",REFERENTES!V90),\"\")","v":""},{"$f":"REFERENTES!U90","v":0}]
[null,null,null,null,null,null,null,null,null,null,null,{"$f":"IF(AND(REFERENTES!V91<>\"\",          REFERENTES!V91<>96321,    REFERENTES!V91<>96222            ),CONCATENATE(REFERENTES!T91,\"-\",REFERENTES!V91),\"\")","v":""},{"$f":"REFERENTES!U91","v":0}]
[null,null,null,null,null,null,null,null,null,null,null,{"$f":"IF(AND(REFERENTES!V92<>\"\",          REFERENTES!V92<>96321,    REFERENTES!V92<>96222            ),CONCATENATE(REFERENTES!T92,\"-\",REFERENTES!V92),\"\")","v":""},{"$f":"REFERENTES!U92","v":0}]
[null,null,null,null,null,null,null,null,null,null,null,{"$f":"IF(AND(REFERENTES!V93<>\"\",          REFERENTES!V93<>96321,    REFERENTES!V93<>96222            ),CONCATENATE(REFERENTES!T93,\"-\",REFERENTES!V93),\"\")","v":""},{"$f":"REFERENTES!U93","v":0}]
[null,null,null,null,null,null,null,null,null,null,null,{"$f":"IF(AND(REFERENTES!V94<>\"\",          REFERENTES!V94<>96321,    REFERENTES!V94<>96222            ),CONCATENATE(REFERENTES!T94,\"-\",REFERENTES!V94),\"\")","v":""},{"$f":"REFERENTES!U94","v":0}]
[null,null,null,null,null,null,null,null,null,null,null,{"$f":"IF(AND(REFERENTES!V95<>\"\",          REFERENTES!V95<>96321,    REFERENTES!V95<>96222            ),CONCATENATE(REFERENTES!T95,\"-\",REFERENTES!V95),\"\")","v":""},{"$f":"REFERENTES!U95","v":0}]
[null,null,null,null,null,null,null,null,null,null,null,{"$f":"IF(AND(REFERENTES!V96<>\"\",          REFERENTES!V96<>96321,    REFERENTES!V96<>96222            ),CONCATENATE(REFERENTES!T96,\"-\",REFERENTES!V96),\"\")","v":""},{"$f":"REFERENTES!U96","v":0}]
[null,null,null,null,null,null,null,null,null,null,null,{"$f":"IF(AND(REFERENTES!V97<>\"\",          REFERENTES!V97<>96321,    REFERENTES!V97<>96222            ),CONCATENATE(REFERENTES!T97,\"-\",REFERENTES!V97),\"\")","v":""},{"$f":"REFERENTES!U97","v":0}]
[null,null,null,null,null,null,null,null,null,null,null,{"$f":"IF(AND(REFERENTES!V98<>\"\",          REFERENTES!V98<>96321,    REFERENTES!V98<>96222            ),CONCATENATE(REFERENTES!T98,\"-\",REFERENTES!V98),\"\")","v":""},{"$f":"REFERENTES!U98","v":0}]
[null,null,null,null,null,null,null,null,null,null,null,{"$f":"IF(AND(REFERENTES!V99<>\"\",          REFERENTES!V99<>96321,    REFERENTES!V99<>96222            ),CONCATENATE(REFERENTES!T99,\"-\",REFERENTES!V99),\"\")","v":""},{"$f":"REFERENTES!U99","v":0}]
[null,null,null,null,null,null,null,null,null,null,null,{"$f":"IF(AND(REFERENTES!V100<>\"\",          REFERENTES!V100<>96321,    REFERENTES!V100<>96222            ),CONCATENATE(REFERENTES!T100,\"-\",REFERENTES!V100),\"\")","v":""},{"$f":"REFERENTES!U100","v":0}]
[null,null,null,null,null,null,null,null,null,null,null,{"$f":"IF(AND(REFERENTES!V101<>\"\",          REFERENTES!V101<>96321,    REFERENTES!V101<>96222            ),CONCATENATE(REFERENTES!T101,\"-\",REFERENTES!V101),\"\")","v":""},{"$f":"REFERENTES!U101","v":0}]
[null,null,null,null,null,null,null,null,null,null,null,{"$f":"IF(AND(REFERENTES!V102<>\"\",          REFERENTES!V102<>96321,    REFERENTES!V102<>96222            ),CONCATENATE(REFERENTES!T102,\"-\",REFERENTES!V102),\"\")","v":""},{"$f":"REFERENTES!U102","v":0}]
[null,null,null,null,null,null,null,null,null,null,null,{"$f":"IF(AND(REFERENTES!V103<>\"\",          REFERENTES!V103<>96321,    REFERENTES!V103<>96222            ),CONCATENATE(REFERENTES!T103,\"-\",REFERENTES!V103),\"\")","v":""},{"$f":"REFERENTES!U103","v":0}]
[null,null,null,null,null,null,null,null,null,null,null,{"$f":"IF(AND(REFERENTES!V104<>\"\",          REFERENTES!V104<>96321,    REFERENTES!V104<>96222            ),CONCATENATE(REFERENTES!T104,\"-\",REFERENTES!V104),\"\")","v":""},{"$f":"REFERENTES!U104","v":0}]
[null,null,null,null,null,null,null,null,null,null,null,{"$f":"IF(AND(REFERENTES!V105<>\"\",          REFERENTES!V105<>96321,    REFERENTES!V105<>96222            ),CONCATENATE(REFERENTES!T105,\"-\",REFERENTES!V105),\"\")","v":""},{"$f":"REFERENTES!U105","v":0}]
[null,null,null,null,null,null,null,null,null,null,null,{"$f":"IF(AND(REFERENTES!V106<>\"\",          REFERENTES!V106<>96321,    REFERENTES!V106<>96222            ),CONCATENATE(REFERENTES!T106,\"-\",REFERENTES!V106),\"\")","v":""},{"$f":"REFERENTES!U106","v":0}]
[null,null,null,null,null,null,null,null,null,null,null,{"$f":"IF(AND(REFERENTES!V107<>\"\",          REFERENTES!V107<>96321,    REFERENTES!V107<>96222            ),CONCATENATE(REFERENTES!T107,\"-\",REFERENTES!V107),\"\")","v":""},{"$f":"REFERENTES!U107","v":0}]
[null,null,null,null,null,null,null,null,null,null,null,{"$f":"IF(AND(REFERENTES!V108<>\"\",          REFERENTES!V108<>96321,    REFERENTES!V108<>96222            ),CONCATENATE(REFERENTES!T108,\"-\",REFERENTES!V108),\"\")","v":""},{"$f":"REFERENTES!U108","v":0}]
[null,null,null,null,null,null,null,null,null,null,null,{"$f":"IF(AND(REFERENTES!V109<>\"\",          REFERENTES!V109<>96321,    REFERENTES!V109<>96222            ),CONCATENATE(REFERENTES!T109,\"-\",REFERENTES!V109),\"\")","v":""},{"$f":"REFERENTES!U109","v":0}]
[null,null,null,null,null,null,null,null,null,null,null,{"$f":"IF(AND(REFERENTES!V110<>\"\",          REFERENTES!V110<>96321,    REFERENTES!V110<>96222            ),CONCATENATE(REFERENTES!T110,\"-\",REFERENTES!V110),\"\")","v":""},{"$f":"REFERENTES!U110","v":0}]
[null,null,null,null,null,null,null,null,null,null,null,{"$f":"IF(AND(REFERENTES!V111<>\"\",          REFERENTES!V111<>96321,    REFERENTES!V111<>96222            ),CONCATENATE(REFERENTES!T111,\"-\",REFERENTES!V111),\"\")","v":""},{"$f":"REFERENTES!U111","v":0}]
[null,null,null,null,null,null,null,null,null,null,null,{"$f":"IF(AND(REFERENTES!V112<>\"\",          REFERENTES!V112<>96321,    REFERENTES!V112<>96222            ),CONCATENATE(REFERENTES!T112,\"-\",REFERENTES!V112),\"\")","v":""},{"$f":"REFERENTES!U112","v":0}]
[null,null,null,null,null,null,null,null,null,null,null,{"$f":"IF(AND(REFERENTES!V113<>\"\",          REFERENTES!V113<>96321,    REFERENTES!V113<>96222            ),CONCATENATE(REFERENTES!T113,\"-\",REFERENTES!V113),\"\")","v":""},{"$f":"REFERENTES!U113","v":0}]
[null,null,null,null,null,null,null,null,null,null,null,{"$f":"IF(AND(REFERENTES!V114<>\"\",          REFERENTES!V114<>96321,    REFERENTES!V114<>96222            ),CONCATENATE(REFERENTES!T114,\"-\",REFERENTES!V114),\"\")","v":""},{"$f":"REFERENTES!U114","v":0}]
[null,null,null,null,null,null,null,null,null,null,null,{"$f":"IF(AND(REFERENTES!V115<>\"\",          REFERENTES!V115<>96321,    REFERENTES!V115<>96222            ),CONCATENATE(REFERENTES!T115,\"-\",REFERENTES!V115),\"\")","v":""},{"$f":"REFERENTES!U115","v":0}]
[null,null,null,null,null,null,null,null,null,null,null,{"$f":"IF(AND(REFERENTES!V116<>\"\",          REFERENTES!V116<>96321,    REFERENTES!V116<>96222            ),CONCATENATE(REFERENTES!T116,\"-\",REFERENTES!V116),\"\")","v":""},{"$f":"REFERENTES!U116","v":0}]
[null,null,null,null,null,null,null,null,null,null,null,{"$f":"IF(AND(REFERENTES!V117<>\"\",          REFERENTES!V117<>96321,    REFERENTES!V117<>96222            ),CONCATENATE(REFERENTES!T117,\"-\",REFERENTES!V117),\"\")","v":""},{"$f":"REFERENTES!U117","v":0}]
[null,null,null,null,null,null,null,null,null,null,null,{"$f":"IF(AND(REFERENTES!V118<>\"\",          REFERENTES!V118<>96321,    REFERENTES!V118<>96222            ),CONCATENATE(REFERENTES!T118,\"-\",REFERENTES!V118),\"\")","v":""},{"$f":"REFERENTES!U118","v":0}]
[null,null,null,null,null,null,null,null,null,null,null,{"$f":"IF(AND(REFERENTES!V119<>\"\",          REFERENTES!V119<>96321,    REFERENTES!V119<>96222            ),CONCATENATE(REFERENTES!T119,\"-\",REFERENTES!V119),\"\")","v":""},{"$f":"REFERENTES!U119","v":0}]
[null,null,null,null,null,null,null,null,null,null,null,{"$f":"IF(AND(REFERENTES!V120<>\"\",          REFERENTES!V120<>96321,    REFERENTES!V120<>96222            ),CONCATENATE(REFERENTES!T120,\"-\",REFERENTES!V120),\"\")","v":""},{"$f":"REFERENTES!U120","v":0}]
[null,null,null,null,null,null,null,null,null,null,null,{"$f":"IF(AND(REFERENTES!V121<>\"\",          REFERENTES!V121<>96321,    REFERENTES!V121<>96222            ),CONCATENATE(REFERENTES!T121,\"-\",REFERENTES!V121),\"\")","v":""},{"$f":"REFERENTES!U121","v":0}]
[null,null,null,null,null,null,null,null,null,null,null,{"$f":"IF(AND(REFERENTES!V122<>\"\",          REFERENTES!V122<>96321,    REFERENTES!V122<>96222            ),CONCATENATE(REFERENTES!T122,\"-\",REFERENTES!V122),\"\")","v":""},{"$f":"REFERENTES!U122","v":0}]
[null,null,null,null,null,null,null,null,null,null,null,{"$f":"IF(AND(REFERENTES!V123<>\"\",          REFERENTES!V123<>96321,    REFERENTES!V123<>96222            ),CONCATENATE(REFERENTES!T123,\"-\",REFERENTES!V123),\"\")","v":""},{"$f":"REFERENTES!U123","v":0}]
[null,null,null,null,null,null,null,null,null,null,null,{"$f":"IF(AND(REFERENTES!V124<>\"\",          REFERENTES!V124<>96321,    REFERENTES!V124<>96222            ),CONCATENATE(REFERENTES!T124,\"-\",REFERENTES!V124),\"\")","v":""},{"$f":"REFERENTES!U124","v":0}]
[null,null,null,null,null,null,null,null,null,null,null,{"$f":"IF(AND(REFERENTES!V125<>\"\",          REFERENTES!V125<>96321,    REFERENTES!V125<>96222            ),CONCATENATE(REFERENTES!T125,\"-\",REFERENTES!V125),\"\")","v":""},{"$f":"REFERENTES!U125","v":0}]
[null,null,null,null,null,null,null,null,null,null,null,{"$f":"IF(AND(REFERENTES!V126<>\"\",          REFERENTES!V126<>96321,    REFERENTES!V126<>96222            ),CONCATENATE(REFERENTES!T126,\"-\",REFERENTES!V126),\"\")","v":""},{"$f":"REFERENTES!U126","v":0}]
[null,null,null,null,null,null,null,null,null,null,null,{"$f":"IF(AND(REFERENTES!V127<>\"\",          REFERENTES!V127<>96321,    REFERENTES!V127<>96222            ),CONCATENATE(REFERENTES!T127,\"-\",REFERENTES!V127),\"\")","v":""},{"$f":"REFERENTES!U127","v":0}]
[null,null,null,null,null,null,null,null,null,null,null,{"$f":"IF(AND(REFERENTES!V128<>\"\",          REFERENTES!V128<>96321,    REFERENTES!V128<>96222            ),CONCATENATE(REFERENTES!T128,\"-\",REFERENTES!V128),\"\")","v":""},{"$f":"REFERENTES!U128","v":0}]
[null,null,null,null,null,null,null,null,null,null,null,{"$f":"IF(AND(REFERENTES!V129<>\"\",          REFERENTES!V129<>96321,    REFERENTES!V129<>96222            ),CONCATENATE(REFERENTES!T129,\"-\",REFERENTES!V129),\"\")","v":""},{"$f":"REFERENTES!U129","v":0}]
[null,null,null,null,null,null,null,null,null,null,null,{"$f":"IF(AND(REFERENTES!V130<>\"\",          REFERENTES!V130<>96321,    REFERENTES!V130<>96222            ),CONCATENATE(REFERENTES!T130,\"-\",REFERENTES!V130),\"\")","v":""},{"$f":"REFERENTES!U130","v":0}]
[null,null,null,null,null,null,null,null,null,null,null,{"$f":"IF(AND(REFERENTES!V131<>\"\",          REFERENTES!V131<>96321,    REFERENTES!V131<>96222            ),CONCATENATE(REFERENTES!T131,\"-\",REFERENTES!V131),\"\")","v":""},{"$f":"REFERENTES!U131","v":0}]
[null,null,null,null,null,null,null,null,null,null,null,{"$f":"IF(AND(REFERENTES!V132<>\"\",          REFERENTES!V132<>96321,    REFERENTES!V132<>96222            ),CONCATENATE(REFERENTES!T132,\"-\",REFERENTES!V132),\"\")","v":""},{"$f":"REFERENTES!U132","v":0}]
[null,null,null,null,null,null,null,null,null,null,null,{"$f":"IF(AND(REFERENTES!V133<>\"\",          REFERENTES!V133<>96321,    REFERENTES!V133<>96222            ),CONCATENATE(REFERENTES!T133,\"-\",REFERENTES!V133),\"\")","v":""},{"$f":"REFERENTES!U133","v":0}]
[null,null,null,null,null,null,null,null,null,null,null,{"$f":"IF(AND(REFERENTES!V134<>\"\",          REFERENTES!V134<>96321,    REFERENTES!V134<>96222            ),CONCATENATE(REFERENTES!T134,\"-\",REFERENTES!V134),\"\")","v":""},{"$f":"REFERENTES!U134","v":0}]
[null,null,null,null,null,null,null,null,null,null,null,{"$f":"IF(AND(REFERENTES!V135<>\"\",          REFERENTES!V135<>96321,    REFERENTES!V135<>96222            ),CONCATENATE(REFERENTES!T135,\"-\",REFERENTES!V135),\"\")","v":""},{"$f":"REFERENTES!U135","v":0}]
[null,null,null,null,null,null,null,null,null,null,null,{"$f":"IF(AND(REFERENTES!V136<>\"\",          REFERENTES!V136<>96321,    REFERENTES!V136<>96222            ),CONCATENATE(REFERENTES!T136,\"-\",REFERENTES!V136),\"\")","v":""},{"$f":"REFERENTES!U136","v":0}]
[null,null,null,null,null,null,null,null,null,null,null,{"$f":"IF(AND(REFERENTES!V137<>\"\",          REFERENTES!V137<>96321,    REFERENTES!V137<>96222            ),CONCATENATE(REFERENTES!T137,\"-\",REFERENTES!V137),\"\")","v":""},{"$f":"REFERENTES!U137","v":0}]
[null,null,null,null,null,null,null,null,null,null,null,{"$f":"IF(AND(REFERENTES!V138<>\"\",          REFERENTES!V138<>96321,    REFERENTES!V138<>96222            ),CONCATENATE(REFERENTES!T138,\"-\",REFERENTES!V138),\"\")","v":""},{"$f":"REFERENTES!U138","v":0}]
[null,null,null,null,null,null,null,null,null,null,null,{"$f":"IF(AND(REFERENTES!V139<>\"\",          REFERENTES!V139<>96321,    REFERENTES!V139<>96222            ),CONCATENATE(REFERENTES!T139,\"-\",REFERENTES!V139),\"\")","v":""},{"$f":"REFERENTES!U139","v":0}]
[null,null,null,null,null,null,null,null,null,null,null,{"$f":"IF(AND(REFERENTES!V140<>\"\",          REFERENTES!V140<>96321,    REFERENTES!V140<>96222            ),CONCATENATE(REFERENTES!T140,\"-\",REFERENTES!V140),\"\")","v":""},{"$f":"REFERENTES!U140","v":0}]
[null,null,null,null,null,null,null,null,null,null,null,{"$f":"IF(AND(REFERENTES!V141<>\"\",          REFERENTES!V141<>96321,    REFERENTES!V141<>96222            ),CONCATENATE(REFERENTES!T141,\"-\",REFERENTES!V141),\"\")","v":""},{"$f":"REFERENTES!U141","v":0}]
[null,null,null,null,null,null,null,null,null,null,null,{"$f":"IF(AND(REFERENTES!V142<>\"\",          REFERENTES!V142<>96321,    REFERENTES!V142<>96222            ),CONCATENATE(REFERENTES!T142,\"-\",REFERENTES!V142),\"\")","v":""},{"$f":"REFERENTES!U142","v":0}]
[null,null,null,null,null,null,null,null,null,null,null,{"$f":"IF(AND(REFERENTES!V143<>\"\",          REFERENTES!V143<>96321,    REFERENTES!V143<>96222            ),CONCATENATE(REFERENTES!T143,\"-\",REFERENTES!V143),\"\")","v":""},{"$f":"REFERENTES!U143","v":0}]
[null,null,null,null,null,null,null,null,null,null,null,{"$f":"IF(AND(REFERENTES!V144<>\"\",          REFERENTES!V144<>96321,    REFERENTES!V144<>96222            ),CONCATENATE(REFERENTES!T144,\"-\",REFERENTES!V144),\"\")","v":""},{"$f":"REFERENTES!U144","v":0}]
[null,null,null,null,null,null,null,null,null,null,null,{"$f":"IF(AND(REFERENTES!V145<>\"\",          REFERENTES!V145<>96321,    REFERENTES!V145<>96222            ),CONCATENATE(REFERENTES!T145,\"-\",REFERENTES!V145),\"\")","v":""},{"$f":"REFERENTES!U145","v":0}]
[null,null,null,null,null,null,null,null,null,null,null,{"$f":"IF(AND(REFERENTES!V146<>\"\",          REFERENTES!V146<>96321,    REFERENTES!V146<>96222            ),CONCATENATE(REFERENTES!T146,\"-\",REFERENTES!V146),\"\")","v":""},{"$f":"REFERENTES!U146","v":0}]
[null,null,null,null,null,null,null,null,null,null,null,{"$f":"IF(AND(REFERENTES!V147<>\"\",          REFERENTES!V147<>96321,    REFERENTES!V147<>96222            ),CONCATENATE(REFERENTES!T147,\"-\",REFERENTES!V147),\"\")","v":""},{"$f":"REFERENTES!U147","v":0}]
[null,null,null,null,null,null,null,null,null,null,null,{"$f":"IF(AND(REFERENTES!V148<>\"\",          REFERENTES!V148<>96321,    REFERENTES!V148<>96222            ),CONCATENATE(REFERENTES!T148,\"-\",REFERENTES!V148),\"\")","v":""},{"$f":"REFERENTES!U148","v":0}]
[null,null,null,null,null,null,null,null,null,null,null,{"$f":"IF(AND(REFERENTES!V149<>\"\",          REFERENTES!V149<>96321,    REFERENTES!V149<>96222            ),CONCATENATE(REFERENTES!T149,\"-\",REFERENTES!V149),\"\")","v":""},{"$f":"REFERENTES!U149","v":0}]
[null,null,null,null,null,null,null,null,null,null,null,{"$f":"IF(AND(REFERENTES!V150<>\"\",          REFERENTES!V150<>96321,    REFERENTES!V150<>96222            ),CONCATENATE(REFERENTES!T150,\"-\",REFERENTES!V150),\"\")","v":""},{"$f":"REFERENTES!U150","v":0}]
[null,null,null,null,null,null,null,null,null,null,null,{"$f":"IF(AND(REFERENTES!V151<>\"\",          REFERENTES!V151<>96321,    REFERENTES!V151<>96222            ),CONCATENATE(REFERENTES!T151,\"-\",REFERENTES!V151),\"\")","v":""},{"$f":"REFERENTES!U151","v":0}]
[null,null,null,null,null,null,null,null,null,null,null,{"$f":"IF(AND(REFERENTES!V152<>\"\",          REFERENTES!V152<>96321,    REFERENTES!V152<>96222            ),CONCATENATE(REFERENTES!T152,\"-\",REFERENTES!V152),\"\")","v":""},{"$f":"REFERENTES!U152","v":0}]

{"sheet":"Resumen","index":6,"n_rows":101,"n_cols":8,"rows_kept":101,"cut":false,"hidden":false,"merged":[[0,7,2,11]]}
["estacion","individuos","registros","Etiquetas de fila","Suma de individuos","Cuenta de registros",null,"Esta tabla debe ser actualizada cada vez que introduzca nuevos datos, para ello debe hacer clic sobre cualquier parte de la tabla y presionar las teclas ALT + F5 de manera conjunta."]
[{"$f":"IF(DATOS!R5=\"\",\"\",DATOS!R5)","v":""},{"$f":"IF(DATOS!AF5=\"\",\"\",DATOS!AF5)","v":""},{"$f":"IF(DATOS!V5=\"\",\"\",DATOS!V5)","v":""},null,0,100]
[{"$f":"IF(DATOS!R6=\"\",\"\",DATOS!R6)","v":""},{"$f":"IF(DATOS!AF6=\"\",\"\",DATOS!AF6)","v":""},{"$f":"IF(DATOS!V6=\"\",\"\",DATOS!V6)","v":""},"Total general",0,100]
[{"$f":"IF(DATOS!R7=\"\",\"\",DATOS!R7)","v":""},{"$f":"IF(DATOS!AF7=\"\",\"\",DATOS!AF7)","v":""},{"$f":"IF(DATOS!V7=\"\",\"\",DATOS!V7)","v":""}]
[{"$f":"IF(DATOS!R8=\"\",\"\",DATOS!R8)","v":""},{"$f":"IF(DATOS!AF8=\"\",\"\",DATOS!AF8)","v":""},{"$f":"IF(DATOS!V8=\"\",\"\",DATOS!V8)","v":""}]
[{"$f":"IF(DATOS!R9=\"\",\"\",DATOS!R9)","v":""},{"$f":"IF(DATOS!AF9=\"\",\"\",DATOS!AF9)","v":""},{"$f":"IF(DATOS!V9=\"\",\"\",DATOS!V9)","v":""}]
[{"$f":"IF(DATOS!R10=\"\",\"\",DATOS!R10)","v":""},{"$f":"IF(DATOS!AF10=\"\",\"\",DATOS!AF10)","v":""},{"$f":"IF(DATOS!V10=\"\",\"\",DATOS!V10)","v":""}]
[{"$f":"IF(DATOS!R11=\"\",\"\",DATOS!R11)","v":""},{"$f":"IF(DATOS!AF11=\"\",\"\",DATOS!AF11)","v":""},{"$f":"IF(DATOS!V11=\"\",\"\",DATOS!V11)","v":""}]
[{"$f":"IF(DATOS!R12=\"\",\"\",DATOS!R12)","v":""},{"$f":"IF(DATOS!AF12=\"\",\"\",DATOS!AF12)","v":""},{"$f":"IF(DATOS!V12=\"\",\"\",DATOS!V12)","v":""}]
[{"$f":"IF(DATOS!R13=\"\",\"\",DATOS!R13)","v":""},{"$f":"IF(DATOS!AF13=\"\",\"\",DATOS!AF13)","v":""},{"$f":"IF(DATOS!V13=\"\",\"\",DATOS!V13)","v":""}]
[{"$f":"IF(DATOS!R14=\"\",\"\",DATOS!R14)","v":""},{"$f":"IF(DATOS!AF14=\"\",\"\",DATOS!AF14)","v":""},{"$f":"IF(DATOS!V14=\"\",\"\",DATOS!V14)","v":""}]
[{"$f":"IF(DATOS!R15=\"\",\"\",DATOS!R15)","v":""},{"$f":"IF(DATOS!AF15=\"\",\"\",DATOS!AF15)","v":""},{"$f":"IF(DATOS!V15=\"\",\"\",DATOS!V15)","v":""}]
[{"$f":"IF(DATOS!R16=\"\",\"\",DATOS!R16)","v":""},{"$f":"IF(DATOS!AF16=\"\",\"\",DATOS!AF16)","v":""},{"$f":"IF(DATOS!V16=\"\",\"\",DATOS!V16)","v":""}]
[{"$f":"IF(DATOS!R17=\"\",\"\",DATOS!R17)","v":""},{"$f":"IF(DATOS!AF17=\"\",\"\",DATOS!AF17)","v":""},{"$f":"IF(DATOS!V17=\"\",\"\",DATOS!V17)","v":""}]
[{"$f":"IF(DATOS!R18=\"\",\"\",DATOS!R18)","v":""},{"$f":"IF(DATOS!AF18=\"\",\"\",DATOS!AF18)","v":""},{"$f":"IF(DATOS!V18=\"\",\"\",DATOS!V18)","v":""}]
[{"$f":"IF(DATOS!R19=\"\",\"\",DATOS!R19)","v":""},{"$f":"IF(DATOS!AF19=\"\",\"\",DATOS!AF19)","v":""},{"$f":"IF(DATOS!V19=\"\",\"\",DATOS!V19)","v":""}]
[{"$f":"IF(DATOS!R20=\"\",\"\",DATOS!R20)","v":""},{"$f":"IF(DATOS!AF20=\"\",\"\",DATOS!AF20)","v":""},{"$f":"IF(DATOS!V20=\"\",\"\",DATOS!V20)","v":""}]
[{"$f":"IF(DATOS!R21=\"\",\"\",DATOS!R21)","v":""},{"$f":"IF(DATOS!AF21=\"\",\"\",DATOS!AF21)","v":""},{"$f":"IF(DATOS!V21=\"\",\"\",DATOS!V21)","v":""}]
[{"$f":"IF(DATOS!R22=\"\",\"\",DATOS!R22)","v":""},{"$f":"IF(DATOS!AF22=\"\",\"\",DATOS!AF22)","v":""},{"$f":"IF(DATOS!V22=\"\",\"\",DATOS!V22)","v":""}]
[{"$f":"IF(DATOS!R23=\"\",\"\",DATOS!R23)","v":""},{"$f":"IF(DATOS!AF23=\"\",\"\",DATOS!AF23)","v":""},{"$f":"IF(DATOS!V23=\"\",\"\",DATOS!V23)","v":""}]
[{"$f":"IF(DATOS!R24=\"\",\"\",DATOS!R24)","v":""},{"$f":"IF(DATOS!AF24=\"\",\"\",DATOS!AF24)","v":""},{"$f":"IF(DATOS!V24=\"\",\"\",DATOS!V24)","v":""}]
[{"$f":"IF(DATOS!R25=\"\",\"\",DATOS!R25)","v":""},{"$f":"IF(DATOS!AF25=\"\",\"\",DATOS!AF25)","v":""},{"$f":"IF(DATOS!V25=\"\",\"\",DATOS!V25)","v":""}]
[{"$f":"IF(DATOS!R26=\"\",\"\",DATOS!R26)","v":""},{"$f":"IF(DATOS!AF26=\"\",\"\",DATOS!AF26)","v":""},{"$f":"IF(DATOS!V26=\"\",\"\",DATOS!V26)","v":""}]
[{"$f":"IF(DATOS!R27=\"\",\"\",DATOS!R27)","v":""},{"$f":"IF(DATOS!AF27=\"\",\"\",DATOS!AF27)","v":""},{"$f":"IF(DATOS!V27=\"\",\"\",DATOS!V27)","v":""}]
[{"$f":"IF(DATOS!R28=\"\",\"\",DATOS!R28)","v":""},{"$f":"IF(DATOS!AF28=\"\",\"\",DATOS!AF28)","v":""},{"$f":"IF(DATOS!V28=\"\",\"\",DATOS!V28)","v":""}]
[{"$f":"IF(DATOS!R29=\"\",\"\",DATOS!R29)","v":""},{"$f":"IF(DATOS!AF29=\"\",\"\",DATOS!AF29)","v":""},{"$f":"IF(DATOS!V29=\"\",\"\",DATOS!V29)","v":""}]
[{"$f":"IF(DATOS!R30=\"\",\"\",DATOS!R30)","v":""},{"$f":"IF(DATOS!AF30=\"\",\"\",DATOS!AF30)","v":""},{"$f":"IF(DATOS!V30=\"\",\"\",DATOS!V30)","v":""}]
[{"$f":"IF(DATOS!R31=\"\",\"\",DATOS!R31)","v":""},{"$f":"IF(DATOS!AF31=\"\",\"\",DATOS!AF31)","v":""},{"$f":"IF(DATOS!V31=\"\",\"\",DATOS!V31)","v":""}]
[{"$f":"IF(DATOS!R32=\"\",\"\",DATOS!R32)","v":""},{"$f":"IF(DATOS!AF32=\"\",\"\",DATOS!AF32)","v":""},{"$f":"IF(DATOS!V32=\"\",\"\",DATOS!V32)","v":""}]
[{"$f":"IF(DATOS!R33=\"\",\"\",DATOS!R33)","v":""},{"$f":"IF(DATOS!AF33=\"\",\"\",DATOS!AF33)","v":""},{"$f":"IF(DATOS!V33=\"\",\"\",DATOS!V33)","v":""}]
[{"$f":"IF(DATOS!R34=\"\",\"\",DATOS!R34)","v":""},{"$f":"IF(DATOS!AF34=\"\",\"\",DATOS!AF34)","v":""},{"$f":"IF(DATOS!V34=\"\",\"\",DATOS!V34)","v":""}]
[{"$f":"IF(DATOS!R35=\"\",\"\",DATOS!R35)","v":""},{"$f":"IF(DATOS!AF35=\"\",\"\",DATOS!AF35)","v":""},{"$f":"IF(DATOS!V35=\"\",\"\",DATOS!V35)","v":""}]
[{"$f":"IF(DATOS!R36=\"\",\"\",DATOS!R36)","v":""},{"$f":"IF(DATOS!AF36=\"\",\"\",DATOS!AF36)","v":""},{"$f":"IF(DATOS!V36=\"\",\"\",DATOS!V36)","v":""}]
[{"$f":"IF(DATOS!R37=\"\",\"\",DATOS!R37)","v":""},{"$f":"IF(DATOS!AF37=\"\",\"\",DATOS!AF37)","v":""},{"$f":"IF(DATOS!V37=\"\",\"\",DATOS!V37)","v":""}]
[{"$f":"IF(DATOS!R38=\"\",\"\",DATOS!R38)","v":""},{"$f":"IF(DATOS!AF38=\"\",\"\",DATOS!AF38)","v":""},{"$f":"IF(DATOS!V38=\"\",\"\",DATOS!V38)","v":""}]
[{"$f":"IF(DATOS!R39=\"\",\"\",DATOS!R39)","v":""},{"$f":"IF(DATOS!AF39=\"\",\"\",DATOS!AF39)","v":""},{"$f":"IF(DATOS!V39=\"\",\"\",DATOS!V39)","v":""}]
[{"$f":"IF(DATOS!R40=\"\",\"\",DATOS!R40)","v":""},{"$f":"IF(DATOS!AF40=\"\",\"\",DATOS!AF40)","v":""},{"$f":"IF(DATOS!V40=\"\",\"\",DATOS!V40)","v":""}]
[{"$f":"IF(DATOS!R41=\"\",\"\",DATOS!R41)","v":""},{"$f":"IF(DATOS!AF41=\"\",\"\",DATOS!AF41)","v":""},{"$f":"IF(DATOS!V41=\"\",\"\",DATOS!V41)","v":""}]
[{"$f":"IF(DATOS!R42=\"\",\"\",DATOS!R42)","v":""},{"$f":"IF(DATOS!AF42=\"\",\"\",DATOS!AF42)","v":""},{"$f":"IF(DATOS!V42=\"\",\"\",DATOS!V42)","v":""}]
[{"$f":"IF(DATOS!R43=\"\",\"\",DATOS!R43)","v":""},{"$f":"IF(DATOS!AF43=\"\",\"\",DATOS!AF43)","v":""},{"$f":"IF(DATOS!V43=\"\",\"\",DATOS!V43)","v":""}]
[{"$f":"IF(DATOS!R44=\"\",\"\",DATOS!R44)","v":""},{"$f":"IF(DATOS!AF44=\"\",\"\",DATOS!AF44)","v":""},{"$f":"IF(DATOS!V44=\"\",\"\",DATOS!V44)","v":""}]
[{"$f":"IF(DATOS!R45=\"\",\"\",DATOS!R45)","v":""},{"$f":"IF(DATOS!AF45=\"\",\"\",DATOS!AF45)","v":""},{"$f":"IF(DATOS!V45=\"\",\"\",DATOS!V45)","v":""}]
[{"$f":"IF(DATOS!R46=\"\",\"\",DATOS!R46)","v":""},{"$f":"IF(DATOS!AF46=\"\",\"\",DATOS!AF46)","v":""},{"$f":"IF(DATOS!V46=\"\",\"\",DATOS!V46)","v":""}]
[{"$f":"IF(DATOS!R47=\"\",\"\",DATOS!R47)","v":""},{"$f":"IF(DATOS!AF47=\"\",\"\",DATOS!AF47)","v":""},{"$f":"IF(DATOS!V47=\"\",\"\",DATOS!V47)","v":""}]
[{"$f":"IF(DATOS!R48=\"\",\"\",DATOS!R48)","v":""},{"$f":"IF(DATOS!AF48=\"\",\"\",DATOS!AF48)","v":""},{"$f":"IF(DATOS!V48=\"\",\"\",DATOS!V48)","v":""}]
[{"$f":"IF(DATOS!R49=\"\",\"\",DATOS!R49)","v":""},{"$f":"IF(DATOS!AF49=\"\",\"\",DATOS!AF49)","v":""},{"$f":"IF(DATOS!V49=\"\",\"\",DATOS!V49)","v":""}]
[{"$f":"IF(DATOS!R50=\"\",\"\",DATOS!R50)","v":""},{"$f":"IF(DATOS!AF50=\"\",\"\",DATOS!AF50)","v":""},{"$f":"IF(DATOS!V50=\"\",\"\",DATOS!V50)","v":""}]
[{"$f":"IF(DATOS!R51=\"\",\"\",DATOS!R51)","v":""},{"$f":"IF(DATOS!AF51=\"\",\"\",DATOS!AF51)","v":""},{"$f":"IF(DATOS!V51=\"\",\"\",DATOS!V51)","v":""}]
[{"$f":"IF(DATOS!R52=\"\",\"\",DATOS!R52)","v":""},{"$f":"IF(DATOS!AF52=\"\",\"\",DATOS!AF52)","v":""},{"$f":"IF(DATOS!V52=\"\",\"\",DATOS!V52)","v":""}]
[{"$f":"IF(DATOS!R53=\"\",\"\",DATOS!R53)","v":""},{"$f":"IF(DATOS!AF53=\"\",\"\",DATOS!AF53)","v":""},{"$f":"IF(DATOS!V53=\"\",\"\",DATOS!V53)","v":""}]
[{"$f":"IF(DATOS!R54=\"\",\"\",DATOS!R54)","v":""},{"$f":"IF(DATOS!AF54=\"\",\"\",DATOS!AF54)","v":""},{"$f":"IF(DATOS!V54=\"\",\"\",DATOS!V54)","v":""}]
[{"$f":"IF(DATOS!R55=\"\",\"\",DATOS!R55)","v":""},{"$f":"IF(DATOS!AF55=\"\",\"\",DATOS!AF55)","v":""},{"$f":"IF(DATOS!V55=\"\",\"\",DATOS!V55)","v":""}]
[{"$f":"IF(DATOS!R56=\"\",\"\",DATOS!R56)","v":""},{"$f":"IF(DATOS!AF56=\"\",\"\",DATOS!AF56)","v":""},{"$f":"IF(DATOS!V56=\"\",\"\",DATOS!V56)","v":""}]
[{"$f":"IF(DATOS!R57=\"\",\"\",DATOS!R57)","v":""},{"$f":"IF(DATOS!AF57=\"\",\"\",DATOS!AF57)","v":""},{"$f":"IF(DATOS!V57=\"\",\"\",DATOS!V57)","v":""}]
[{"$f":"IF(DATOS!R58=\"\",\"\",DATOS!R58)","v":""},{"$f":"IF(DATOS!AF58=\"\",\"\",DATOS!AF58)","v":""},{"$f":"IF(DATOS!V58=\"\",\"\",DATOS!V58)","v":""}]
[{"$f":"IF(DATOS!R59=\"\",\"\",DATOS!R59)","v":""},{"$f":"IF(DATOS!AF59=\"\",\"\",DATOS!AF59)","v":""},{"$f":"IF(DATOS!V59=\"\",\"\",DATOS!V59)","v":""}]
[{"$f":"IF(DATOS!R60=\"\",\"\",DATOS!R60)","v":""},{"$f":"IF(DATOS!AF60=\"\",\"\",DATOS!AF60)","v":""},{"$f":"IF(DATOS!V60=\"\",\"\",DATOS!V60)","v":""}]
[{"$f":"IF(DATOS!R61=\"\",\"\",DATOS!R61)","v":""},{"$f":"IF(DATOS!AF61=\"\",\"\",DATOS!AF61)","v":""},{"$f":"IF(DATOS!V61=\"\",\"\",DATOS!V61)","v":""}]
[{"$f":"IF(DATOS!R62=\"\",\"\",DATOS!R62)","v":""},{"$f":"IF(DATOS!AF62=\"\",\"\",DATOS!AF62)","v":""},{"$f":"IF(DATOS!V62=\"\",\"\",DATOS!V62)","v":""}]
[{"$f":"IF(DATOS!R63=\"\",\"\",DATOS!R63)","v":""},{"$f":"IF(DATOS!AF63=\"\",\"\",DATOS!AF63)","v":""},{"$f":"IF(DATOS!V63=\"\",\"\",DATOS!V63)","v":""}]
[{"$f":"IF(DATOS!R64=\"\",\"\",DATOS!R64)","v":""},{"$f":"IF(DATOS!AF64=\"\",\"\",DATOS!AF64)","v":""},{"$f":"IF(DATOS!V64=\"\",\"\",DATOS!V64)","v":""}]
[{"$f":"IF(DATOS!R65=\"\",\"\",DATOS!R65)","v":""},{"$f":"IF(DATOS!AF65=\"\",\"\",DATOS!AF65)","v":""},{"$f":"IF(DATOS!V65=\"\",\"\",DATOS!V65)","v":""}]
[{"$f":"IF(DATOS!R66=\"\",\"\",DATOS!R66)","v":""},{"$f":"IF(DATOS!AF66=\"\",\"\",DATOS!AF66)","v":""},{"$f":"IF(DATOS!V66=\"\",\"\",DATOS!V66)","v":""}]
[{"$f":"IF(DATOS!R67=\"\",\"\",DATOS!R67)","v":""},{"$f":"IF(DATOS!AF67=\"\",\"\",DATOS!AF67)","v":""},{"$f":"IF(DATOS!V67=\"\",\"\",DATOS!V67)","v":""}]
[{"$f":"IF(DATOS!R68=\"\",\"\",DATOS!R68)","v":""},{"$f":"IF(DATOS!AF68=\"\",\"\",DATOS!AF68)","v":""},{"$f":"IF(DATOS!V68=\"\",\"\",DATOS!V68)","v":""}]
[{"$f":"IF(DATOS!R69=\"\",\"\",DATOS!R69)","v":""},{"$f":"IF(DATOS!AF69=\"\",\"\",DATOS!AF69)","v":""},{"$f":"IF(DATOS!V69=\"\",\"\",DATOS!V69)","v":""}]
[{"$f":"IF(DATOS!R70=\"\",\"\",DATOS!R70)","v":""},{"$f":"IF(DATOS!AF70=\"\",\"\",DATOS!AF70)","v":""},{"$f":"IF(DATOS!V70=\"\",\"\",DATOS!V70)","v":""}]
[{"$f":"IF(DATOS!R71=\"\",\"\",DATOS!R71)","v":""},{"$f":"IF(DATOS!AF71=\"\",\"\",DATOS!AF71)","v":""},{"$f":"IF(DATOS!V71=\"\",\"\",DATOS!V71)","v":""}]
[{"$f":"IF(DATOS!R72=\"\",\"\",DATOS!R72)","v":""},{"$f":"IF(DATOS!AF72=\"\",\"\",DATOS!AF72)","v":""},{"$f":"IF(DATOS!V72=\"\",\"\",DATOS!V72)","v":""}]
[{"$f":"IF(DATOS!R73=\"\",\"\",DATOS!R73)","v":""},{"$f":"IF(DATOS!AF73=\"\",\"\",DATOS!AF73)","v":""},{"$f":"IF(DATOS!V73=\"\",\"\",DATOS!V73)","v":""}]
[{"$f":"IF(DATOS!R74=\"\",\"\",DATOS!R74)","v":""},{"$f":"IF(DATOS!AF74=\"\",\"\",DATOS!AF74)","v":""},{"$f":"IF(DATOS!V74=\"\",\"\",DATOS!V74)","v":""}]
[{"$f":"IF(DATOS!R75=\"\",\"\",DATOS!R75)","v":""},{"$f":"IF(DATOS!AF75=\"\",\"\",DATOS!AF75)","v":""},{"$f":"IF(DATOS!V75=\"\",\"\",DATOS!V75)","v":""}]
[{"$f":"IF(DATOS!R76=\"\",\"\",DATOS!R76)","v":""},{"$f":"IF(DATOS!AF76=\"\",\"\",DATOS!AF76)","v":""},{"$f":"IF(DATOS!V76=\"\",\"\",DATOS!V76)","v":""}]
[{"$f":"IF(DATOS!R77=\"\",\"\",DATOS!R77)","v":""},{"$f":"IF(DATOS!AF77=\"\",\"\",DATOS!AF77)","v":""},{"$f":"IF(DATOS!V77=\"\",\"\",DATOS!V77)","v":""}]
[{"$f":"IF(DATOS!R78=\"\",\"\",DATOS!R78)","v":""},{"$f":"IF(DATOS!AF78=\"\",\"\",DATOS!AF78)","v":""},{"$f":"IF(DATOS!V78=\"\",\"\",DATOS!V78)","v":""}]
[{"$f":"IF(DATOS!R79=\"\",\"\",DATOS!R79)","v":""},{"$f":"IF(DATOS!AF79=\"\",\"\",DATOS!AF79)","v":""},{"$f":"IF(DATOS!V79=\"\",\"\",DATOS!V79)","v":""}]
[{"$f":"IF(DATOS!R80=\"\",\"\",DATOS!R80)","v":""},{"$f":"IF(DATOS!AF80=\"\",\"\",DATOS!AF80)","v":""},{"$f":"IF(DATOS!V80=\"\",\"\",DATOS!V80)","v":""}]
[{"$f":"IF(DATOS!R81=\"\",\"\",DATOS!R81)","v":""},{"$f":"IF(DATOS!AF81=\"\",\"\",DATOS!AF81)","v":""},{"$f":"IF(DATOS!V81=\"\",\"\",DATOS!V81)","v":""}]
[{"$f":"IF(DATOS!R82=\"\",\"\",DATOS!R82)","v":""},{"$f":"IF(DATOS!AF82=\"\",\"\",DATOS!AF82)","v":""},{"$f":"IF(DATOS!V82=\"\",\"\",DATOS!V82)","v":""}]
[{"$f":"IF(DATOS!R83=\"\",\"\",DATOS!R83)","v":""},{"$f":"IF(DATOS!AF83=\"\",\"\",DATOS!AF83)","v":""},{"$f":"IF(DATOS!V83=\"\",\"\",DATOS!V83)","v":""}]
[{"$f":"IF(DATOS!R84=\"\",\"\",DATOS!R84)","v":""},{"$f":"IF(DATOS!AF84=\"\",\"\",DATOS!AF84)","v":""},{"$f":"IF(DATOS!V84=\"\",\"\",DATOS!V84)","v":""}]
[{"$f":"IF(DATOS!R85=\"\",\"\",DATOS!R85)","v":""},{"$f":"IF(DATOS!AF85=\"\",\"\",DATOS!AF85)","v":""},{"$f":"IF(DATOS!V85=\"\",\"\",DATOS!V85)","v":""}]
[{"$f":"IF(DATOS!R86=\"\",\"\",DATOS!R86)","v":""},{"$f":"IF(DATOS!AF86=\"\",\"\",DATOS!AF86)","v":""},{"$f":"IF(DATOS!V86=\"\",\"\",DATOS!V86)","v":""}]
[{"$f":"IF(DATOS!R87=\"\",\"\",DATOS!R87)","v":""},{"$f":"IF(DATOS!AF87=\"\",\"\",DATOS!AF87)","v":""},{"$f":"IF(DATOS!V87=\"\",\"\",DATOS!V87)","v":""}]
[{"$f":"IF(DATOS!R88=\"\",\"\",DATOS!R88)","v":""},{"$f":"IF(DATOS!AF88=\"\",\"\",DATOS!AF88)","v":""},{"$f":"IF(DATOS!V88=\"\",\"\",DATOS!V88)","v":""}]
[{"$f":"IF(DATOS!R89=\"\",\"\",DATOS!R89)","v":""},{"$f":"IF(DATOS!AF89=\"\",\"\",DATOS!AF89)","v":""},{"$f":"IF(DATOS!V89=\"\",\"\",DATOS!V89)","v":""}]
[{"$f":"IF(DATOS!R90=\"\",\"\",DATOS!R90)","v":""},{"$f":"IF(DATOS!AF90=\"\",\"\",DATOS!AF90)","v":""},{"$f":"IF(DATOS!V90=\"\",\"\",DATOS!V90)","v":""}]
[{"$f":"IF(DATOS!R91=\"\",\"\",DATOS!R91)","v":""},{"$f":"IF(DATOS!AF91=\"\",\"\",DATOS!AF91)","v":""},{"$f":"IF(DATOS!V91=\"\",\"\",DATOS!V91)","v":""}]
[{"$f":"IF(DATOS!R92=\"\",\"\",DATOS!R92)","v":""},{"$f":"IF(DATOS!AF92=\"\",\"\",DATOS!AF92)","v":""},{"$f":"IF(DATOS!V92=\"\",\"\",DATOS!V92)","v":""}]
[{"$f":"IF(DATOS!R93=\"\",\"\",DATOS!R93)","v":""},{"$f":"IF(DATOS!AF93=\"\",\"\",DATOS!AF93)","v":""},{"$f":"IF(DATOS!V93=\"\",\"\",DATOS!V93)","v":""}]
[{"$f":"IF(DATOS!R94=\"\",\"\",DATOS!R94)","v":""},{"$f":"IF(DATOS!AF94=\"\",\"\",DATOS!AF94)","v":""},{"$f":"IF(DATOS!V94=\"\",\"\",DATOS!V94)","v":""}]
[{"$f":"IF(DATOS!R95=\"\",\"\",DATOS!R95)","v":""},{"$f":"IF(DATOS!AF95=\"\",\"\",DATOS!AF95)","v":""},{"$f":"IF(DATOS!V95=\"\",\"\",DATOS!V95)","v":""}]
[{"$f":"IF(DATOS!R96=\"\",\"\",DATOS!R96)","v":""},{"$f":"IF(DATOS!AF96=\"\",\"\",DATOS!AF96)","v":""},{"$f":"IF(DATOS!V96=\"\",\"\",DATOS!V96)","v":""}]
[{"$f":"IF(DATOS!R97=\"\",\"\",DATOS!R97)","v":""},{"$f":"IF(DATOS!AF97=\"\",\"\",DATOS!AF97)","v":""},{"$f":"IF(DATOS!V97=\"\",\"\",DATOS!V97)","v":""}]
[{"$f":"IF(DATOS!R98=\"\",\"\",DATOS!R98)","v":""},{"$f":"IF(DATOS!AF98=\"\",\"\",DATOS!AF98)","v":""},{"$f":"IF(DATOS!V98=\"\",\"\",DATOS!V98)","v":""}]
[{"$f":"IF(DATOS!R99=\"\",\"\",DATOS!R99)","v":""},{"$f":"IF(DATOS!AF99=\"\",\"\",DATOS!AF99)","v":""},{"$f":"IF(DATOS!V99=\"\",\"\",DATOS!V99)","v":""}]
[{"$f":"IF(DATOS!R100=\"\",\"\",DATOS!R100)","v":""},{"$f":"IF(DATOS!AF100=\"\",\"\",DATOS!AF100)","v":""},{"$f":"IF(DATOS!V100=\"\",\"\",DATOS!V100)","v":""}]
[{"$f":"IF(DATOS!R101=\"\",\"\",DATOS!R101)","v":""},{"$f":"IF(DATOS!AF101=\"\",\"\",DATOS!AF101)","v":""},{"$f":"IF(DATOS!V101=\"\",\"\",DATOS!V101)","v":""}]
[{"$f":"IF(DATOS!R102=\"\",\"\",DATOS!R102)","v":""},{"$f":"IF(DATOS!AF102=\"\",\"\",DATOS!AF102)","v":""},{"$f":"IF(DATOS!V102=\"\",\"\",DATOS!V102)","v":""}]
[{"$f":"IF(DATOS!R103=\"\",\"\",DATOS!R103)","v":""},{"$f":"IF(DATOS!AF103=\"\",\"\",DATOS!AF103)","v":""},{"$f":"IF(DATOS!V103=\"\",\"\",DATOS!V103)","v":""}]
[{"$f":"IF(DATOS!R104=\"\",\"\",DATOS!R104)","v":""},{"$f":"IF(DATOS!AF104=\"\",\"\",DATOS!AF104)","v":""},{"$f":"IF(DATOS!V104=\"\",\"\",DATOS!V104)","v":""}]

{"sheet":"AGD_MUESTREOS","index":7,"n_rows":0,"n_cols":0,"rows_kept":0,"cut":false,"hidden":true,"merged":[]}

{"sheet":"AGD_PARAMETRO","index":8,"n_rows":0,"n_cols":0,"rows_kept":0,"cut":false,"hidden":true,"merged":[]}

{"sheet":"AGD_MUESTRAS","index":9,"n_rows":0,"n_cols":0,"rows_kept":0,"cut":false,"hidden":true,"merged":[]}

{"sheet":"AGD_MUESTRAS_VARIABLES","index":10,"n_rows":0,"n_cols":0,"rows_kept":0,"cut":false,"hidden":true,"merged":[]}

{"sheet":"AGD_AUTORIAS","index":11,"n_rows":0,"n_cols":0,"rows_kept":0,"cut":false,"hidden":true,"merged":[]}